Workbook

Sheet Prisark
E2: Hent altid et nyt bestillingsark på: https://www.3.dk/business/bestilling/. Ønskes der tilbehør, som ikke er vist på prisarket, kan man gå ind på www.3.dk/tilbehør og finde det. Herefter sendes linket på det der ønskes til 3Erhvervsaktivering@3.dk.
G9: Opdateret d. 26-02-2021
A10: Brand | B10: Mobil | C10: Pris eksklusiv moms | E10: Brand | F10: Tilbehør | G10: Pris eksklusiv moms | H10: A-nummer | I10: lager
B11: Apple iPhone 12 mini 64GB (OBS. UDEN OPLADER) | C11: =IFERROR(VLOOKUP(B11,HW!A:E,5,FALSE),"") -> 4959.2 | F11: Apple 20W USB C Power Adapter | G11: =IFERROR(VLOOKUP(F11,Tilbehør!A:C,3,FALSE),"") -> 144 | H11: =IFERROR(VLOOKUP(F11,Tilbehør!A:B,2,FALSE),"") -> A24287 | I11: =IFERROR(VLOOKUP(H11,Lager!A:C,3,FALSE),"") -> 4
B12: Apple iPhone 12 mini 128GB (OBS. UDEN OPLADER) | C12: =IFERROR(VLOOKUP(B12,HW!A:E,5,FALSE),"") -> 5359.2 | F12: Apple MagSafe Charger | G12: =IFERROR(VLOOKUP(F12,Tilbehør!A:C,3,FALSE),"") -> 288 | H12: =IFERROR(VLOOKUP(F12,Tilbehør!A:B,2,FALSE),"") -> A24289 | I12: =IFERROR(VLOOKUP(H12,Lager!A:C,3,FALSE),"") -> 506
B13: Apple iPhone 12 mini 256GB (OBS. UDEN OPLADER) | C13: =IFERROR(VLOOKUP(B13,HW!A:E,5,FALSE),"") -> 6079.2 | F13: Apple Lightning to Headphone Jack Adapter | G13: =IFERROR(VLOOKUP(F13,Tilbehør!A:C,3,FALSE),"") -> 96 | H13: =IFERROR(VLOOKUP(F13,Tilbehør!A:B,2,FALSE),"") -> A22056 | I13: =IFERROR(VLOOKUP(H13,Lager!A:C,3,FALSE),"") -> 41
B14: Apple iPhone 12 64GB (OBS. UDEN OPLADER) | C14: =IFERROR(VLOOKUP(B14,HW!A:E,5,FALSE),"") -> 5599.2 | F14: Apple AirPods Pro with wireless case | G14: =IFERROR(VLOOKUP(F14,Tilbehør!A:C,3,FALSE),"") -> 1752 | H14: =IFERROR(VLOOKUP(F14,Tilbehør!A:B,2,FALSE),"") -> A23444 | I14: =IFERROR(VLOOKUP(H14,Lager!A:C,3,FALSE),"") -> 362
B15: Apple iPhone 12 128GB (OBS. UDEN OPLADER) | C15: =IFERROR(VLOOKUP(B15,HW!A:E,5,FALSE),"") -> 5999.2 | F15: Apple AirPods with Wireless Charging Case | G15: =IFERROR(VLOOKUP(F15,Tilbehør!A:C,3,FALSE),"") -> 1416 | H15: =IFERROR(VLOOKUP(F15,Tilbehør!A:B,2,FALSE),"") -> A23333 | I15: =IFERROR(VLOOKUP(H15,Lager!A:C,3,FALSE),"") -> 140
B16: Apple iPhone 12 256GB (OBS. UDEN OPLADER) | C16: =IFERROR(VLOOKUP(B16,HW!A:E,5,FALSE),"") -> 6719.2 | F16: Apple AirPods with Charging Case | G16: =IFERROR(VLOOKUP(F16,Tilbehør!A:C,3,FALSE),"") -> 1104 | H16: =IFERROR(VLOOKUP(F16,Tilbehør!A:B,2,FALSE),"") -> A23335 | I16: =IFERROR(VLOOKUP(H16,Lager!A:C,3,FALSE),"") -> 18
B17: Apple iPhone 12 Pro 128GB (OBS. UDEN OPLADER) | C17: =IFERROR(VLOOKUP(B17,HW!A:E,5,FALSE),"") -> 7119.2 | F17: Smart Keyboard for iPad 7th generation and iPad Air 3rd generation Danish | G17: =IFERROR(VLOOKUP(F17,Tilbehør!A:C,3,FALSE),"") -> 1560 | H17: =IFERROR(VLOOKUP(F17,Tilbehør!A:B,2,FALSE),"") -> A23329 | I17: =IFERROR(VLOOKUP(H17,Lager!A:C,3,FALSE),"") -> 18
B18: Apple iPhone 12 Pro 256GB (OBS. UDEN OPLADER) | C18: =IFERROR(VLOOKUP(B18,HW!A:E,5,FALSE),"") -> 7839.2 | F18: Apple AirPods Max Space Gray | G18: =IFERROR(VLOOKUP(F18,Tilbehør!A:C,3,FALSE),"") -> 3840 | H18: =IFERROR(VLOOKUP(F18,Tilbehør!A:B,2,FALSE),"") -> A24460 | I18: =IFERROR(VLOOKUP(H18,Lager!A:C,3,FALSE),"") -> 
B19: Apple iPhone 12 Pro 512GB (OBS. UDEN OPLADER) | C19: =IFERROR(VLOOKUP(B19,HW!A:E,5,FALSE),"") -> 9279.2 | F19: Apple AirPods Max Silver | G19: =IFERROR(VLOOKUP(F19,Tilbehør!A:C,3,FALSE),"") -> 3840 | H19: =IFERROR(VLOOKUP(F19,Tilbehør!A:B,2,FALSE),"") -> A24461 | I19: =IFERROR(VLOOKUP(H19,Lager!A:C,3,FALSE),"") -> 
B20: Apple iPhone 12 Pro Max 128GB (OBS. UDEN OPLADER) | C20: =IFERROR(VLOOKUP(B20,HW!A:E,5,FALSE),"") -> 7759.2 | F20: Apple AirPods Max Sky Blue | G20: =IFERROR(VLOOKUP(F20,Tilbehør!A:C,3,FALSE),"") -> 3840 | H20: =IFERROR(VLOOKUP(F20,Tilbehør!A:B,2,FALSE),"") -> A24462 | I20: =IFERROR(VLOOKUP(H20,Lager!A:C,3,FALSE),"") -> 
B21: Apple iPhone 12 Pro Max 256GB (OBS. UDEN OPLADER) | C21: =IFERROR(VLOOKUP(B21,HW!A:E,5,FALSE),"") -> 8479.2 | F21: Apple AirPods Max Pink | G21: =IFERROR(VLOOKUP(F21,Tilbehør!A:C,3,FALSE),"") -> 3840 | H21: =IFERROR(VLOOKUP(F21,Tilbehør!A:B,2,FALSE),"") -> A24463 | I21: =IFERROR(VLOOKUP(H21,Lager!A:C,3,FALSE),"") -> 
B22: Apple iPhone 12 Pro Max 512GB (OBS. UDEN OPLADER) | C22: =IFERROR(VLOOKUP(B22,HW!A:E,5,FALSE),"") -> 9919.2 | F22: Apple AirPods Max Green | G22: =IFERROR(VLOOKUP(F22,Tilbehør!A:C,3,FALSE),"") -> 3840 | H22: =IFERROR(VLOOKUP(F22,Tilbehør!A:B,2,FALSE),"") -> A24464 | I22: =IFERROR(VLOOKUP(H22,Lager!A:C,3,FALSE),"") -> 1
B23: Apple iPhone 11 64GB NEW (OBS. UDEN OPLADER) | C23: =IFERROR(VLOOKUP(B23,HW!A:E,5,FALSE),"") -> 4239.2 | H23: =IFERROR(VLOOKUP(F23,Tilbehør!A:B,2,FALSE),"") ->  | I23: =IFERROR(VLOOKUP(H23,Lager!A:C,3,FALSE),"") -> 
B24: Apple iPhone 11 128GB NEW (OBS. UDEN OPLADER) | C24: =IFERROR(VLOOKUP(B24,HW!A:E,5,FALSE),"") -> 4639.2 | F24: Samsung Common Wireless Charger Stand 15W White | G24: =IFERROR(VLOOKUP(F24,Tilbehør!A:C,3,FALSE),"") -> 408 | H24: =IFERROR(VLOOKUP(F24,Tilbehør!A:B,2,FALSE),"") -> A23454 | I24: =IFERROR(VLOOKUP(H24,Lager!A:C,3,FALSE),"") -> 25
B25: Apple iPhone 11 Pro 64GB | C25: =IFERROR(VLOOKUP(B25,HW!A:E,5,FALSE),"") -> 7119.2 | F25: Samsung Wired headset White | G25: =IFERROR(VLOOKUP(F25,Tilbehør!A:C,3,FALSE),"") -> 72 | H25: =IFERROR(VLOOKUP(F25,Tilbehør!A:B,2,FALSE),"") -> A22339 | I25: =IFERROR(VLOOKUP(H25,Lager!A:C,3,FALSE),"") -> 10
B26: Apple iPhone 11 Pro 256GB | C26: =IFERROR(VLOOKUP(B26,HW!A:E,5,FALSE),"") -> 8239.2 | G26: =IFERROR(VLOOKUP(F26,Tilbehør!A:C,3,FALSE),"") ->  | H26: =IFERROR(VLOOKUP(F26,Tilbehør!A:B,2,FALSE),"") ->  | I26: =IFERROR(VLOOKUP(H26,Lager!A:C,3,FALSE),"") -> 
B27: Apple iPhone SE 2nd gen 128GB NEW (OBS. UDEN OPLADER) | C27: =IFERROR(VLOOKUP(B27,HW!A:E,5,FALSE),"") -> 3359.2 | F27: Beoplay E8 3rd grey mist TW | G27: =IFERROR(VLOOKUP(F27,Tilbehør!A:C,3,FALSE),"") -> 2208 | H27: =IFERROR(VLOOKUP(F27,Tilbehør!A:B,2,FALSE),"") -> A23519 | I27: =IFERROR(VLOOKUP(H27,Lager!A:C,3,FALSE),"") -> 10
B28: Apple iPhone SE 2nd gen 256GB NEW (OBS. UDEN OPLADER) | C28: =IFERROR(VLOOKUP(B28,HW!A:E,5,FALSE),"") -> 4079.2 | F28: Beoplay E8 Sport Black | G28: =IFERROR(VLOOKUP(F28,Tilbehør!A:C,3,FALSE),"") -> 2208 | H28: =IFERROR(VLOOKUP(F28,Tilbehør!A:B,2,FALSE),"") -> A23854 | I28: =IFERROR(VLOOKUP(H28,Lager!A:C,3,FALSE),"") -> 83
B29: Apple iPhone SE 2nd gen 64GB NEW (OBS. UDEN OPLADER) | C29: =IFERROR(VLOOKUP(B29,HW!A:E,5,FALSE),"") -> 2959.2 | F29: Beoplay E8 Sport Oxygen Blue | G29: =IFERROR(VLOOKUP(F29,Tilbehør!A:C,3,FALSE),"") -> 2208 | H29: =IFERROR(VLOOKUP(F29,Tilbehør!A:B,2,FALSE),"") -> A23855 | I29: =IFERROR(VLOOKUP(H29,Lager!A:C,3,FALSE),"") -> 12
C30: =IFERROR(VLOOKUP(B30,HW!A:E,5,FALSE),"") ->  | F30: Beoplay E8 2 Black Truly Wireless Earphones | G30: =IFERROR(VLOOKUP(F30,Tilbehør!A:C,3,FALSE),"") -> 1504 | H30: =IFERROR(VLOOKUP(F30,Tilbehør!A:B,2,FALSE),"") -> A23069 | I30: =IFERROR(VLOOKUP(H30,Lager!A:C,3,FALSE),"") -> 6
B31: Huawei P40 Lite 4G | C31: =IFERROR(VLOOKUP(B31,HW!A:E,5,FALSE),"") -> 1919.2 | F31: Beoplay H9 3G Matte Black | G31: =IFERROR(VLOOKUP(F31,Tilbehør!A:C,3,FALSE),"") -> 3232 | H31: =IFERROR(VLOOKUP(F31,Tilbehør!A:B,2,FALSE),"") -> A23177 | I31: =IFERROR(VLOOKUP(H31,Lager!A:C,3,FALSE),"") -> 24
B32: Huawei P40 Pro | C32: =IFERROR(VLOOKUP(B32,HW!A:E,5,FALSE),"") -> 7039.2 | F32: Beoplay H4 2 Gen Black | G32: =IFERROR(VLOOKUP(F32,Tilbehør!A:C,3,FALSE),"") -> 1848 | H32: =IFERROR(VLOOKUP(F32,Tilbehør!A:B,2,FALSE),"") -> A23520 | I32: =IFERROR(VLOOKUP(H32,Lager!A:C,3,FALSE),"") -> 15
C33: =IFERROR(VLOOKUP(B33,HW!A:E,5,FALSE),"") ->  | F33: Beoplay H4 2 Gen Limestone | G33: =IFERROR(VLOOKUP(F33,Tilbehør!A:C,3,FALSE),"") -> 1848 | H33: =IFERROR(VLOOKUP(F33,Tilbehør!A:B,2,FALSE),"") -> A23521 | I33: =IFERROR(VLOOKUP(H33,Lager!A:C,3,FALSE),"") -> 18
B34: OnePlus 8T 128GB | C34: =IFERROR(VLOOKUP(B34,HW!A:E,5,FALSE),"") -> 3999.2 | G34: =IFERROR(VLOOKUP(F34,Tilbehør!A:C,3,FALSE),"") ->  | H34: =IFERROR(VLOOKUP(F34,Tilbehør!A:B,2,FALSE),"") ->  | I34: =IFERROR(VLOOKUP(H34,Lager!A:C,3,FALSE),"") -> 
B35: OnePlus 7T 128GB | C35: =IFERROR(VLOOKUP(B35,HW!A:E,5,FALSE),"") -> 3919.2 | F35: BOSE QC35 II wireless Headphones black | G35: =IFERROR(VLOOKUP(F35,Tilbehør!A:C,3,FALSE),"") -> 1440 | H35: =IFERROR(VLOOKUP(F35,Tilbehør!A:B,2,FALSE),"") -> A23849 | I35: =IFERROR(VLOOKUP(H35,Lager!A:C,3,FALSE),"") -> 52
B36: OnePlus 7T Pro 256GB | C36: =IFERROR(VLOOKUP(B36,HW!A:E,5,FALSE),"") -> 4799.2 | G36: =IFERROR(VLOOKUP(F36,Tilbehør!A:C,3,FALSE),"") ->  | H36: =IFERROR(VLOOKUP(F36,Tilbehør!A:B,2,FALSE),"") ->  | I36: =IFERROR(VLOOKUP(H36,Lager!A:C,3,FALSE),"") -> 
B37: OnePlus 8 128GB 5G | C37: =IFERROR(VLOOKUP(B37,HW!A:E,5,FALSE),"") -> 4519.2 | F37: Google Chromecast 3 | G37: =IFERROR(VLOOKUP(F37,Tilbehør!A:C,3,FALSE),"") -> 288 | H37: =IFERROR(VLOOKUP(F37,Tilbehør!A:B,2,FALSE),"") -> A24700 | I37: =IFERROR(VLOOKUP(H37,Lager!A:C,3,FALSE),"") -> 60
B38: OnePlus 8 Pro 128GB 5G | C38: =IFERROR(VLOOKUP(B38,HW!A:E,5,FALSE),"") -> 4639.2 | H38: =IFERROR(VLOOKUP(F38,Tilbehør!A:B,2,FALSE),"") ->  | I38: =IFERROR(VLOOKUP(H38,Lager!A:C,3,FALSE),"") -> 
B39: OnePlus Nord 128GB 5G | C39: =IFERROR(VLOOKUP(B39,HW!A:E,5,FALSE),"") -> 2759.2 | F39: JBL TUNE220 TWS Lifetstyle Black | G39: =IFERROR(VLOOKUP(F39,Tilbehør!A:C,3,FALSE),"") -> 408 | H39: =IFERROR(VLOOKUP(F39,Tilbehør!A:B,2,FALSE),"") -> A23701 | I39: =IFERROR(VLOOKUP(H39,Lager!A:C,3,FALSE),"") -> 42
B40: OnePlus Nord 256GB 5G | C40: =IFERROR(VLOOKUP(B40,HW!A:E,5,FALSE),"") -> 3279.2 | F40: JBL TUNE750 BT NC Active Noise Cancelling Black | G40: =IFERROR(VLOOKUP(F40,Tilbehør!A:C,3,FALSE),"") -> 544 | H40: =IFERROR(VLOOKUP(F40,Tilbehør!A:B,2,FALSE),"") -> A23703 | I40: =IFERROR(VLOOKUP(H40,Lager!A:C,3,FALSE),"") -> 34
C41: =IFERROR(VLOOKUP(B41,HW!A:E,5,FALSE),"") ->  | F41: JBL FLIP5 Green | G41: =IFERROR(VLOOKUP(F41,Tilbehør!A:C,3,FALSE),"") -> 816 | H41: =IFERROR(VLOOKUP(F41,Tilbehør!A:B,2,FALSE),"") -> A23359 | I41: =IFERROR(VLOOKUP(H41,Lager!A:C,3,FALSE),"") -> 18
B42: Samsung Galaxy S21 5G 128GB | C42: =IFERROR(VLOOKUP(B42,HW!A:E,5,FALSE),"") -> 5359.2 | H42: =IFERROR(VLOOKUP(F42,Tilbehør!A:B,2,FALSE),"") ->  | I42: =IFERROR(VLOOKUP(H42,Lager!A:C,3,FALSE),"") -> 
B43: Samsung Galaxy S21 5G 256GB | C43: =IFERROR(VLOOKUP(B43,HW!A:E,5,FALSE),"") -> 5839.2 | F43: Belkin 10W Wireless Charging Pad with PS | G43: =IFERROR(VLOOKUP(F43,Tilbehør!A:C,3,FALSE),"") -> 240 | H43: =IFERROR(VLOOKUP(F43,Tilbehør!A:B,2,FALSE),"") -> A23860 | I43: =IFERROR(VLOOKUP(H43,Lager!A:C,3,FALSE),"") -> 458
B44: Samsung Galaxy S21 5G Ultra 128GB | C44: =IFERROR(VLOOKUP(B44,HW!A:E,5,FALSE),"") -> 7919.2 | F44: Belkin 10W Wireless Charging Stand with | G44: =IFERROR(VLOOKUP(F44,Tilbehør!A:C,3,FALSE),"") -> 240 | H44: =IFERROR(VLOOKUP(F44,Tilbehør!A:B,2,FALSE),"") -> A23861 | I44: =IFERROR(VLOOKUP(H44,Lager!A:C,3,FALSE),"") -> 192
B45: Samsung Galaxy S21 5G Ultra 256GB | C45: =IFERROR(VLOOKUP(B45,HW!A:E,5,FALSE),"") -> 8199.2 | F45: Belkin 2x 10W Dual Wireless Charging Pad | G45: =IFERROR(VLOOKUP(F45,Tilbehør!A:C,3,FALSE),"") -> 360 | H45: =IFERROR(VLOOKUP(F45,Tilbehør!A:B,2,FALSE),"") -> A23862 | I45: =IFERROR(VLOOKUP(H45,Lager!A:C,3,FALSE),"") -> 34
B46: Samsung Galaxy S21 5G Ultra 512GB | C46: =IFERROR(VLOOKUP(B46,HW!A:E,5,FALSE),"") -> 9039.2 | F46: Belkin Single USB A Wall Charger 18W QC | G46: =IFERROR(VLOOKUP(F46,Tilbehør!A:C,3,FALSE),"") -> 120 | H46: =IFERROR(VLOOKUP(F46,Tilbehør!A:B,2,FALSE),"") -> A23863 | I46: =IFERROR(VLOOKUP(H46,Lager!A:C,3,FALSE),"") -> 144
B47: Samsung Galaxy S21+ 5G 128GB | C47: =IFERROR(VLOOKUP(B47,HW!A:E,5,FALSE),"") -> 6639.2 | F47: Belkin 18W USB C Home Charger EU Plug | G47: =IFERROR(VLOOKUP(F47,Tilbehør!A:C,3,FALSE),"") -> 200 | H47: =IFERROR(VLOOKUP(F47,Tilbehør!A:B,2,FALSE),"") -> A23864 | I47: =IFERROR(VLOOKUP(H47,Lager!A:C,3,FALSE),"") -> 16
B48: Samsung Galaxy S21+ 5G 256GB | C48: =IFERROR(VLOOKUP(B48,HW!A:E,5,FALSE),"") -> 7039.2 | F48: Belkin 10 000 MAH POWER BANK | G48: =IFERROR(VLOOKUP(F48,Tilbehør!A:C,3,FALSE),"") -> 240 | H48: =IFERROR(VLOOKUP(F48,Tilbehør!A:B,2,FALSE),"") -> A23865 | I48: =IFERROR(VLOOKUP(H48,Lager!A:C,3,FALSE),"") -> 48
B49: Samsung Galaxy S20FE 4G 128GB | C49: =IFERROR(VLOOKUP(B49,HW!A:E,5,FALSE),"") -> 4159.2 | F49: Belkin 3 in 1 Wireless Pad Stand Apple Watch | G49: =IFERROR(VLOOKUP(F49,Tilbehør!A:C,3,FALSE),"") -> 720 | H49: =IFERROR(VLOOKUP(F49,Tilbehør!A:B,2,FALSE),"") -> A23871 | I49: =IFERROR(VLOOKUP(H49,Lager!A:C,3,FALSE),"") -> 33
B50: Samsung Galaxy S20FE 5G 128GB | C50: =IFERROR(VLOOKUP(B50,HW!A:E,5,FALSE),"") -> 4799.2 | G50: =IFERROR(VLOOKUP(F50,Tilbehør!A:C,3,FALSE),"") ->  | H50: =IFERROR(VLOOKUP(F50,Tilbehør!A:B,2,FALSE),"") ->  | I50: =IFERROR(VLOOKUP(H50,Lager!A:C,3,FALSE),"") -> 
B51: Samsung Galaxy XCover Pro | C51: =IFERROR(VLOOKUP(B51,HW!A:E,5,FALSE),"") -> 3039.2 | E51: Brand | F51: UR | G51: Pris eksklusiv moms | H51: =IFERROR(VLOOKUP(F51,Tilbehør!A:B,2,FALSE),"") ->  | I51: =IFERROR(VLOOKUP(H51,Lager!A:C,3,FALSE),"") -> 
B52: Samsung Galaxy A51 128GB Black | C52: =IFERROR(VLOOKUP(B52,HW!A:E,5,FALSE),"") -> 2239.2 | F52: Apple Watch 6C 40mm Gold w Pink | G52: =IFERROR(VLOOKUP(F52,Tilbehør!A:C,3,FALSE),"") -> 3264 | H52: =IFERROR(VLOOKUP(F52,Tilbehør!A:B,2,FALSE),"") -> A24230 | I52: =IFERROR(VLOOKUP(H52,Lager!A:C,3,FALSE),"") -> 20
B53: Samsung Galaxy A41 64GB | C53: =IFERROR(VLOOKUP(B53,HW!A:E,5,FALSE),"") -> 1839.2 | F53: Apple Watch 6C 40mm Space Gray w Black | G53: =IFERROR(VLOOKUP(F53,Tilbehør!A:C,3,FALSE),"") -> 3264 | H53: =IFERROR(VLOOKUP(F53,Tilbehør!A:B,2,FALSE),"") -> A24231 | I53: =IFERROR(VLOOKUP(H53,Lager!A:C,3,FALSE),"") -> 18
B54: Samsung Galaxy A21s 32GB Black | C54: =IFERROR(VLOOKUP(B54,HW!A:E,5,FALSE),"") -> 1279.2 | F54: Apple Watch 6C 44mm Space Gray w Black | G54: =IFERROR(VLOOKUP(F54,Tilbehør!A:C,3,FALSE),"") -> 3552 | H54: =IFERROR(VLOOKUP(F54,Tilbehør!A:B,2,FALSE),"") -> A24235 | I54: =IFERROR(VLOOKUP(H54,Lager!A:C,3,FALSE),"") -> 21
B55: Samsung Galaxy Note 20 256GB 5G | C55: =IFERROR(VLOOKUP(B55,HW!A:E,5,FALSE),"") -> 6719.2 | F55: Apple Watch 6C 44mm Blue w Deep Navy | G55: =IFERROR(VLOOKUP(F55,Tilbehør!A:C,3,FALSE),"") -> 3552 | H55: =IFERROR(VLOOKUP(F55,Tilbehør!A:B,2,FALSE),"") -> A24237 | I55: =IFERROR(VLOOKUP(H55,Lager!A:C,3,FALSE),"") -> 14
B56: Samsung Galaxy Note 20 Ultra 256GB 5G | C56: =IFERROR(VLOOKUP(B56,HW!A:E,5,FALSE),"") -> 8239.2 | F56: Apple Watch 6C 44mm Graphite SS w Graphite Milanese | G56: =IFERROR(VLOOKUP(F56,Tilbehør!A:C,3,FALSE),"") -> 5040 | H56: =IFERROR(VLOOKUP(F56,Tilbehør!A:B,2,FALSE),"") -> A24239 | I56: =IFERROR(VLOOKUP(H56,Lager!A:C,3,FALSE),"") -> 63
C57: =IFERROR(VLOOKUP(B57,HW!A:E,5,FALSE),"") ->  | H57: =IFERROR(VLOOKUP(F57,Tilbehør!A:B,2,FALSE),"") ->  | I57: =IFERROR(VLOOKUP(H57,Lager!A:C,3,FALSE),"") -> 
B58: Fairphone 3 Plus 64GB Black | C58: =IFERROR(VLOOKUP(B58,HW!A:E,5,FALSE),"") -> 2759.2 | F58: Samsung Galaxy Watch Active2 40mm LTE Gold | G58: =IFERROR(VLOOKUP(F58,Tilbehør!A:C,3,FALSE),"") -> 2880 | H58: =IFERROR(VLOOKUP(F58,Tilbehør!A:B,2,FALSE),"") -> A23228 | I58: =IFERROR(VLOOKUP(H58,Lager!A:C,3,FALSE),"") -> 31
C59: =IFERROR(VLOOKUP(B59,HW!A:E,5,FALSE),"") ->  | F59: Samsung Galaxy Watch 42mm Rose Gold | G59: =IFERROR(VLOOKUP(F59,Tilbehør!A:C,3,FALSE),"") -> 2232 | H59: =IFERROR(VLOOKUP(F59,Tilbehør!A:B,2,FALSE),"") -> A22900 | I59: =IFERROR(VLOOKUP(H59,Lager!A:C,3,FALSE),"") -> 10
B60: Nokia 3310 3G DS | C60: =IFERROR(VLOOKUP(B60,HW!A:E,5,FALSE),"") -> 399.2 | F60: Samsung Galaxy Watch 42mm Black | G60: =IFERROR(VLOOKUP(F60,Tilbehør!A:C,3,FALSE),"") -> 2232 | H60: =IFERROR(VLOOKUP(F60,Tilbehør!A:B,2,FALSE),"") -> A22899 | I60: =IFERROR(VLOOKUP(H60,Lager!A:C,3,FALSE),"") -> 17
F61: Samsung Galaxy Watch Active2C Aluminium 40mm Gold | G61: =IFERROR(VLOOKUP(F61,Tilbehør!A:C,3,FALSE),"") -> 2016 | H61: =IFERROR(VLOOKUP(F61,Tilbehør!A:B,2,FALSE),"") -> A23260 | I61: =IFERROR(VLOOKUP(H61,Lager!A:C,3,FALSE),"") -> 3
B62: Jablocom Essence GSM | C62: =IFERROR(VLOOKUP(B62,HW!A:E,5,FALSE),"") -> 1159.2 | F62: Samsung Galaxy Watch Active2C Aluminium 44mm Black | G62: =IFERROR(VLOOKUP(F62,Tilbehør!A:C,3,FALSE),"") -> 2112 | H62: =IFERROR(VLOOKUP(F62,Tilbehør!A:B,2,FALSE),"") -> A23261 | I62: =IFERROR(VLOOKUP(H62,Lager!A:C,3,FALSE),"") -> 4
H63: =IFERROR(VLOOKUP(F63,Tilbehør!A:B,2,FALSE),"") ->  | I63: =IFERROR(VLOOKUP(H63,Lager!A:C,3,FALSE),"") -> 
A64: Brand | B64: Router | C64: Pris eksklusiv moms | F64: Garmin vivoactive 4S Powder Gray Silver | G64: =IFERROR(VLOOKUP(F64,Tilbehør!A:C,3,FALSE),"") -> 1920 | H64: =IFERROR(VLOOKUP(F64,Tilbehør!A:B,2,FALSE),"") -> A23935 | I64: =IFERROR(VLOOKUP(H64,Lager!A:C,3,FALSE),"") -> 18
B65: Huawei B535 | C65: =IFERROR(VLOOKUP(B65,HW!M:Q,5,FALSE),"") -> 1359.2 | F65: Garmin vivoactive 4 Shadow Gray Silver | G65: =IFERROR(VLOOKUP(F65,Tilbehør!A:C,3,FALSE),"") -> 2160 | H65: =IFERROR(VLOOKUP(F65,Tilbehør!A:B,2,FALSE),"") -> A23936 | I65: =IFERROR(VLOOKUP(H65,Lager!A:C,3,FALSE),"") -> 12
B66: Huawei E3372 | C66: =IFERROR(VLOOKUP(B66,HW!M:Q,5,FALSE),"") -> 479.2 | F66: Garmin VENU Blue Granite Silver | G66: =IFERROR(VLOOKUP(F66,Tilbehør!A:C,3,FALSE),"") -> 2400 | H66: =IFERROR(VLOOKUP(F66,Tilbehør!A:B,2,FALSE),"") -> A23937 | I66: =IFERROR(VLOOKUP(H66,Lager!A:C,3,FALSE),"") -> 2
B67: Huawei E5577 | C67: =IFERROR(VLOOKUP(B67,HW!M:Q,5,FALSE),"") -> 479.2 | F67: Garmin vivoactive 4S White Rose Gold | G67: =IFERROR(VLOOKUP(F67,Tilbehør!A:C,3,FALSE),"") -> 1920 | H67: =IFERROR(VLOOKUP(F67,Tilbehør!A:B,2,FALSE),"") -> A23938 | I67: =IFERROR(VLOOKUP(H67,Lager!A:C,3,FALSE),"") -> 5
B68: Huawei B2368 WTTx White | C68: =IFERROR(VLOOKUP(B68,HW!M:Q,5,FALSE),"") -> 2239.2 | F68: Garmin vivoactive 4 Black Slate | G68: =IFERROR(VLOOKUP(F68,Tilbehør!A:C,3,FALSE),"") -> 2160 | H68: =IFERROR(VLOOKUP(F68,Tilbehør!A:B,2,FALSE),"") -> A23940 | I68: =IFERROR(VLOOKUP(H68,Lager!A:C,3,FALSE),"") -> 2
C69: =IFERROR(VLOOKUP(B69,HW!M:Q,5,FALSE),"") ->  | F69: Garmin fenix 6S PRO Rose Gold w White Band Glass | G69: =IFERROR(VLOOKUP(F69,Tilbehør!A:C,3,FALSE),"") -> 4704 | H69: =IFERROR(VLOOKUP(F69,Tilbehør!A:B,2,FALSE),"") -> A23941 | I69: =IFERROR(VLOOKUP(H69,Lager!A:C,3,FALSE),"") -> 9
A70: Brand | B70: Tablet | C70: Pris eksklusiv moms | F70: Garmin fenix 6 PRO Slate Gray w Black Band Glass | G70: =IFERROR(VLOOKUP(F70,Tilbehør!A:C,3,FALSE),"") -> 4704 | H70: =IFERROR(VLOOKUP(F70,Tilbehør!A:B,2,FALSE),"") -> A23942 | I70: =IFERROR(VLOOKUP(H70,Lager!A:C,3,FALSE),"") -> 28
B71: Apple iPad Air 10 9 256GB | C71: =IFERROR(VLOOKUP(B71,HW!G:K,5,FALSE),"") -> 5919.2 | H71: =IFERROR(VLOOKUP(F71,Tilbehør!A:B,2,FALSE),"") ->  | I71: =IFERROR(VLOOKUP(H71,Lager!A:C,3,FALSE),"") -> 
B72: Apple iPad Air 10 9 64GB | C72: =IFERROR(VLOOKUP(B72,HW!G:K,5,FALSE),"") -> 4799.2 | I72: =IFERROR(VLOOKUP(H72,Lager!A:C,3,FALSE),"") -> 
B73: iPad 8th gen 10.2 128GB | C73: =IFERROR(VLOOKUP(B73,HW!G:K,5,FALSE),"") -> 3679.2
B74: iPad 8th gen 10.2 32GB | C74: =IFERROR(VLOOKUP(B74,HW!G:K,5,FALSE),"") -> 3039.2
B75: iPad Pro 11.0 2nd gen 128GB | C75: =IFERROR(VLOOKUP(B75,HW!G:K,5,FALSE),"") -> 6519.2
B76: iPad Pro 11.0 2nd gen 256GB | C76: =IFERROR(VLOOKUP(B76,HW!G:K,5,FALSE),"") -> 7143.2
B77: iPad Pro 12.9 4th gen 128GB | C77: =IFERROR(VLOOKUP(B77,HW!G:K,5,FALSE),"") -> 7839.2
B78: iPad Pro 12.9 4th gen 256GB | C78: =IFERROR(VLOOKUP(B78,HW!G:K,5,FALSE),"") -> 8479.2
C79: =IFERROR(VLOOKUP(B79,HW!G:K,5,FALSE),"") -> 
B80: Samsung Galaxy Tab S7 LTE | C80: =IFERROR(VLOOKUP(B80,HW!G:K,5,FALSE),"") -> 5359.2
B81: Galaxy Tab Active 2 4G | C81: =IFERROR(VLOOKUP(B81,HW!G:K,5,FALSE),"") -> 2879.2
C82: =IFERROR(VLOOKUP(B82,HW!G:K,5,FALSE),"") -> 

Sheet Producenter (hidden)
B1: Mobilproducenter | C1: Tabletproducenter | D1: Routerproducenter | E1: UrProducenter | F1: Tilbehørproducenter
B2: Apple | C2: Huawei | D2: Huawei | E2: Apple | F2: Apple
B3: Jablocom | C3: Apple | E3: Garmin | F3: Belkin
B4: Huawei | C4: Samsung | E4: Samsung | F4: JBL
B5: Motorola | F5: Bose
B6: Nokia | F6: Samsung
B7: OnePlus | F7: Google
B8: Razer | F8: Beoplay
B9: Samsung | F9: Jabra
B10: Xiaomi
B11: Fairphone

Sheet Bestillingark
A1: HARDWARE BESTILLINGSFORMULAR TIL 3BUSINESS
B5: LEVERINGSOPLYSNINGER | E5: FAKTURERINGSOPLYSNINGER
B6: Firmanavn | E6: Firmanavn
B7: Att. person | E7: Adresse
B8: Adresse | E8: Postnr. og by
B9: Postnr. og by | E9: CVR-nr.
B11: Bestillingsdato | E11: Udfyldt bestillingsformular bedes mailet som vedhæftet fil til:
E12: 3erhvervsaktivering@3.dk & CC Account Manager
B14: Bemærkninger
A19: Bestillinger | G19: Cover & panserglas | J19: Forsikring 89 kr/md | Q19: Ja
Q20: Nej
A21: Hardware | B21: Brand | C21: Model | D21: Farve | E21: Antal | F21: Pris | G21: Cover | H21: Panserglas | I21: Pris | J21: Forsikring? | K21: Angiv Numre: | O21: Farve | Q21: Cover | R21: Panserglass | U21: Cover A | V21: Panser A | W21: Pris cover | X21: Pris panser
F22: =IFERROR(ROUNDUP(IFERROR(VLOOKUP(C22,Prisark!B:C,2,FALSE)*E22,IF(OR(A22="Tilbehør",A22="UR"),IFERROR(VLOOKUP(C22,Prisark!F:G,2,FALSE)*Bestillingark!E22,""),"")),0),"") ->  | I22: =IFERROR(ROUNDUP(IFERROR(VLOOKUP(G22,Tilbehør!A:C,3,FALSE)*E22,"0")+IFERROR(VLOOKUP(H22,Tilbehør!A:C,3,FALSE)*E22,"0"),0),"") -> 0 | M22: =A22&"Producenter" -> Producenter | N22: =B22&A22 ->  | O22: =IFERROR(VLOOKUP(C22,Navnestyring!A:B,2,FALSE),IF(N22="","","nej")) ->  | P22: Valg | Q22: =IFERROR(VLOOKUP(C22,'Navnestyring tilbehør'!A:C,2,FALSE),IF(N22="","","nej")) ->  | R22: =IFERROR(VLOOKUP(C22,'Navnestyring tilbehør'!A:C,3,FALSE),IF(N22="","","nej")) ->  | T22: IKKE MULIGT | U22: =IFERROR(VLOOKUP(G22,Tilbehør!A:B,2,FALSE)," ") ->  | V22: =IFERROR(VLOOKUP(H22,Tilbehør!A:C,2,FALSE)," ") ->  | W22: =IFERROR(VLOOKUP(U22,Tilbehør!B:C,2,FALSE),"0") -> 0 | X22: =IFERROR(VLOOKUP(V22,Tilbehør!B:C,2,FALSE),"0") -> 0
F23: =IFERROR(ROUNDUP(IFERROR(VLOOKUP(C23,Prisark!B:C,2,FALSE)*E23,IF(OR(A23="Tilbehør",A23="UR"),IFERROR(VLOOKUP(C23,Prisark!F:G,2,FALSE)*Bestillingark!E23,""),"")),0),"") ->  | I23: =IFERROR(ROUNDUP(IFERROR(VLOOKUP(G23,Tilbehør!A:C,3,FALSE)*E23,"0")+IFERROR(VLOOKUP(H23,Tilbehør!A:C,3,FALSE)*E23,"0"),0),"") -> 0 | M23: =A23&"Producenter" -> Producenter | N23: =B23&A23 ->  | O23: =IFERROR(VLOOKUP(C23,Navnestyring!A:B,2,FALSE),IF(N23="","","nej")) ->  | P23: Valg | Q23: =IFERROR(VLOOKUP(C23,'Navnestyring tilbehør'!A:C,2,FALSE),IF(N23="","","nej")) ->  | R23: =IFERROR(VLOOKUP(C23,'Navnestyring tilbehør'!A:C,3,FALSE),IF(N23="","","nej")) ->  | T23: IKKE MULIGT | U23: =IFERROR(VLOOKUP(G23,Tilbehør!A:B,2,FALSE)," ") ->  | V23: =IFERROR(VLOOKUP(H23,Tilbehør!A:C,2,FALSE)," ") ->  | W23: =IFERROR(VLOOKUP(U23,Tilbehør!B:C,2,FALSE),"0") -> 0 | X23: =IFERROR(VLOOKUP(V23,Tilbehør!B:C,2,FALSE),"0") -> 0
F24: =IFERROR(ROUNDUP(IFERROR(VLOOKUP(C24,Prisark!B:C,2,FALSE)*E24,IF(OR(A24="Tilbehør",A24="UR"),IFERROR(VLOOKUP(C24,Prisark!F:G,2,FALSE)*Bestillingark!E24,""),"")),0),"") ->  | I24: =IFERROR(ROUNDUP(IFERROR(VLOOKUP(G24,Tilbehør!A:C,3,FALSE)*E24,"0")+IFERROR(VLOOKUP(H24,Tilbehør!A:C,3,FALSE)*E24,"0"),0),"") -> 0 | M24: Producenter | O24: =IFERROR(VLOOKUP(C24,Navnestyring!A:B,2,FALSE),IF(N24="","","nej")) ->  | P24: Valg | Q24: =IFERROR(VLOOKUP(C24,'Navnestyring tilbehør'!A:C,2,FALSE),IF(N24="","","nej")) ->  | R24: =IFERROR(VLOOKUP(C24,'Navnestyring tilbehør'!A:C,3,FALSE),IF(N24="","","nej")) ->  | T24: IKKE MULIGT | U24: =IFERROR(VLOOKUP(G24,Tilbehør!A:B,2,FALSE)," ") ->  | V24: =IFERROR(VLOOKUP(H24,Tilbehør!A:C,2,FALSE)," ") ->  | W24: =IFERROR(VLOOKUP(U24,Tilbehør!B:C,2,FALSE),"0") -> 0 | X24: =IFERROR(VLOOKUP(V24,Tilbehør!B:C,2,FALSE),"0") -> 0
F25: =IFERROR(ROUNDUP(IFERROR(VLOOKUP(C25,Prisark!B:C,2,FALSE)*E25,IF(OR(A25="Tilbehør",A25="UR"),IFERROR(VLOOKUP(C25,Prisark!F:G,2,FALSE)*Bestillingark!E25,""),"")),0),"") ->  | I25: =IFERROR(ROUNDUP(IFERROR(VLOOKUP(G25,Tilbehør!A:C,3,FALSE)*E25,"0")+IFERROR(VLOOKUP(H25,Tilbehør!A:C,3,FALSE)*E25,"0"),0),"") -> 0 | M25: Producenter | O25: =IFERROR(VLOOKUP(C25,Navnestyring!A:B,2,FALSE),IF(N25="","","nej")) ->  | P25: Valg | Q25: =IFERROR(VLOOKUP(C25,'Navnestyring tilbehør'!A:C,2,FALSE),IF(N25="","","nej")) ->  | R25: =IFERROR(VLOOKUP(C25,'Navnestyring tilbehør'!A:C,3,FALSE),IF(N25="","","nej")) ->  | T25: IKKE MULIGT | U25: =IFERROR(VLOOKUP(G25,Tilbehør!A:B,2,FALSE)," ") ->  | V25: =IFERROR(VLOOKUP(H25,Tilbehør!A:C,2,FALSE)," ") ->  | W25: =IFERROR(VLOOKUP(U25,Tilbehør!B:C,2,FALSE),"0") -> 0 | X25: =IFERROR(VLOOKUP(V25,Tilbehør!B:C,2,FALSE),"0") -> 0
F26: =IFERROR(ROUNDUP(IFERROR(VLOOKUP(C26,Prisark!B:C,2,FALSE)*E26,IF(OR(A26="Tilbehør",A26="UR"),IFERROR(VLOOKUP(C26,Prisark!F:G,2,FALSE)*Bestillingark!E26,""),"")),0),"") ->  | I26: =IFERROR(ROUNDUP(IFERROR(VLOOKUP(G26,Tilbehør!A:C,3,FALSE)*E26,"0")+IFERROR(VLOOKUP(H26,Tilbehør!A:C,3,FALSE)*E26,"0"),0),"") -> 0 | M26: Producenter | O26: =IFERROR(VLOOKUP(C26,Navnestyring!A:B,2,FALSE),IF(N26="","","nej")) ->  | P26: Valg | Q26: =IFERROR(VLOOKUP(C26,'Navnestyring tilbehør'!A:C,2,FALSE),IF(N26="","","nej")) ->  | R26: =IFERROR(VLOOKUP(C26,'Navnestyring tilbehør'!A:C,3,FALSE),IF(N26="","","nej")) ->  | T26: IKKE MULIGT | U26: =IFERROR(VLOOKUP(G26,Tilbehør!A:B,2,FALSE)," ") ->  | V26: =IFERROR(VLOOKUP(H26,Tilbehør!A:C,2,FALSE)," ") ->  | W26: =IFERROR(VLOOKUP(U26,Tilbehør!B:C,2,FALSE),"0") -> 0 | X26: =IFERROR(VLOOKUP(V26,Tilbehør!B:C,2,FALSE),"0") -> 0
F27: =IFERROR(ROUNDUP(IFERROR(VLOOKUP(C27,Prisark!B:C,2,FALSE)*E27,IF(OR(A27="Tilbehør",A27="UR"),IFERROR(VLOOKUP(C27,Prisark!F:G,2,FALSE)*Bestillingark!E27,""),"")),0),"") ->  | I27: =IFERROR(ROUNDUP(IFERROR(VLOOKUP(G27,Tilbehør!A:C,3,FALSE)*E27,"0")+IFERROR(VLOOKUP(H27,Tilbehør!A:C,3,FALSE)*E27,"0"),0),"") -> 0 | M27: Producenter | O27: =IFERROR(VLOOKUP(C27,Navnestyring!A:B,2,FALSE),IF(N27="","","nej")) ->  | P27: Valg | Q27: =IFERROR(VLOOKUP(C27,'Navnestyring tilbehør'!A:C,2,FALSE),IF(N27="","","nej")) ->  | R27: =IFERROR(VLOOKUP(C27,'Navnestyring tilbehør'!A:C,3,FALSE),IF(N27="","","nej")) ->  | T27: IKKE MULIGT | U27: =IFERROR(VLOOKUP(G27,Tilbehør!A:B,2,FALSE)," ") ->  | V27: =IFERROR(VLOOKUP(H27,Tilbehør!A:C,2,FALSE)," ") ->  | W27: =IFERROR(VLOOKUP(U27,Tilbehør!B:C,2,FALSE),"0") -> 0 | X27: =IFERROR(VLOOKUP(V27,Tilbehør!B:C,2,FALSE),"0") -> 0
F28: =IFERROR(ROUNDUP(IFERROR(VLOOKUP(C28,Prisark!B:C,2,FALSE)*E28,IF(OR(A28="Tilbehør",A28="UR"),IFERROR(VLOOKUP(C28,Prisark!F:G,2,FALSE)*Bestillingark!E28,""),"")),0),"") ->  | I28: =IFERROR(ROUNDUP(IFERROR(VLOOKUP(G28,Tilbehør!A:C,3,FALSE)*E28,"0")+IFERROR(VLOOKUP(H28,Tilbehør!A:C,3,FALSE)*E28,"0"),0),"") -> 0 | M28: Producenter | O28: =IFERROR(VLOOKUP(C28,Navnestyring!A:B,2,FALSE),IF(N28="","","nej")) ->  | P28: Valg | Q28: =IFERROR(VLOOKUP(C28,'Navnestyring tilbehør'!A:C,2,FALSE),IF(N28="","","nej")) ->  | R28: =IFERROR(VLOOKUP(C28,'Navnestyring tilbehør'!A:C,3,FALSE),IF(N28="","","nej")) ->  | T28: IKKE MULIGT | U28: =IFERROR(VLOOKUP(G28,Tilbehør!A:B,2,FALSE)," ") ->  | V28: =IFERROR(VLOOKUP(H28,Tilbehør!A:C,2,FALSE)," ") ->  | W28: =IFERROR(VLOOKUP(U28,Tilbehør!B:C,2,FALSE),"0") -> 0 | X28: =IFERROR(VLOOKUP(V28,Tilbehør!B:C,2,FALSE),"0") -> 0
F29: =IFERROR(ROUNDUP(IFERROR(VLOOKUP(C29,Prisark!B:C,2,FALSE)*E29,IF(OR(A29="Tilbehør",A29="UR"),IFERROR(VLOOKUP(C29,Prisark!F:G,2,FALSE)*Bestillingark!E29,""),"")),0),"") ->  | I29: =IFERROR(ROUNDUP(IFERROR(VLOOKUP(G29,Tilbehør!A:C,3,FALSE)*E29,"0")+IFERROR(VLOOKUP(H29,Tilbehør!A:C,3,FALSE)*E29,"0"),0),"") -> 0 | M29: Producenter | O29: =IFERROR(VLOOKUP(C29,Navnestyring!A:B,2,FALSE),IF(N29="","","nej")) ->  | P29: Valg | Q29: =IFERROR(VLOOKUP(C29,'Navnestyring tilbehør'!A:C,2,FALSE),IF(N29="","","nej")) ->  | R29: =IFERROR(VLOOKUP(C29,'Navnestyring tilbehør'!A:C,3,FALSE),IF(N29="","","nej")) ->  | T29: IKKE MULIGT | U29: =IFERROR(VLOOKUP(G29,Tilbehør!A:B,2,FALSE)," ") ->  | V29: =IFERROR(VLOOKUP(H29,Tilbehør!A:C,2,FALSE)," ") ->  | W29: =IFERROR(VLOOKUP(U29,Tilbehør!B:C,2,FALSE),"0") -> 0 | X29: =IFERROR(VLOOKUP(V29,Tilbehør!B:C,2,FALSE),"0") -> 0
A30: Total | E30: =SUM(E22:E29) -> 0 | F30: =SUM(F22:F29) -> 0 | I30: =SUM(I22:I29) -> 0 | J30: =SUMIF(J22:J29,"ja",E22:E29)*89 -> 0
A32: Total engangsomkostning | E32: =F30+I30 -> 0 | P32: =OR($O22="nej",$M22="Routerproducenter") -> FALSE

Sheet HW (hidden)
A1: Pris gældende fra | G1: Pris gældende fra | M1: Pris gældende fra
A2: 2020-12-15T08:47:34 | D2: Pris uden abonnement inkl. moms | E2: Pris uden abonnement ex. moms | G2: 2020-09-16T11:44:09 | J2: Pris uden abonnement inkl. moms | K2: Pris uden abonnement ex. moms | M2: 2020-01-14 | P2: Pris inkl moms | Q2: Pris ex moms
A3: Apple iPhone 11 128GB | D3: 6799 | E3: 5439.2 | F3: =IFERROR(VLOOKUP(A3,Prisark!B:B,1,FALSE),"IKKE PÅ ARKET") -> IKKE PÅ ARKET | G3: Apple iPad 6th gen 128GB | J3: 4599 | K3: 3679.2 | L3: =IFERROR(VLOOKUP(G3,Prisark!B:B,1,FALSE),"IKKE PÅ ARKET") -> IKKE PÅ ARKET | M3: Huawei E3531 3G | P3: 199 | Q3: 159.2
A4: Apple iPhone 11 128GB NEW (OBS. UDEN OPLADER) | D4: 5799 | E4: 4639.2 | F4: =IFERROR(VLOOKUP(A4,Prisark!B:B,1,FALSE),"IKKE PÅ ARKET") -> Apple iPhone 11 128GB NEW (OBS. UDEN OPLADER) | G4: Apple iPad 6th gen 32GB | J4: 3899 | K4: 3119.2 | L4: =IFERROR(VLOOKUP(G4,Prisark!B:B,1,FALSE),"IKKE PÅ ARKET") -> IKKE PÅ ARKET | M4: Huawei E3372 | P4: 599 | Q4: 479.2
A5: Apple iPhone 11 256GB | D5: 7699 | E5: 6159.2 | F5: =IFERROR(VLOOKUP(A5,Prisark!B:B,1,FALSE),"IKKE PÅ ARKET") -> IKKE PÅ ARKET | G5: Apple iPad 7th generation 128GB | J5: 4799 | K5: 3839.2 | L5: =IFERROR(VLOOKUP(G5,Prisark!B:B,1,FALSE),"IKKE PÅ ARKET") -> IKKE PÅ ARKET | M5: Huawei B315 | P5: 1199 | Q5: 959.2
A6: Apple iPhone 11 64GB | D6: 6299 | E6: 5039.2 | F6: =IFERROR(VLOOKUP(A6,Prisark!B:B,1,FALSE),"IKKE PÅ ARKET") -> IKKE PÅ ARKET | G6: Apple iPad 7th generation 32GB | J6: 4099 | K6: 3279.2 | L6: =IFERROR(VLOOKUP(G6,Prisark!B:B,1,FALSE),"IKKE PÅ ARKET") -> IKKE PÅ ARKET | M6: Huawei B525 | P6: 1699 | Q6: 1359.2
A7: Apple iPhone 11 64GB NEW (OBS. UDEN OPLADER) | D7: 5299 | E7: 4239.2 | F7: =IFERROR(VLOOKUP(A7,Prisark!B:B,1,FALSE),"IKKE PÅ ARKET") -> Apple iPhone 11 64GB NEW (OBS. UDEN OPLADER) | G7: Apple iPad Air 10 9 256GB | J7: 7399 | K7: 5919.2 | L7: =IFERROR(VLOOKUP(G7,Prisark!B:B,1,FALSE),"IKKE PÅ ARKET") -> Apple iPad Air 10 9 256GB | M7: Huawei B535 | P7: 1699 | Q7: 1359.2
A8: Apple iPhone 11 Pro 256GB | D8: 10299 | E8: 8239.2 | F8: =IFERROR(VLOOKUP(A8,Prisark!B:B,1,FALSE),"IKKE PÅ ARKET") -> Apple iPhone 11 Pro 256GB | G8: Apple iPad Air 10 9 64GB | J8: 5999 | K8: 4799.2 | L8: =IFERROR(VLOOKUP(G8,Prisark!B:B,1,FALSE),"IKKE PÅ ARKET") -> Apple iPad Air 10 9 64GB | M8: Huawei E5180 | P8: 1399 | Q8: 1119.2
A9: Apple iPhone 11 Pro 512GB | D9: 12099 | E9: 9679.2 | F9: =IFERROR(VLOOKUP(A9,Prisark!B:B,1,FALSE),"IKKE PÅ ARKET") -> IKKE PÅ ARKET | G9: Apple iPad Air 10.5 256GB | J9: 6799 | K9: 5439.2 | L9: =IFERROR(VLOOKUP(G9,Prisark!B:B,1,FALSE),"IKKE PÅ ARKET") -> IKKE PÅ ARKET | M9: Huawei E5186 | P9: 1699 | Q9: 1359.2
A10: Apple iPhone 11 Pro 64GB | D10: 8899 | E10: 7119.2 | F10: =IFERROR(VLOOKUP(A10,Prisark!B:B,1,FALSE),"IKKE PÅ ARKET") -> Apple iPhone 11 Pro 64GB | G10: Apple iPad Air 10.5 64GB | J10: 5399 | K10: 4319.2 | L10: =IFERROR(VLOOKUP(G10,Prisark!B:B,1,FALSE),"IKKE PÅ ARKET") -> IKKE PÅ ARKET | M10: Huawei E5373 Mobile WIFI | P10: 799 | Q10: 639.2
A11: Apple iPhone 11 Pro Max 256GB | D11: 11199 | E11: 8959.2 | F11: =IFERROR(VLOOKUP(A11,Prisark!B:B,1,FALSE),"IKKE PÅ ARKET") -> IKKE PÅ ARKET | G11: Apple iPad Mini 2 32GB | J11: 3699 | K11: 2959.2 | L11: =IFERROR(VLOOKUP(G11,Prisark!B:B,1,FALSE),"IKKE PÅ ARKET") -> IKKE PÅ ARKET | M11: Huawei E5577 | P11: 599 | Q11: 479.2
A12: Apple iPhone 11 Pro Max 512GB | D12: 13099 | E12: 10479.2 | F12: =IFERROR(VLOOKUP(A12,Prisark!B:B,1,FALSE),"IKKE PÅ ARKET") -> IKKE PÅ ARKET | G12: Apple iPad Mini 3 128GB | J12: 5099 | K12: 4079.2 | L12: =IFERROR(VLOOKUP(G12,Prisark!B:B,1,FALSE),"IKKE PÅ ARKET") -> IKKE PÅ ARKET | M12: Huawei B2368 WTTx White | P12: 2799 | Q12: 2239.2
A13: Apple iPhone 11 Pro Max 64GB | D13: 9799 | E13: 7839.2 | F13: =IFERROR(VLOOKUP(A13,Prisark!B:B,1,FALSE),"IKKE PÅ ARKET") -> IKKE PÅ ARKET | G13: Apple iPad Mini 3 16GB | J13: 3499 | K13: 2799.2 | L13: =IFERROR(VLOOKUP(G13,Prisark!B:B,1,FALSE),"IKKE PÅ ARKET") -> IKKE PÅ ARKET
A14: Apple iPhone 12 128GB (OBS. UDEN OPLADER) | D14: 7499 | E14: 5999.2 | F14: =IFERROR(VLOOKUP(A14,Prisark!B:B,1,FALSE),"IKKE PÅ ARKET") -> Apple iPhone 12 128GB (OBS. UDEN OPLADER) | G14: Apple iPad Mini 5th gen 256GB | J14: 6099 | K14: 4879.2 | L14: =IFERROR(VLOOKUP(G14,Prisark!B:B,1,FALSE),"IKKE PÅ ARKET") -> IKKE PÅ ARKET
A15: Apple iPhone 12 256GB (OBS. UDEN OPLADER) | D15: 8399 | E15: 6719.2 | F15: =IFERROR(VLOOKUP(A15,Prisark!B:B,1,FALSE),"IKKE PÅ ARKET") -> Apple iPhone 12 256GB (OBS. UDEN OPLADER) | G15: Apple iPad Mini 5th gen 64GB | J15: 4699 | K15: 3759.2 | L15: =IFERROR(VLOOKUP(G15,Prisark!B:B,1,FALSE),"IKKE PÅ ARKET") -> IKKE PÅ ARKET
A16: Apple iPhone 12 64GB (OBS. UDEN OPLADER) | D16: 6999 | E16: 5599.2 | F16: =IFERROR(VLOOKUP(A16,Prisark!B:B,1,FALSE),"IKKE PÅ ARKET") -> Apple iPhone 12 64GB (OBS. UDEN OPLADER) | G16: Apple iPad Pro 10.5 256GB | J16: 7799 | K16: 6239.2 | L16: =IFERROR(VLOOKUP(G16,Prisark!B:B,1,FALSE),"IKKE PÅ ARKET") -> IKKE PÅ ARKET
A17: Apple iPhone 12 Mini 128GB (OBS. UDEN OPLADER) | D17: 6699 | E17: 5359.2 | F17: =IFERROR(VLOOKUP(A17,Prisark!B:B,1,FALSE),"IKKE PÅ ARKET") -> Apple iPhone 12 mini 128GB (OBS. UDEN OPLADER) | G17: Apple iPad Pro 10.5 64GB | J17: 6799 | K17: 5439.2 | L17: =IFERROR(VLOOKUP(G17,Prisark!B:B,1,FALSE),"IKKE PÅ ARKET") -> IKKE PÅ ARKET
A18: Apple iPhone 12 Mini 256GB (OBS. UDEN OPLADER) | D18: 7599 | E18: 6079.2 | F18: =IFERROR(VLOOKUP(A18,Prisark!B:B,1,FALSE),"IKKE PÅ ARKET") -> Apple iPhone 12 mini 256GB (OBS. UDEN OPLADER) | G18: Apple iPad Pro 11.0 256GB | J18: 9499 | K18: 7599.2 | L18: =IFERROR(VLOOKUP(G18,Prisark!B:B,1,FALSE),"IKKE PÅ ARKET") -> IKKE PÅ ARKET
A19: Apple iPhone 12 Mini 64GB (OBS. UDEN OPLADER) | D19: 6199 | E19: 4959.2 | F19: =IFERROR(VLOOKUP(A19,Prisark!B:B,1,FALSE),"IKKE PÅ ARKET") -> Apple iPhone 12 mini 64GB (OBS. UDEN OPLADER) | G19: Apple iPad Pro 11.0 64GB | J19: 8099 | K19: 6479.2 | L19: =IFERROR(VLOOKUP(G19,Prisark!B:B,1,FALSE),"IKKE PÅ ARKET") -> IKKE PÅ ARKET
A20: Apple iPhone 12 Pro 128GB (OBS. UDEN OPLADER) | D20: 8899 | E20: 7119.2 | F20: =IFERROR(VLOOKUP(A20,Prisark!B:B,1,FALSE),"IKKE PÅ ARKET") -> Apple iPhone 12 Pro 128GB (OBS. UDEN OPLADER) | G20: Apple iPad Pro 12.9 2nd gen 256GB | J20: 9199 | K20: 7359.2 | L20: =IFERROR(VLOOKUP(G20,Prisark!B:B,1,FALSE),"IKKE PÅ ARKET") -> IKKE PÅ ARKET
A21: Apple iPhone 12 Pro 256GB (OBS. UDEN OPLADER) | D21: 9799 | E21: 7839.2 | F21: =IFERROR(VLOOKUP(A21,Prisark!B:B,1,FALSE),"IKKE PÅ ARKET") -> Apple iPhone 12 Pro 256GB (OBS. UDEN OPLADER) | G21: Apple iPad Pro 12.9 2nd gen 64GB | J21: 8199 | K21: 6559.2 | L21: =IFERROR(VLOOKUP(G21,Prisark!B:B,1,FALSE),"IKKE PÅ ARKET") -> IKKE PÅ ARKET
A22: Apple iPhone 12 Pro 512GB (OBS. UDEN OPLADER) | D22: 11599 | E22: 9279.2 | F22: =IFERROR(VLOOKUP(A22,Prisark!B:B,1,FALSE),"IKKE PÅ ARKET") -> Apple iPhone 12 Pro 512GB (OBS. UDEN OPLADER) | G22: Apple iPad Pro 12.9 3rd gen 256GB | J22: 11499 | K22: 9199.2 | L22: =IFERROR(VLOOKUP(G22,Prisark!B:B,1,FALSE),"IKKE PÅ ARKET") -> IKKE PÅ ARKET
A23: Apple iPhone 12 Pro Max 128GB (OBS. UDEN OPLADER) | D23: 9699 | E23: 7759.2 | F23: =IFERROR(VLOOKUP(A23,Prisark!B:B,1,FALSE),"IKKE PÅ ARKET") -> Apple iPhone 12 Pro Max 128GB (OBS. UDEN OPLADER) | G23: Apple iPad Pro 12.9 3rd gen 64GB | J23: 10099 | K23: 8079.2 | L23: =IFERROR(VLOOKUP(G23,Prisark!B:B,1,FALSE),"IKKE PÅ ARKET") -> IKKE PÅ ARKET
A24: Apple iPhone 12 Pro Max 256GB (OBS. UDEN OPLADER) | D24: 10599 | E24: 8479.2 | F24: =IFERROR(VLOOKUP(A24,Prisark!B:B,1,FALSE),"IKKE PÅ ARKET") -> Apple iPhone 12 Pro Max 256GB (OBS. UDEN OPLADER) | G24: Apple iPad Pro 128GB | J24: 9299 | K24: 7439.2 | L24: =IFERROR(VLOOKUP(G24,Prisark!B:B,1,FALSE),"IKKE PÅ ARKET") -> IKKE PÅ ARKET
A25: Apple iPhone 12 Pro Max 512GB (OBS. UDEN OPLADER) | D25: 12399 | E25: 9919.2 | F25: =IFERROR(VLOOKUP(A25,Prisark!B:B,1,FALSE),"IKKE PÅ ARKET") -> Apple iPhone 12 Pro Max 512GB (OBS. UDEN OPLADER) | G25: Apple iPad Pro 9.7 128GB | J25: 7799 | K25: 6239.2 | L25: =IFERROR(VLOOKUP(G25,Prisark!B:B,1,FALSE),"IKKE PÅ ARKET") -> IKKE PÅ ARKET
A26: Apple iPhone 6 128GB | D26: 6299 | E26: 5039.2 | F26: =IFERROR(VLOOKUP(A26,Prisark!B:B,1,FALSE),"IKKE PÅ ARKET") -> IKKE PÅ ARKET | G26: Apple iPad Pro 9.7 32GB | J26: 6399 | K26: 5119.2 | L26: =IFERROR(VLOOKUP(G26,Prisark!B:B,1,FALSE),"IKKE PÅ ARKET") -> IKKE PÅ ARKET
A27: Apple iPhone 6 16GB | D27: 4799 | E27: 3839.2 | F27: =IFERROR(VLOOKUP(A27,Prisark!B:B,1,FALSE),"IKKE PÅ ARKET") -> IKKE PÅ ARKET | G27: Galaxy Tab Active 2 4G | J27: 3599 | K27: 2879.2 | L27: =IFERROR(VLOOKUP(G27,Prisark!B:B,1,FALSE),"IKKE PÅ ARKET") -> Galaxy Tab Active 2 4G
A28: Apple iPhone 6S 128GB | D28: 5599 | E28: 4479.2 | F28: =IFERROR(VLOOKUP(A28,Prisark!B:B,1,FALSE),"IKKE PÅ ARKET") -> IKKE PÅ ARKET | G28: Galaxy Tab S2 9.7 32GB New Version | J28: 4299 | K28: 3439.2 | L28: =IFERROR(VLOOKUP(G28,Prisark!B:B,1,FALSE),"IKKE PÅ ARKET") -> IKKE PÅ ARKET
A29: Apple iPhone 6S Plus 16GB | D29: 5699 | E29: 4559.2 | F29: =IFERROR(VLOOKUP(A29,Prisark!B:B,1,FALSE),"IKKE PÅ ARKET") -> IKKE PÅ ARKET | G29: Huawei MediaTab T3 10 16GB | J29: 2199 | K29: 1759.2 | L29: =IFERROR(VLOOKUP(G29,Prisark!B:B,1,FALSE),"IKKE PÅ ARKET") -> IKKE PÅ ARKET
A30: Apple iPhone 7 128GB | D30: 3349 | E30: 2679.2 | F30: =IFERROR(VLOOKUP(A30,Prisark!B:B,1,FALSE),"IKKE PÅ ARKET") -> IKKE PÅ ARKET | G30: Huawei Mediatab T3 32GB | J30: 2199 | K30: 1759.2 | L30: =IFERROR(VLOOKUP(G30,Prisark!B:B,1,FALSE),"IKKE PÅ ARKET") -> IKKE PÅ ARKET
A31: Apple iPhone 7 256GB | D31: 6699 | E31: 5359.2 | F31: =IFERROR(VLOOKUP(A31,Prisark!B:B,1,FALSE),"IKKE PÅ ARKET") -> IKKE PÅ ARKET | G31: Samsung Galaxy Tab A 10.1 2019 32GB | J31: 2199 | K31: 1759.2 | L31: =IFERROR(VLOOKUP(G31,Prisark!B:B,1,FALSE),"IKKE PÅ ARKET") -> IKKE PÅ ARKET
A32: Apple iPhone 7 32GB | D32: 2849 | E32: 2279.2 | F32: =IFERROR(VLOOKUP(A32,Prisark!B:B,1,FALSE),"IKKE PÅ ARKET") -> IKKE PÅ ARKET | G32: Samsung Galaxy Tab A 10.1 32GB | J32: 2399 | K32: 1919.2 | L32: =IFERROR(VLOOKUP(G32,Prisark!B:B,1,FALSE),"IKKE PÅ ARKET") -> IKKE PÅ ARKET
A33: Apple iPhone 7 Plus 128GB | D33: 5999 | E33: 4799.2 | F33: =IFERROR(VLOOKUP(A33,Prisark!B:B,1,FALSE),"IKKE PÅ ARKET") -> IKKE PÅ ARKET | G33: Samsung Galaxy Tab A7 LTE | J33: 2399 | K33: 1919.2 | L33: =IFERROR(VLOOKUP(G33,Prisark!B:B,1,FALSE),"IKKE PÅ ARKET") -> IKKE PÅ ARKET
A34: Apple iPhone 7 Plus 256GB | D34: 7799 | E34: 6239.2 | F34: =IFERROR(VLOOKUP(A34,Prisark!B:B,1,FALSE),"IKKE PÅ ARKET") -> IKKE PÅ ARKET | G34: Samsung Galaxy Tab S 3 9.7 | J34: 5999 | K34: 4799.2 | L34: =IFERROR(VLOOKUP(G34,Prisark!B:B,1,FALSE),"IKKE PÅ ARKET") -> IKKE PÅ ARKET
A35: Apple iPhone 7 Plus 32GB | D35: 5099 | E35: 4079.2 | F35: =IFERROR(VLOOKUP(A35,Prisark!B:B,1,FALSE),"IKKE PÅ ARKET") -> IKKE PÅ ARKET | G35: Samsung Galaxy Tab S4 | J35: 5999 | K35: 4799.2 | L35: =IFERROR(VLOOKUP(G35,Prisark!B:B,1,FALSE),"IKKE PÅ ARKET") -> IKKE PÅ ARKET
A36: Apple iPhone 8 128GB | D36: 4649 | E36: 3719.2 | F36: =IFERROR(VLOOKUP(A36,Prisark!B:B,1,FALSE),"IKKE PÅ ARKET") -> IKKE PÅ ARKET | G36: Samsung Galaxy Tab S6 128GB | J36: 6499 | K36: 5199.2 | L36: =IFERROR(VLOOKUP(G36,Prisark!B:B,1,FALSE),"IKKE PÅ ARKET") -> IKKE PÅ ARKET
A37: Apple iPhone 8 256GB | D37: 6699 | E37: 5359.2 | F37: =IFERROR(VLOOKUP(A37,Prisark!B:B,1,FALSE),"IKKE PÅ ARKET") -> IKKE PÅ ARKET | G37: Samsung Galaxy Tab S7 LTE | J37: 6699 | K37: 5359.2 | L37: =IFERROR(VLOOKUP(G37,Prisark!B:B,1,FALSE),"IKKE PÅ ARKET") -> Samsung Galaxy Tab S7 LTE
A38: Apple iPhone 8 64GB | D38: 4199 | E38: 3359.2 | F38: =IFERROR(VLOOKUP(A38,Prisark!B:B,1,FALSE),"IKKE PÅ ARKET") -> IKKE PÅ ARKET | G38: iPad 8th gen 10.2 128GB | J38: 4599 | K38: 3679.2 | L38: =IFERROR(VLOOKUP(G38,Prisark!B:B,1,FALSE),"IKKE PÅ ARKET") -> iPad 8th gen 10.2 128GB
A39: Apple iPhone 8 Plus 256GB | D39: 7599 | E39: 6079.2 | F39: =IFERROR(VLOOKUP(A39,Prisark!B:B,1,FALSE),"IKKE PÅ ARKET") -> IKKE PÅ ARKET | G39: iPad 8th gen 10.2 32GB | J39: 3799 | K39: 3039.2 | L39: =IFERROR(VLOOKUP(G39,Prisark!B:B,1,FALSE),"IKKE PÅ ARKET") -> iPad 8th gen 10.2 32GB
A40: Apple iPhone 8 Plus 64GB | D40: 4999 | E40: 3999.2 | F40: =IFERROR(VLOOKUP(A40,Prisark!B:B,1,FALSE),"IKKE PÅ ARKET") -> IKKE PÅ ARKET | G40: iPad Pro 11.0 2nd gen 128GB | J40: 8149 | K40: 6519.2 | L40: =IFERROR(VLOOKUP(G40,Prisark!B:B,1,FALSE),"IKKE PÅ ARKET") -> iPad Pro 11.0 2nd gen 128GB
A41: Apple iPhone SE 2nd gen 128GB | D41: 4199 | E41: 3359.2 | F41: =IFERROR(VLOOKUP(A41,Prisark!B:B,1,FALSE),"IKKE PÅ ARKET") -> IKKE PÅ ARKET | G41: iPad Pro 11.0 2nd gen 256GB | J41: 8929 | K41: 7143.2 | L41: =IFERROR(VLOOKUP(G41,Prisark!B:B,1,FALSE),"IKKE PÅ ARKET") -> iPad Pro 11.0 2nd gen 256GB
A42: Apple iPhone SE 2nd gen 128GB NEW (OBS. UDEN OPLADER) | D42: 4199 | E42: 3359.2 | F42: =IFERROR(VLOOKUP(A42,Prisark!B:B,1,FALSE),"IKKE PÅ ARKET") -> Apple iPhone SE 2nd gen 128GB NEW (OBS. UDEN OPLADER) | G42: iPad Pro 12.9 4th gen 128GB | J42: 9799 | K42: 7839.2 | L42: =IFERROR(VLOOKUP(G42,Prisark!B:B,1,FALSE),"IKKE PÅ ARKET") -> iPad Pro 12.9 4th gen 128GB
A43: Apple iPhone SE 2nd gen 256GB | D43: 5099 | E43: 4079.2 | F43: =IFERROR(VLOOKUP(A43,Prisark!B:B,1,FALSE),"IKKE PÅ ARKET") -> IKKE PÅ ARKET | G43: iPad Pro 12.9 4th gen 256GB | J43: 10599 | K43: 8479.2 | L43: =IFERROR(VLOOKUP(G43,Prisark!B:B,1,FALSE),"IKKE PÅ ARKET") -> iPad Pro 12.9 4th gen 256GB
A44: Apple iPhone SE 2nd gen 256GB NEW (OBS. UDEN OPLADER) | D44: 5099 | E44: 4079.2 | F44: =IFERROR(VLOOKUP(A44,Prisark!B:B,1,FALSE),"IKKE PÅ ARKET") -> Apple iPhone SE 2nd gen 256GB NEW (OBS. UDEN OPLADER) | L44: =IFERROR(VLOOKUP(G44,Prisark!B:B,1,FALSE),"IKKE PÅ ARKET") -> IKKE PÅ ARKET
A45: Apple iPhone SE 2nd gen 64GB | D45: 3699 | E45: 2959.2 | F45: =IFERROR(VLOOKUP(A45,Prisark!B:B,1,FALSE),"IKKE PÅ ARKET") -> IKKE PÅ ARKET | L45: =IFERROR(VLOOKUP(G45,Prisark!B:B,1,FALSE),"IKKE PÅ ARKET") -> IKKE PÅ ARKET
A46: Apple iPhone SE 2nd gen 64GB NEW (OBS. UDEN OPLADER) | D46: 3699 | E46: 2959.2 | F46: =IFERROR(VLOOKUP(A46,Prisark!B:B,1,FALSE),"IKKE PÅ ARKET") -> Apple iPhone SE 2nd gen 64GB NEW (OBS. UDEN OPLADER) | L46: =IFERROR(VLOOKUP(G46,Prisark!B:B,1,FALSE),"IKKE PÅ ARKET") -> IKKE PÅ ARKET
A47: Apple iPhone X 256GB | D47: 10249 | E47: 8199.2 | F47: =IFERROR(VLOOKUP(A47,Prisark!B:B,1,FALSE),"IKKE PÅ ARKET") -> IKKE PÅ ARKET | L47: =IFERROR(VLOOKUP(G47,Prisark!B:B,1,FALSE),"IKKE PÅ ARKET") -> IKKE PÅ ARKET
A48: Apple iPhone X 64GB | D48: 8899 | E48: 7119.2 | F48: =IFERROR(VLOOKUP(A48,Prisark!B:B,1,FALSE),"IKKE PÅ ARKET") -> IKKE PÅ ARKET | L48: =IFERROR(VLOOKUP(G48,Prisark!B:B,1,FALSE),"IKKE PÅ ARKET") -> IKKE PÅ ARKET
A49: Apple iPhone XS 256GB | D49: 9399 | E49: 7519.2 | F49: =IFERROR(VLOOKUP(A49,Prisark!B:B,1,FALSE),"IKKE PÅ ARKET") -> IKKE PÅ ARKET | L49: =IFERROR(VLOOKUP(G49,Prisark!B:B,1,FALSE),"IKKE PÅ ARKET") -> IKKE PÅ ARKET
A50: Apple iPhone XS 512GB | D50: 12099 | E50: 9679.2 | F50: =IFERROR(VLOOKUP(A50,Prisark!B:B,1,FALSE),"IKKE PÅ ARKET") -> IKKE PÅ ARKET | L50: =IFERROR(VLOOKUP(G50,Prisark!B:B,1,FALSE),"IKKE PÅ ARKET") -> IKKE PÅ ARKET
A51: Apple iPhone XS 64GB | D51: 7999 | E51: 6399.2 | F51: =IFERROR(VLOOKUP(A51,Prisark!B:B,1,FALSE),"IKKE PÅ ARKET") -> IKKE PÅ ARKET | L51: =IFERROR(VLOOKUP(G51,Prisark!B:B,1,FALSE),"IKKE PÅ ARKET") -> IKKE PÅ ARKET
A52: Apple iPhone XS Max 256GB | D52: 11149 | E52: 8919.2 | F52: =IFERROR(VLOOKUP(A52,Prisark!B:B,1,FALSE),"IKKE PÅ ARKET") -> IKKE PÅ ARKET | L52: =IFERROR(VLOOKUP(G52,Prisark!B:B,1,FALSE),"IKKE PÅ ARKET") -> IKKE PÅ ARKET
A53: Apple iPhone XS Max 512GB | D53: 12999 | E53: 10399.2 | F53: =IFERROR(VLOOKUP(A53,Prisark!B:B,1,FALSE),"IKKE PÅ ARKET") -> IKKE PÅ ARKET | L53: =IFERROR(VLOOKUP(G53,Prisark!B:B,1,FALSE),"IKKE PÅ ARKET") -> IKKE PÅ ARKET
A54: Apple iPhone XS Max 64GB | D54: 9799 | E54: 7839.2 | F54: =IFERROR(VLOOKUP(A54,Prisark!B:B,1,FALSE),"IKKE PÅ ARKET") -> IKKE PÅ ARKET | L54: =IFERROR(VLOOKUP(G54,Prisark!B:B,1,FALSE),"IKKE PÅ ARKET") -> IKKE PÅ ARKET
A55: Apple iPhone Xr 128GB | D55: 5949 | E55: 4759.2 | F55: =IFERROR(VLOOKUP(A55,Prisark!B:B,1,FALSE),"IKKE PÅ ARKET") -> IKKE PÅ ARKET | L55: =IFERROR(VLOOKUP(G55,Prisark!B:B,1,FALSE),"IKKE PÅ ARKET") -> IKKE PÅ ARKET
A56: Apple iPhone Xr 256GB | D56: 8049 | E56: 6439.2 | F56: =IFERROR(VLOOKUP(A56,Prisark!B:B,1,FALSE),"IKKE PÅ ARKET") -> IKKE PÅ ARKET | L56: =IFERROR(VLOOKUP(G56,Prisark!B:B,1,FALSE),"IKKE PÅ ARKET") -> IKKE PÅ ARKET
A57: Apple iPhone Xr 64GB | D57: 5499 | E57: 4399.2 | F57: =IFERROR(VLOOKUP(A57,Prisark!B:B,1,FALSE),"IKKE PÅ ARKET") -> IKKE PÅ ARKET | L57: =IFERROR(VLOOKUP(G57,Prisark!B:B,1,FALSE),"IKKE PÅ ARKET") -> IKKE PÅ ARKET
A58: Fairphone 3 Plus 64GB Black | D58: 3449 | E58: 2759.2 | F58: =IFERROR(VLOOKUP(A58,Prisark!B:B,1,FALSE),"IKKE PÅ ARKET") -> Fairphone 3 Plus 64GB Black | L58: =IFERROR(VLOOKUP(G58,Prisark!B:B,1,FALSE),"IKKE PÅ ARKET") -> IKKE PÅ ARKET
A59: Huawei F617 | D59: 899 | E59: 719.2 | F59: =IFERROR(VLOOKUP(A59,Prisark!B:B,1,FALSE),"IKKE PÅ ARKET") -> IKKE PÅ ARKET | L59: =IFERROR(VLOOKUP(G59,Prisark!B:B,1,FALSE),"IKKE PÅ ARKET") -> IKKE PÅ ARKET
A60: Huawei Nova 5T 128GB | D60: 4099 | E60: 3279.2 | F60: =IFERROR(VLOOKUP(A60,Prisark!B:B,1,FALSE),"IKKE PÅ ARKET") -> IKKE PÅ ARKET | L60: =IFERROR(VLOOKUP(G60,Prisark!B:B,1,FALSE),"IKKE PÅ ARKET") -> IKKE PÅ ARKET
A61: Huawei P30 | D61: 5099 | E61: 4079.2 | F61: =IFERROR(VLOOKUP(A61,Prisark!B:B,1,FALSE),"IKKE PÅ ARKET") -> IKKE PÅ ARKET | L61: =IFERROR(VLOOKUP(G61,Prisark!B:B,1,FALSE),"IKKE PÅ ARKET") -> IKKE PÅ ARKET
A62: Huawei P30 Lite | D62: 2999 | E62: 2399.2 | F62: =IFERROR(VLOOKUP(A62,Prisark!B:B,1,FALSE),"IKKE PÅ ARKET") -> IKKE PÅ ARKET | L62: =IFERROR(VLOOKUP(G62,Prisark!B:B,1,FALSE),"IKKE PÅ ARKET") -> IKKE PÅ ARKET
A63: Huawei P30 Pro 128GB | D63: 6299 | E63: 5039.2 | F63: =IFERROR(VLOOKUP(A63,Prisark!B:B,1,FALSE),"IKKE PÅ ARKET") -> IKKE PÅ ARKET | L63: =IFERROR(VLOOKUP(G63,Prisark!B:B,1,FALSE),"IKKE PÅ ARKET") -> IKKE PÅ ARKET
A64: Huawei P30 Pro 256GB | D64: 6899 | E64: 5519.2 | F64: =IFERROR(VLOOKUP(A64,Prisark!B:B,1,FALSE),"IKKE PÅ ARKET") -> IKKE PÅ ARKET | L64: =IFERROR(VLOOKUP(G64,Prisark!B:B,1,FALSE),"IKKE PÅ ARKET") -> IKKE PÅ ARKET
A65: Huawei P40 Lite 4G | D65: 2399 | E65: 1919.2 | F65: =IFERROR(VLOOKUP(A65,Prisark!B:B,1,FALSE),"IKKE PÅ ARKET") -> Huawei P40 Lite 4G | L65: =IFERROR(VLOOKUP(G65,Prisark!B:B,1,FALSE),"IKKE PÅ ARKET") -> IKKE PÅ ARKET
A66: Huawei P40 Pro | D66: 8799 | E66: 7039.2 | F66: =IFERROR(VLOOKUP(A66,Prisark!B:B,1,FALSE),"IKKE PÅ ARKET") -> Huawei P40 Pro | L66: =IFERROR(VLOOKUP(G66,Prisark!B:B,1,FALSE),"IKKE PÅ ARKET") -> IKKE PÅ ARKET
A67: Jablocom Essence GSM | D67: 1449 | E67: 1159.2 | F67: =IFERROR(VLOOKUP(A67,Prisark!B:B,1,FALSE),"IKKE PÅ ARKET") -> Jablocom Essence GSM | L67: =IFERROR(VLOOKUP(G67,Prisark!B:B,1,FALSE),"IKKE PÅ ARKET") -> IKKE PÅ ARKET
A68: Microsoft Lumia 435 3G | D68: 349 | E68: 279.2 | F68: =IFERROR(VLOOKUP(A68,Prisark!B:B,1,FALSE),"IKKE PÅ ARKET") -> IKKE PÅ ARKET | L68: =IFERROR(VLOOKUP(G68,Prisark!B:B,1,FALSE),"IKKE PÅ ARKET") -> IKKE PÅ ARKET
A69: Microsoft Lumia 950 | D69: 2999 | E69: 2399.2 | F69: =IFERROR(VLOOKUP(A69,Prisark!B:B,1,FALSE),"IKKE PÅ ARKET") -> IKKE PÅ ARKET | L69: =IFERROR(VLOOKUP(G69,Prisark!B:B,1,FALSE),"IKKE PÅ ARKET") -> IKKE PÅ ARKET
A70: Motorola Edge 128GB 5G | D70: 3799 | E70: 3039.2 | F70: =IFERROR(VLOOKUP(A70,Prisark!B:B,1,FALSE),"IKKE PÅ ARKET") -> IKKE PÅ ARKET | L70: =IFERROR(VLOOKUP(G70,Prisark!B:B,1,FALSE),"IKKE PÅ ARKET") -> IKKE PÅ ARKET
A71: Motorola One Hyper 128GB Blue | D71: 2899 | E71: 2319.2 | F71: =IFERROR(VLOOKUP(A71,Prisark!B:B,1,FALSE),"IKKE PÅ ARKET") -> IKKE PÅ ARKET | L71: =IFERROR(VLOOKUP(G71,Prisark!B:B,1,FALSE),"IKKE PÅ ARKET") -> IKKE PÅ ARKET
A72: Motorola One Zoom 128GB HDS | D72: 2999 | E72: 2399.2 | F72: =IFERROR(VLOOKUP(A72,Prisark!B:B,1,FALSE),"IKKE PÅ ARKET") -> IKKE PÅ ARKET | L72: =IFERROR(VLOOKUP(G72,Prisark!B:B,1,FALSE),"IKKE PÅ ARKET") -> IKKE PÅ ARKET
A73: Nokia 3310 3G DS | D73: 499 | E73: 399.2 | F73: =IFERROR(VLOOKUP(A73,Prisark!B:B,1,FALSE),"IKKE PÅ ARKET") -> Nokia 3310 3G DS | L73: =IFERROR(VLOOKUP(G73,Prisark!B:B,1,FALSE),"IKKE PÅ ARKET") -> IKKE PÅ ARKET
A74: OnePlus 5T 128 GB SW | D74: 4499 | E74: 3599.2 | F74: =IFERROR(VLOOKUP(A74,Prisark!B:B,1,FALSE),"IKKE PÅ ARKET") -> IKKE PÅ ARKET | L74: =IFERROR(VLOOKUP(G74,Prisark!B:B,1,FALSE),"IKKE PÅ ARKET") -> IKKE PÅ ARKET
A75: OnePlus 6 128GB | D75: 4399 | E75: 3519.2 | F75: =IFERROR(VLOOKUP(A75,Prisark!B:B,1,FALSE),"IKKE PÅ ARKET") -> IKKE PÅ ARKET | L75: =IFERROR(VLOOKUP(G75,Prisark!B:B,1,FALSE),"IKKE PÅ ARKET") -> IKKE PÅ ARKET
A76: OnePlus 6 256GB | D76: 4699 | E76: 3759.2 | F76: =IFERROR(VLOOKUP(A76,Prisark!B:B,1,FALSE),"IKKE PÅ ARKET") -> IKKE PÅ ARKET | L76: =IFERROR(VLOOKUP(G76,Prisark!B:B,1,FALSE),"IKKE PÅ ARKET") -> IKKE PÅ ARKET
A77: OnePlus 6t 128GB Mirror Black | D77: 4199 | E77: 3359.2 | F77: =IFERROR(VLOOKUP(A77,Prisark!B:B,1,FALSE),"IKKE PÅ ARKET") -> IKKE PÅ ARKET | L77: =IFERROR(VLOOKUP(G77,Prisark!B:B,1,FALSE),"IKKE PÅ ARKET") -> IKKE PÅ ARKET
A78: OnePlus 6t 256GB Midnight Black | D78: 4799 | E78: 3839.2 | F78: =IFERROR(VLOOKUP(A78,Prisark!B:B,1,FALSE),"IKKE PÅ ARKET") -> IKKE PÅ ARKET | L78: =IFERROR(VLOOKUP(G78,Prisark!B:B,1,FALSE),"IKKE PÅ ARKET") -> IKKE PÅ ARKET
A79: OnePlus 7 128GB | D79: 3999 | E79: 3199.2 | F79: =IFERROR(VLOOKUP(A79,Prisark!B:B,1,FALSE),"IKKE PÅ ARKET") -> IKKE PÅ ARKET | L79: =IFERROR(VLOOKUP(G79,Prisark!B:B,1,FALSE),"IKKE PÅ ARKET") -> IKKE PÅ ARKET
A80: OnePlus 7 Pro 256GB | D80: 4799 | E80: 3839.2 | F80: =IFERROR(VLOOKUP(A80,Prisark!B:B,1,FALSE),"IKKE PÅ ARKET") -> IKKE PÅ ARKET | L80: =IFERROR(VLOOKUP(G80,Prisark!B:B,1,FALSE),"IKKE PÅ ARKET") -> IKKE PÅ ARKET
A81: OnePlus 7T 128GB | D81: 4899 | E81: 3919.2 | F81: =IFERROR(VLOOKUP(A81,Prisark!B:B,1,FALSE),"IKKE PÅ ARKET") -> OnePlus 7T 128GB | L81: =IFERROR(VLOOKUP(G81,Prisark!B:B,1,FALSE),"IKKE PÅ ARKET") -> IKKE PÅ ARKET
A82: OnePlus 7T Pro 256GB | D82: 5999 | E82: 4799.2 | F82: =IFERROR(VLOOKUP(A82,Prisark!B:B,1,FALSE),"IKKE PÅ ARKET") -> OnePlus 7T Pro 256GB | L82: =IFERROR(VLOOKUP(G82,Prisark!B:B,1,FALSE),"IKKE PÅ ARKET") -> IKKE PÅ ARKET
A83: OnePlus 8 128GB 5G | D83: 5649 | E83: 4519.2 | F83: =IFERROR(VLOOKUP(A83,Prisark!B:B,1,FALSE),"IKKE PÅ ARKET") -> OnePlus 8 128GB 5G | L83: =IFERROR(VLOOKUP(G83,Prisark!B:B,1,FALSE),"IKKE PÅ ARKET") -> IKKE PÅ ARKET
A84: OnePlus 8 Pro 128GB 5G | D84: 5799 | E84: 4639.2 | F84: =IFERROR(VLOOKUP(A84,Prisark!B:B,1,FALSE),"IKKE PÅ ARKET") -> OnePlus 8 Pro 128GB 5G | L84: =IFERROR(VLOOKUP(G84,Prisark!B:B,1,FALSE),"IKKE PÅ ARKET") -> IKKE PÅ ARKET
A85: OnePlus 8T 128GB | D85: 4999 | E85: 3999.2 | F85: =IFERROR(VLOOKUP(A85,Prisark!B:B,1,FALSE),"IKKE PÅ ARKET") -> OnePlus 8T 128GB | L85: =IFERROR(VLOOKUP(G85,Prisark!B:B,1,FALSE),"IKKE PÅ ARKET") -> IKKE PÅ ARKET
A86: OnePlus Nord 128GB 5G | D86: 3449 | E86: 2759.2 | F86: =IFERROR(VLOOKUP(A86,Prisark!B:B,1,FALSE),"IKKE PÅ ARKET") -> OnePlus Nord 128GB 5G | L86: =IFERROR(VLOOKUP(G86,Prisark!B:B,1,FALSE),"IKKE PÅ ARKET") -> IKKE PÅ ARKET
A87: OnePlus Nord 256GB 5G | D87: 4099 | E87: 3279.2 | F87: =IFERROR(VLOOKUP(A87,Prisark!B:B,1,FALSE),"IKKE PÅ ARKET") -> OnePlus Nord 256GB 5G | L87: =IFERROR(VLOOKUP(G87,Prisark!B:B,1,FALSE),"IKKE PÅ ARKET") -> IKKE PÅ ARKET
A88: OnePlus Nord N10 5G 128GB | D88: 2499 | E88: 1999.2 | F88: =IFERROR(VLOOKUP(A88,Prisark!B:B,1,FALSE),"IKKE PÅ ARKET") -> IKKE PÅ ARKET | L88: =IFERROR(VLOOKUP(G88,Prisark!B:B,1,FALSE),"IKKE PÅ ARKET") -> IKKE PÅ ARKET
A89: OnePlus Nord N100 64GB | D89: 1499 | E89: 1199.2 | F89: =IFERROR(VLOOKUP(A89,Prisark!B:B,1,FALSE),"IKKE PÅ ARKET") -> IKKE PÅ ARKET | L89: =IFERROR(VLOOKUP(G89,Prisark!B:B,1,FALSE),"IKKE PÅ ARKET") -> IKKE PÅ ARKET
A90: Razer Phone 2 64GB | D90: 7499 | E90: 5999.2 | F90: =IFERROR(VLOOKUP(A90,Prisark!B:B,1,FALSE),"IKKE PÅ ARKET") -> IKKE PÅ ARKET | L90: =IFERROR(VLOOKUP(G90,Prisark!B:B,1,FALSE),"IKKE PÅ ARKET") -> IKKE PÅ ARKET
A91: Samsung Galaxy A21s 32GB Black | D91: 1599 | E91: 1279.2 | F91: =IFERROR(VLOOKUP(A91,Prisark!B:B,1,FALSE),"IKKE PÅ ARKET") -> Samsung Galaxy A21s 32GB Black | L91: =IFERROR(VLOOKUP(G91,Prisark!B:B,1,FALSE),"IKKE PÅ ARKET") -> IKKE PÅ ARKET
A92: Samsung Galaxy A40 | D92: 1999 | E92: 1599.2 | F92: =IFERROR(VLOOKUP(A92,Prisark!B:B,1,FALSE),"IKKE PÅ ARKET") -> IKKE PÅ ARKET | L92: =IFERROR(VLOOKUP(G92,Prisark!B:B,1,FALSE),"IKKE PÅ ARKET") -> IKKE PÅ ARKET
A93: Samsung Galaxy A40 Enterprise | D93: 1999 | E93: 1599.2 | F93: =IFERROR(VLOOKUP(A93,Prisark!B:B,1,FALSE),"IKKE PÅ ARKET") -> IKKE PÅ ARKET | L93: =IFERROR(VLOOKUP(G93,Prisark!B:B,1,FALSE),"IKKE PÅ ARKET") -> IKKE PÅ ARKET
A94: Samsung Galaxy A41 64GB | D94: 2299 | E94: 1839.2 | F94: =IFERROR(VLOOKUP(A94,Prisark!B:B,1,FALSE),"IKKE PÅ ARKET") -> Samsung Galaxy A41 64GB | L94: =IFERROR(VLOOKUP(G94,Prisark!B:B,1,FALSE),"IKKE PÅ ARKET") -> IKKE PÅ ARKET
A95: Samsung Galaxy A51 128GB Black | D95: 2799 | E95: 2239.2 | F95: =IFERROR(VLOOKUP(A95,Prisark!B:B,1,FALSE),"IKKE PÅ ARKET") -> Samsung Galaxy A51 128GB Black | L95: =IFERROR(VLOOKUP(G95,Prisark!B:B,1,FALSE),"IKKE PÅ ARKET") -> IKKE PÅ ARKET
A96: Samsung Galaxy A6 | D96: 2499 | E96: 1999.2 | F96: =IFERROR(VLOOKUP(A96,Prisark!B:B,1,FALSE),"IKKE PÅ ARKET") -> IKKE PÅ ARKET | L96: =IFERROR(VLOOKUP(G96,Prisark!B:B,1,FALSE),"IKKE PÅ ARKET") -> IKKE PÅ ARKET
A97: Samsung Galaxy A7 | D97: 2699 | E97: 2159.2 | F97: =IFERROR(VLOOKUP(A97,Prisark!B:B,1,FALSE),"IKKE PÅ ARKET") -> IKKE PÅ ARKET | L97: =IFERROR(VLOOKUP(G97,Prisark!B:B,1,FALSE),"IKKE PÅ ARKET") -> IKKE PÅ ARKET
A98: Samsung Galaxy A70 | D98: 3299 | E98: 2639.2 | F98: =IFERROR(VLOOKUP(A98,Prisark!B:B,1,FALSE),"IKKE PÅ ARKET") -> IKKE PÅ ARKET | L98: =IFERROR(VLOOKUP(G98,Prisark!B:B,1,FALSE),"IKKE PÅ ARKET") -> IKKE PÅ ARKET
A99: Samsung Galaxy A71 128GB | D99: 3499 | E99: 2799.2 | F99: =IFERROR(VLOOKUP(A99,Prisark!B:B,1,FALSE),"IKKE PÅ ARKET") -> IKKE PÅ ARKET | L99: =IFERROR(VLOOKUP(G99,Prisark!B:B,1,FALSE),"IKKE PÅ ARKET") -> IKKE PÅ ARKET
A100: Samsung Galaxy Note 10 256 GB | D100: 7499 | E100: 5999.2 | F100: =IFERROR(VLOOKUP(A100,Prisark!B:B,1,FALSE),"IKKE PÅ ARKET") -> IKKE PÅ ARKET | L100: =IFERROR(VLOOKUP(G100,Prisark!B:B,1,FALSE),"IKKE PÅ ARKET") -> IKKE PÅ ARKET
A101: Samsung Galaxy Note 10 Lite 128GB | D101: 4799 | E101: 3839.2 | F101: =IFERROR(VLOOKUP(A101,Prisark!B:B,1,FALSE),"IKKE PÅ ARKET") -> IKKE PÅ ARKET | L101: =IFERROR(VLOOKUP(G101,Prisark!B:B,1,FALSE),"IKKE PÅ ARKET") -> IKKE PÅ ARKET
A102: Samsung Galaxy Note 10 Plus 256 GB | D102: 8699 | E102: 6959.2 | F102: =IFERROR(VLOOKUP(A102,Prisark!B:B,1,FALSE),"IKKE PÅ ARKET") -> IKKE PÅ ARKET | L102: =IFERROR(VLOOKUP(G102,Prisark!B:B,1,FALSE),"IKKE PÅ ARKET") -> IKKE PÅ ARKET
A103: Samsung Galaxy Note 10 Plus 512 GB | D103: 9499 | E103: 7599.2 | F103: =IFERROR(VLOOKUP(A103,Prisark!B:B,1,FALSE),"IKKE PÅ ARKET") -> IKKE PÅ ARKET | L103: =IFERROR(VLOOKUP(G103,Prisark!B:B,1,FALSE),"IKKE PÅ ARKET") -> IKKE PÅ ARKET
A104: Samsung Galaxy Note 20 256GB 5G | D104: 8399 | E104: 6719.2 | F104: =IFERROR(VLOOKUP(A104,Prisark!B:B,1,FALSE),"IKKE PÅ ARKET") -> Samsung Galaxy Note 20 256GB 5G | L104: =IFERROR(VLOOKUP(G104,Prisark!B:B,1,FALSE),"IKKE PÅ ARKET") -> IKKE PÅ ARKET
A105: Samsung Galaxy Note 20 Ultra 256GB 5G | D105: 10299 | E105: 8239.2 | F105: =IFERROR(VLOOKUP(A105,Prisark!B:B,1,FALSE),"IKKE PÅ ARKET") -> Samsung Galaxy Note 20 Ultra 256GB 5G | L105: =IFERROR(VLOOKUP(G105,Prisark!B:B,1,FALSE),"IKKE PÅ ARKET") -> IKKE PÅ ARKET
A106: Samsung Galaxy Note 20 Ultra 512GB 5G | D106: 10999 | E106: 8799.2 | F106: =IFERROR(VLOOKUP(A106,Prisark!B:B,1,FALSE),"IKKE PÅ ARKET") -> IKKE PÅ ARKET
A107: Samsung Galaxy Note 8 | D107: 7749 | E107: 6199.2 | F107: =IFERROR(VLOOKUP(A107,Prisark!B:B,1,FALSE),"IKKE PÅ ARKET") -> IKKE PÅ ARKET
A108: Samsung Galaxy S10 128GB | D108: 7199 | E108: 5759.2 | F108: =IFERROR(VLOOKUP(A108,Prisark!B:B,1,FALSE),"IKKE PÅ ARKET") -> IKKE PÅ ARKET
A109: Samsung Galaxy S10 Lite Black | D109: 5199 | E109: 4159.2 | F109: =IFERROR(VLOOKUP(A109,Prisark!B:B,1,FALSE),"IKKE PÅ ARKET") -> IKKE PÅ ARKET
A110: Samsung Galaxy S10 Plus 128GB | D110: 7999 | E110: 6399.2 | F110: =IFERROR(VLOOKUP(A110,Prisark!B:B,1,FALSE),"IKKE PÅ ARKET") -> IKKE PÅ ARKET
A111: Samsung Galaxy S10 Plus 512GB | D111: 9699 | E111: 7759.2 | F111: =IFERROR(VLOOKUP(A111,Prisark!B:B,1,FALSE),"IKKE PÅ ARKET") -> IKKE PÅ ARKET
A112: Samsung Galaxy S10e 128GB | D112: 5999 | E112: 4799.2 | F112: =IFERROR(VLOOKUP(A112,Prisark!B:B,1,FALSE),"IKKE PÅ ARKET") -> IKKE PÅ ARKET
A113: Samsung Galaxy S20 5G | D113: 7899 | E113: 6319.2 | F113: =IFERROR(VLOOKUP(A113,Prisark!B:B,1,FALSE),"IKKE PÅ ARKET") -> IKKE PÅ ARKET
A114: Samsung Galaxy S20 Ultra 5G | D114: 10699 | E114: 8559.2 | F114: =IFERROR(VLOOKUP(A114,Prisark!B:B,1,FALSE),"IKKE PÅ ARKET") -> IKKE PÅ ARKET
A115: Samsung Galaxy S20+ 128GB 5G | D115: 8699 | E115: 6959.2 | F115: =IFERROR(VLOOKUP(A115,Prisark!B:B,1,FALSE),"IKKE PÅ ARKET") -> IKKE PÅ ARKET
A116: Samsung Galaxy S20+ 512GB 5G | D116: 9899 | E116: 7919.2 | F116: =IFERROR(VLOOKUP(A116,Prisark!B:B,1,FALSE),"IKKE PÅ ARKET") -> IKKE PÅ ARKET
A117: Samsung Galaxy S20FE 4G 128GB | D117: 5199 | E117: 4159.2 | F117: =IFERROR(VLOOKUP(A117,Prisark!B:B,1,FALSE),"IKKE PÅ ARKET") -> Samsung Galaxy S20FE 4G 128GB
A118: Samsung Galaxy S20FE 5G 128GB | D118: 5999 | E118: 4799.2 | F118: =IFERROR(VLOOKUP(A118,Prisark!B:B,1,FALSE),"IKKE PÅ ARKET") -> Samsung Galaxy S20FE 5G 128GB
A119: Samsung Galaxy S21 5G 128GB | D119: 6699 | E119: 5359.2 | F119: =IFERROR(VLOOKUP(A119,Prisark!B:B,1,FALSE),"IKKE PÅ ARKET") -> Samsung Galaxy S21 5G 128GB
A120: Samsung Galaxy S21 5G 256GB | D120: 7299 | E120: 5839.2 | F120: =IFERROR(VLOOKUP(A120,Prisark!B:B,1,FALSE),"IKKE PÅ ARKET") -> Samsung Galaxy S21 5G 256GB
A121: Samsung Galaxy S21 5G Ultra 128GB | D121: 9899 | E121: 7919.2 | F121: =IFERROR(VLOOKUP(A121,Prisark!B:B,1,FALSE),"IKKE PÅ ARKET") -> Samsung Galaxy S21 5G Ultra 128GB
A122: Samsung Galaxy S21 5G Ultra 256GB | D122: 10249 | E122: 8199.2 | F122: =IFERROR(VLOOKUP(A122,Prisark!B:B,1,FALSE),"IKKE PÅ ARKET") -> Samsung Galaxy S21 5G Ultra 256GB
A123: Samsung Galaxy S21 5G Ultra 512GB | D123: 11299 | E123: 9039.2 | F123: =IFERROR(VLOOKUP(A123,Prisark!B:B,1,FALSE),"IKKE PÅ ARKET") -> Samsung Galaxy S21 5G Ultra 512GB
A124: Samsung Galaxy S21+ 5G 128GB | D124: 8299 | E124: 6639.2 | F124: =IFERROR(VLOOKUP(A124,Prisark!B:B,1,FALSE),"IKKE PÅ ARKET") -> Samsung Galaxy S21+ 5G 128GB
A125: Samsung Galaxy S21+ 5G 256GB | D125: 8799 | E125: 7039.2 | F125: =IFERROR(VLOOKUP(A125,Prisark!B:B,1,FALSE),"IKKE PÅ ARKET") -> Samsung Galaxy S21+ 5G 256GB
A126: Samsung Galaxy XCover Pro | D126: 3799 | E126: 3039.2 | F126: =IFERROR(VLOOKUP(A126,Prisark!B:B,1,FALSE),"IKKE PÅ ARKET") -> Samsung Galaxy XCover Pro
A127: Samsung Galaxy Xcover 4s | D127: 1899 | E127: 1519.2 | F127: =IFERROR(VLOOKUP(A127,Prisark!B:B,1,FALSE),"IKKE PÅ ARKET") -> IKKE PÅ ARKET
A128: Samsung Galaxy Z Flip 5G | D128: 11849 | E128: 9479.2 | F128: =IFERROR(VLOOKUP(A128,Prisark!B:B,1,FALSE),"IKKE PÅ ARKET") -> IKKE PÅ ARKET
A129: Sony Xperia 5 II | D129: 6699 | E129: 5359.2 | F129: =IFERROR(VLOOKUP(A129,Prisark!B:B,1,FALSE),"IKKE PÅ ARKET") -> IKKE PÅ ARKET
A130: Xiaomi Mi 10T Pro | D130: 4749 | E130: 3799.2 | F130: =IFERROR(VLOOKUP(A130,Prisark!B:B,1,FALSE),"IKKE PÅ ARKET") -> IKKE PÅ ARKET
A131: Xiaomi Mi 8 128GB | D131: 4399 | E131: 3519.2 | F131: =IFERROR(VLOOKUP(A131,Prisark!B:B,1,FALSE),"IKKE PÅ ARKET") -> IKKE PÅ ARKET
A132: Xiaomi Mi 8 64GB | D132: 3999 | E132: 3199.2 | F132: =IFERROR(VLOOKUP(A132,Prisark!B:B,1,FALSE),"IKKE PÅ ARKET") -> IKKE PÅ ARKET
A133: Xiaomi Mix 2S 128GB | D133: 4899 | E133: 3919.2 | F133: =IFERROR(VLOOKUP(A133,Prisark!B:B,1,FALSE),"IKKE PÅ ARKET") -> IKKE PÅ ARKET
A134: Xiaomi Mix 2S 64GB | D134: 4499 | E134: 3599.2 | F134: =IFERROR(VLOOKUP(A134,Prisark!B:B,1,FALSE),"IKKE PÅ ARKET") -> IKKE PÅ ARKET
A135: Xiaomi Redmi 6 32GB | D135: 1299 | E135: 1039.2 | F135: =IFERROR(VLOOKUP(A135,Prisark!B:B,1,FALSE),"IKKE PÅ ARKET") -> IKKE PÅ ARKET
A136: Xiaomi Redmi 7 32GB | D136: 1299 | E136: 1039.2 | F136: =IFERROR(VLOOKUP(A136,Prisark!B:B,1,FALSE),"IKKE PÅ ARKET") -> IKKE PÅ ARKET
A137: iPhone 5c 8GB 4G Pink | D137: 499 | E137: 399.2 | F137: =IFERROR(VLOOKUP(A137,Prisark!B:B,1,FALSE),"IKKE PÅ ARKET") -> IKKE PÅ ARKET

Sheet Navnestyring (hidden)
A2: Apple iPhone 12 mini 64GB (OBS. UDEN OPLADER) | B2: AppleiPhone12mini64GB
A3: Apple iPhone 12 mini 128GB (OBS. UDEN OPLADER) | B3: AppleiPhone12mini128GB | D3: iPhoneXR64 | E3: iPhoneXR | F3: iPhoneXS256 | G3: iPhoneXSMax | H3: iPhone1164GB | I3: iPhone11128GB | J3: iPhone11256GB | K3: iPhone11Pro64GB | L3: iPhone11Pro256GB | M3: iPhone11Pro512GB | N3: iPhone11ProMax64GB | O3: iPhone11ProMax256GB | P3: iPhone11ProMax512GB | Q3: iPhone732 | R3: AppleiPhoneSE2ndgen128GB | S3: AppleiPhoneSE2ndgen256GB | T3: AppleiPhoneSE2ndgen64GB | U3: AppleiPhone12128GB | V3: AppleiPhone12256GB | W3: AppleiPhone1264GB | X3: AppleiPhone12Pro128GB | Y3: AppleiPhone12Pro256GB | Z3: AppleiPhone12Pro512GB | AA3: AppleiPhone12mini64GB | AB3: AppleiPhone12mini128GB | AC3: AppleiPhone12mini256GB | AD3: AppleiPhone12ProMax128GB | AE3: AppleiPhone12ProMax256GB | AF3: AppleiPhone12ProMax512GB
A4: Apple iPhone 12 mini 256GB (OBS. UDEN OPLADER) | B4: AppleiPhone12mini256GB | D4: White | E4: Black | F4: SpaceGrey | G4: SpaceGrey | H4: Black | I4: Black | J4: Black | K4: Silver | L4: Gold | M4: Midnight Green | N4: Gold | O4: Space grey | P4: Midnight Green | Q4: Silver | R4: Black | S4: Black | T4: Black | U4: Sort | V4: Sort | W4: Sort | X4: Gold | Y4: Gold | Z4: Graphite | AA4: Black | AB4: Black | AC4: Black | AD4: Graphite | AE4: Graphite | AF4: Graphite
A5: Apple iPhone 12 64GB (OBS. UDEN OPLADER) | B5: AppleiPhone1264GB | G5: Gold | H5: White | K5: Midnight Green | L5: Space Grey | M5: Space grey | O5: Gold | P5: Space grey | R5: White | T5: White | U5: Hvid | V5: Blå | W5: Hvid | X5: Silver | Y5: Silver | Z5: Pacific Blue | AA5: White | AB5: White | AC5: Blue | AD5: Pacific Blue | AE5: Pacific Blue | AF5: Pacific Blue
A6: Apple iPhone 12 128GB (OBS. UDEN OPLADER) | B6: AppleiPhone12128GB | L6: Midnight Green | R6: red | T6: red | U6: Rød | W6: Rød | X6: Graphite | Y6: Graphite | AA6: Red | AB6: Red | AD6: Silver | AE6: Silver
A7: Apple iPhone 12 256GB (OBS. UDEN OPLADER) | B7: AppleiPhone12256GB | U7: Blå | W7: Blå | X7: Pacific Blue | Y7: Pacific Blue | AA7: Blue | AB7: Blue | AD7: Gold | AE7: Gold
A8: Apple iPhone 12 Pro 128GB (OBS. UDEN OPLADER) | B8: AppleiPhone12Pro128GB | U8: Grøn | W8: Grøn | AA8: Green | AB8: Green
A9: Apple iPhone 12 Pro 256GB (OBS. UDEN OPLADER) | B9: AppleiPhone12Pro256GB
A10: Apple iPhone 12 Pro 512GB (OBS. UDEN OPLADER) | B10: AppleiPhone12Pro512GB
A11: Apple iPhone 12 Pro Max 128GB (OBS. UDEN OPLADER) | B11: AppleiPhone12ProMax128GB
A12: Apple iPhone 12 Pro Max 256GB (OBS. UDEN OPLADER) | B12: AppleiPhone12ProMax256GB | D12: HuaweiP30Lite | E12: HuaweiP30 | F12: HuaweiP30Pro128 | G12: HuaweiP40Lite4G | H12: HuaweiP40Pro
A13: Apple iPhone 12 Pro Max 512GB (OBS. UDEN OPLADER) | B13: AppleiPhone12ProMax512GB | D13: Black | E13: Black | F13: Black | G13: Black | H13: Black
A14: Apple iPhone 11 64GB NEW (OBS. UDEN OPLADER) | B14: iPhone1164GB | F14: Aurora
A15: Apple iPhone 11 128GB NEW (OBS. UDEN OPLADER) | B15: iPhone11128GB
A16: Apple iPhone 11 256GB | B16: iPhone11256GB | D16: JablocomEssencegsm
A17: Apple iPhone 11 Pro 64GB | B17: iPhone11Pro64GB | D17: Sort
A18: Apple iPhone 11 Pro 256GB | B18: iPhone11Pro256GB
A19: Apple iPhone 11 Pro 512GB | B19: iPhone11Pro512GB | D19: Nokia33103gds
A20: Apple iPhone 11 Pro Max 64GB | B20: iPhone11ProMax64GB | D20: Grey
A21: Apple iPhone 11 Pro Max 256GB | B21: iPhone11ProMax256GB
A22: Apple iPhone 11 Pro Max 512GB | B22: iPhone11ProMax512GB
A23: Apple iPhone XS 256GB | B23: iPhoneXS256
A24: Apple iPhone XS Max 64GB | B24: iPhoneXSMax
A25: Apple iPhone XS Max 256GB | B25: iPhoneXSMax | D25: MotorolaEdge128GB5G | E25: MotorolaOneHyper128GB
A26: Apple iPhone Xr 64GB | B26: iPhoneXR64 | D26: Black | E26: Blue
A27: Apple iPhone Xr 128GB | B27: iPhoneXR
A28: Apple iPhone 7 32GB | B28: iPhone732 | D28: OnePlus7T128 | E28: OnePlus7Tpro256 | F28: OnePlus8128GB5G | G28: OnePlus8Pro128GB5G | H28: OnePlusNord128 | I28: OnePlusNord256 | J28: OnePlus8T128GB
A29: Apple iPhone SE 2nd gen 128GB NEW (OBS. UDEN OPLADER) | B29: AppleiPhoneSE2ndgen128GB | D29: Glacier Blue | E29: Haze Blue | F29: Glacial green | G29: Onyx black | H29: Gray Onyx | I29: Gray Onyx | J29: Lunar Silver
A30: Apple iPhone SE 2nd gen 256GB NEW (OBS. UDEN OPLADER) | B30: AppleiPhoneSE2ndgen256GB | H30: Blue Marble | J30: Aquamarine Green
A31: Apple iPhone SE 2nd gen 64GB NEW (OBS. UDEN OPLADER) | B31: AppleiPhoneSE2ndgen64GB
D32: Note10Plus256 | E32: S10lite128 | F32: S_10128 | G32: S10plus128 | H32: Note9 | I32: Xcover4S | J32: GalaxyA41 | K32: S_20 | L32: S20Ultra | M32: S20Plus128 | N32: S20Plus512 | O32: Zflip | P32: GalaxyA71 | Q32: SamsungGalaxyA21s32GBBlack | R32: SamsungGalaxyNote20256GB5G | S32: SamsungGalaxyNote20Ultra256GB5G | T32: SamsungGalaxyNote20Ultra512GB5G | U32: SamsungGalaxyS20FE4G128GB | V32: SamsungGalaxyS20FE5G128GB | W32: SamsungGalaxyS215G128GB | X32: SamsungGalaxyS215G256GB | Y32: SamsungGalaxyS215GUltra128GB | Z32: SamsungGalaxyS215GUltra256GB | AA32: SamsungGalaxyS215GUltra512GB | AB32: SamsungGalaxyS21Plus5G128GB | AC32: SamsungGalaxyS21Plus5G256GB
A33: Motorola One Hyper 128GB Blue | B33: MotorolaOneHyper128GB | D33: Aura black | E33: Black | F33: Prism Black | G33: Prism Black | H33: Sort | I33: Sort | J33: Black | K33: Cosmic Gray | L33: Cosmic Gray | M33: Cosmic Black | N33: Cosmic Gray | O33: Mirror Black | P33: Black | Q33: Black | R33: Mystic Gray | S33: Mystic Bronze | T33: Mystic Bronze | U33: Cloud Navy | V33: Cloud Navy | W33: Phantom Gray | X33: Phantom Gray | Y33: Phantom Black | Z33: Phantom Black | AA33: Phantom Black | AB33: Phantom Black​ | AC33: Phantom Black​
A34: Motorola Edge 128GB 5G | B34: MotorolaEdge128GB5G | F34: Prism White | K34: Cloud Blue | M34: Cosmic Gray | S34: Mystic Black | W34: Phantom Violet | Y34: Phantom Silver | AB34: Phantom Silver​
W35: Phantom White | AB35: Phantom Violet
A36: Huawei P30 Lite | B36: HuaweiP30Lite
A37: Huawei P30 | B37: HuaweiP30 | D37: Router
A38: Huawei P30 Pro 128GB | B38: HuaweiP30Pro128 | D38: HuaweiB535 | E38: HuaweiE3372 | F38: HuaweiB315 | G38: HuaweiE5577 | H38: HuaweiB2368
A39: Huawei P40 Lite 4G | B39: HuaweiP40Lite4G | D39: White | E39: Black | F39: White | G39: Black | H39: White
A40: Huawei P40 Pro | B40: HuaweiP40Pro
D41: Tablet
A42: OnePlus 8T 128GB | B42: OnePlus8T128GB | D42: iPad7thgeneration32GB | E42: iPad7thgeneration128GB | F42: iPadAir10.564GB | G42: iPadAir10.5256GB | H42: iPadMini5thgen64GB | I42: iPadMini5thgen256GB | J42: iPadPro11.064GB | K42: iPadPro11.0256GB | L42: iPadPro12.93rdgen64GB | M42: iPadPro12.93rdgen256GB | N42: iPad6thgen32GB | O42: iPad6thgen128GB | P42: iPadPro11.02ndgen128GB | Q42: iPadPro11.02ndgen256GB | R42: iPadPro12.94thgen128GB | S42: iPadPro12.94thgen256GB | T42: AppleiPadAir109256GB | U42: AppleiPadAir10964GB | V42: iPad8thgen102128GB | W42: iPad8thgen10232GB
A43: OnePlus 7T 128GB | B43: OnePlus7T128 | D43: Gold | E43: Gold | F43: Space Grey | G43: Space Grey | H43: Gold | I43: Space Grey | J43: Space Grey | K43: Space Grey | L43: Space Grey | M43: Space Grey | N43: Gold | O43: Space Grey | P43: Space Grey | Q43: Space Grey | R43: Space Grey | S43: Space Grey | T43: Space Grey | U43: Green | V43: Gold | W43: Gold
A44: OnePlus 7T Pro 256GB | B44: OnePlus7Tpro256 | D44: Space Grey | E44: Space Grey | H44: Space Grey | J44: Silver | K44: Silver | L44: Silver | M44: Silver | N44: Space Grey | O44: Silver | P44: Silver | R44: Silver | U44: Sky Blue | V44: Silver | W44: Silver
A45: OnePlus 8 128GB 5G | B45: OnePlus8128GB5G | D45: Silver | E45: Silver | H45: Silver | U45: Rose Gold | V45: Space Grey | W45: Space Grey
A46: OnePlus 8 Pro 128GB 5G | B46: OnePlus8Pro128GB5G | U46: Space Grey
A47: OnePlus Nord 128GB 5G | B47: OnePlusNord128
A48: OnePlus Nord 256GB 5G | B48: OnePlusNord256 | D48: GalaxyTabS6 | E48: TabActive24G | F48: SamsungGalaxyTabS7LTE
D49: Grey | E49: Black | F49: Dark Grey
A50: Samsung Galaxy S10 Lite Black | B50: S10lite128
A51: Samsung Galaxy S10 128GB | B51: S_10128
A52: Samsung Galaxy S10 Plus 128GB | B52: S10plus128 | D52: HuaweiMediatabT332GB
A53: Samsung Galaxy A71 128GB | B53: GalaxyA71 | D53: Space Gray
A54: Samsung Galaxy Note 10 Lite 128GB | B54: Note10Lite
A55: Samsung Galaxy Xcover 4s | B55: Xcover4S | D55: Fairphone3Plus64GB
A56: Samsung Galaxy A51 128GB Black | B56: GalaxyA51 | D56: Black
A57: Samsung Galaxy A41 64GB | B57: GalaxyA41
A58: Samsung Galaxy S20 5G | B58: S_20
A59: Samsung Galaxy S20 Ultra 5G | B59: S20Ultra
A60: Samsung Galaxy S20+ 128GB 5G | B60: S20Plus128
A61: Samsung Galaxy S20+ 512GB 5G | B61: S20Plus512
A62: Samsung Galaxy Z Flip 5G | B62: Zflip
A63: Samsung Galaxy A21s 32GB Black | B63: SamsungGalaxyA21s32GBBlack
A64: Samsung Galaxy Note 20 256GB 5G | B64: SamsungGalaxyNote20256GB5G
A65: Samsung Galaxy Note 20 Ultra 256GB 5G | B65: SamsungGalaxyNote20Ultra256GB5G
A66: Samsung Galaxy Note 20 Ultra 512GB 5G | B66: SamsungGalaxyNote20Ultra512GB5G
A67: Samsung Galaxy S20FE 4G 128GB | B67: SamsungGalaxyS20FE4G128GB
A68: Samsung Galaxy S20FE 5G 128GB | B68: SamsungGalaxyS20FE5G128GB
A69: Samsung Galaxy S21 5G 128GB | B69: SamsungGalaxyS215G128GB
A70: Samsung Galaxy S21 5G 256GB | B70: SamsungGalaxyS215G256GB
A71: Samsung Galaxy S21 5G Ultra 128GB | B71: SamsungGalaxyS215GUltra128GB
A72: Samsung Galaxy S21 5G Ultra 256GB | B72: SamsungGalaxyS215GUltra256GB
A73: Samsung Galaxy S21 5G Ultra 512GB | B73: SamsungGalaxyS215GUltra512GB
A74: Samsung Galaxy S21+ 5G 128GB | B74: SamsungGalaxyS21Plus5G128GB
A75: Samsung Galaxy S21+ 5G 256GB | B75: SamsungGalaxyS21Plus5G256GB
A77: Fairphone 3 Plus 64GB Black | B77: Fairphone3Plus64GBBlack
A79: Nokia 3310 3G DS | B79: Nokia33103gds
A81: Jablocom Essence GSM | B81: JablocomEssencegsm
A83: Router
A84: Huawei B535 | B84: HuaweiB535
A85: Huawei E3372 | B85: HuaweiE3372
A86: Huawei E5577 | B86: HuaweiE5577
A87: Huawei B2368 WTTx White | B87: HuaweiB2368
A89: Tablet
A90: Apple iPad Air 10 9 256GB | B90: AppleiPadAir109256GB
A91: Apple iPad Air 10 9 64GB | B91: AppleiPadAir10964GB
A92: Apple iPad 7th generation 32GB | B92: iPad7thgeneration32GB
A93: iPad 8th gen 10.2 128GB | B93: iPad8thgen102128GB
A94: iPad 8th gen 10.2 32GB | B94: iPad8thgen10232GB
A95: Apple iPad Air 10.5 64GB | B95: iPadAir10.564GB
A96: Apple iPad Air 10.5 256GB | B96: iPadAir10.5256GB
A97: Apple iPad Pro 11.0 64GB | B97: iPadPro11.064GB
A98: Apple iPad Pro 11.0 256GB | B98: iPadPro11.0256GB
A99: Apple iPad 6th gen 32GB | B99: iPad6thgen32GB
A100: Apple iPad 6th gen 128GB | B100: iPad6thgen128GB
A101: iPad Pro 11.0 2nd gen 128GB | B101: iPadPro11.02ndgen128GB
A102: iPad Pro 11.0 2nd gen 256GB | B102: iPadPro11.02ndgen256GB
A103: iPad Pro 12.9 4th gen 128GB | B103: iPadPro12.94thgen128GB
A104: iPad Pro 12.9 4th gen 256GB | B104: iPadPro12.94thgen256GB
A106: Samsung Galaxy Tab S6 128GB | B106: GalaxyTabS6
A107: Samsung Galaxy Tab S7 LTE | B107: SamsungGalaxyTabS7LTE
A108: Galaxy Tab Active 2 4G | B108: TabActive24G
A110: Huawei Mediatab T3 32GB | B110: HuaweiMediatabT332GB

Sheet Navnestyring tilbehør (hidden)
A1: Mobiler
A2: Apple iPhone 12 mini 64GB (OBS. UDEN OPLADER) | B2: AppleiPhone12mini64GBCover | C2: AppleiPhone12mini64GBpanserglas | E2: iPhone11Cover | F2: Anummer | G2: Lager | H2: iPhone11procover | I2: Anummer | J2: Lager | K2: iPhone11promaxcover | L2: Anummer | M2: Lager | N2: iPhonexscover | O2: Anummer | P2: Lager | Q2: iPhonexsmaxcover | R2: Anummer | S2: Lager | T2: iPhonexrcover | U2: Anummer | V2: Lager | W2: iPhone8cover | X2: Anummer | Y2: Lager | Z2: iPhone8pluscover | AA2: Anummer | AB2: Lager | AC2: iPhone7cover | AD2: Anummer | AE2: Lager | AF2: AppleiPhoneSE2ndgen128GBCover | AG2: Anummer | AH2: Lager | AI2: AppleiPhoneSE2ndgen256GBCover | AJ2: Anummer | AK2: Lager | AL2: AppleiPhoneSE2ndgen64GBCover | AM2: Anummer | AN2: Lager | AO2: AppleiPhone12128GBCover | AP2: Anummer | AQ2: Lager | AR2: AppleiPhone12256GBCover | AS2: Anummer | AT2: Lager | AU2: AppleiPhone1264GBCover | AV2: Anummer | AW2: Lager | AX2: AppleiPhone12Pro128GBCover | AY2: Anummer | AZ2: Lager | BA2: AppleiPhone12Pro256GBCover | BB2: Anummer | BC2: Lager | BD2: AppleiPhone12Pro512GBCover | BE2: Anummer | BF2: Lager | BG2: AppleiPhone12mini64GBCover | BH2: Anummer | BI2: Lager | BJ2: AppleiPhone12mini128GBCover | BK2: Anummer | BL2: Lager | BM2: AppleiPhone12mini256GBCover | BN2: Anummer | BO2: Lager | BP2: AppleiPhone12ProMax128GBCover | BQ2: Anummer | BR2: Lager | BS2: AppleiPhone12ProMax256GBCover | BT2: Anummer | BU2: Lager | BV2: AppleiPhone12ProMax512GBCover | BW2: Anummer | BX2: Lager
A3: Apple iPhone 12 mini 128GB (OBS. UDEN OPLADER) | B3: AppleiPhone12mini128GBCover | C3: AppleiPhone12mini128GBpanserglas | E3: =IF(G3=0,"Pt udsolgt",IFERROR(_xlfn.XLOOKUP(F3,Tilbehør!$B:$B,Tilbehør!$A:$A),"Findes ikke")) -> Apple iPhone 11 Clear Case | F3: A23250 | G3: =IFERROR(VLOOKUP(F3,Lager!$A:$C,3,FALSE),0) -> 33 | H3: =IF(J3=0,"Pt udsolgt",IFERROR(_xlfn.XLOOKUP(I3,Tilbehør!$B:$B,Tilbehør!$A:$A),"Findes ikke")) -> ON iPhone 11 MAX Pro TPU ULTRA THIN CLEAR | I3: A23198 | J3: =IFERROR(VLOOKUP(I3,Lager!$A:$C,3,FALSE),0) -> 26 | K3: =IF(M3=0,"Pt udsolgt",IFERROR(_xlfn.XLOOKUP(L3,Tilbehør!$B:$B,Tilbehør!$A:$A),"Findes ikke")) -> ON iPhone 11 MAX Pro TPU ULTRA THIN CLEAR | L3: A23198 | M3: =IFERROR(VLOOKUP(L3,Lager!$A:$C,3,FALSE),0) -> 26 | N3: =IF(P3=0,"Pt udsolgt",IFERROR(_xlfn.XLOOKUP(O3,Tilbehør!$B:$B,Tilbehør!$A:$A),"Findes ikke")) -> Pt udsolgt | O3: A22982 | P3: =IFERROR(VLOOKUP(O3,Lager!$A:$C,3,FALSE),0) -> 0 | Q3: =IF(S3=0,"Pt udsolgt",IFERROR(_xlfn.XLOOKUP(R3,Tilbehør!$B:$B,Tilbehør!$A:$A),"Findes ikke")) -> Apple iPhone XS Max Silicone Case Black | R3: A22986 | S3: =IFERROR(VLOOKUP(R3,Lager!$A:$C,3,FALSE),0) -> 351 | T3: =IF(V3=0,"Pt udsolgt",IFERROR(_xlfn.XLOOKUP(U3,Tilbehør!$B:$B,Tilbehør!$A:$A),"Findes ikke")) -> ON IPHONE Xr TPU ULTRA THIN CLEAR | U3: A22965 | V3: =IFERROR(VLOOKUP(U3,Lager!$A:$C,3,FALSE),0) -> 11 | W3: =IF(Y3=0,"Pt udsolgt",IFERROR(_xlfn.XLOOKUP(X3,Tilbehør!$B:$B,Tilbehør!$A:$A),"Findes ikke")) -> Apple iPhone 8 Plus 7 Plus Silicone Case White | X3: A22509 | Y3: =IFERROR(VLOOKUP(X3,Lager!$A:$C,3,FALSE),0) -> 49 | Z3: =IF(AB3=0,"Pt udsolgt",IFERROR(_xlfn.XLOOKUP(AA3,Tilbehør!$B:$B,Tilbehør!$A:$A),"Findes ikke")) -> Apple iPhone 8 Plus 7 Plus Leather Case Midnight Blue | AA3: A22516 | AB3: =IFERROR(VLOOKUP(AA3,Lager!$A:$C,3,FALSE),0) -> 35 | AC3: =IF(AE3=0,"Pt udsolgt",IFERROR(_xlfn.XLOOKUP(AD3,Tilbehør!$B:$B,Tilbehør!$A:$A),"Findes ikke")) -> Apple iPhone 8 Plus 7 Plus Silicone Case White | AD3: A22509 | AE3: =IFERROR(VLOOKUP(AD3,Lager!$A:$C,3,FALSE),0) -> 49 | AF3: =IF(AH3=0,"Pt udsolgt",IFERROR(_xlfn.XLOOKUP(AG3,Tilbehør!$B:$B,Tilbehør!$A:$A),"Findes ikke")) -> Apple iPhone SE Silicone Case Black | AG3: A23747 | AH3: =IFERROR(VLOOKUP(AG3,Lager!$A:$C,3,FALSE),0) -> 61 | AI3: =IF(AK3=0,"Pt udsolgt",IFERROR(_xlfn.XLOOKUP(AJ3,Tilbehør!$B:$B,Tilbehør!$A:$A),"Findes ikke")) -> Apple iPhone SE Silicone Case Black | AJ3: A23747 | AK3: =IFERROR(VLOOKUP(AJ3,Lager!$A:$C,3,FALSE),0) -> 61 | AL3: =IF(AN3=0,"Pt udsolgt",IFERROR(_xlfn.XLOOKUP(AM3,Tilbehør!$B:$B,Tilbehør!$A:$A),"Findes ikke")) -> Apple iPhone SE Silicone Case Black | AM3: A23747 | AN3: =IFERROR(VLOOKUP(AM3,Lager!$A:$C,3,FALSE),0) -> 61 | AO3: =IF(AQ3=0,"Pt udsolgt",IFERROR(_xlfn.XLOOKUP(AP3,Tilbehør!$B:$B,Tilbehør!$A:$A),"Findes ikke")) -> Apple iPhone 12 og 12 Pro Silicone MagSafe Cypress Green | AP3: A24279 | AQ3: =IFERROR(VLOOKUP(AP3,Lager!$A:$C,3,FALSE),0) -> 121 | AR3: =IF(AT3=0,"Pt udsolgt",IFERROR(_xlfn.XLOOKUP(AS3,Tilbehør!$B:$B,Tilbehør!$A:$A),"Findes ikke")) -> Apple iPhone 12 og 12 Pro Silicone MagSafe Cypress Green | AS3: A24279 | AT3: =IFERROR(VLOOKUP(AS3,Lager!$A:$C,3,FALSE),0) -> 121 | AU3: =IF(AW3=0,"Pt udsolgt",IFERROR(_xlfn.XLOOKUP(AV3,Tilbehør!$B:$B,Tilbehør!$A:$A),"Findes ikke")) -> Apple iPhone 12 og 12 Pro Silicone MagSafe Cypress Green | AV3: A24279 | AW3: =IFERROR(VLOOKUP(AV3,Lager!$A:$C,3,FALSE),0) -> 121 | AX3: =IF(AZ3=0,"Pt udsolgt",IFERROR(_xlfn.XLOOKUP(AY3,Tilbehør!$B:$B,Tilbehør!$A:$A),"Findes ikke")) -> Apple iPhone 12 og 12 Pro Silicone MagSafe Cypress Green | AY3: A24279 | AZ3: =IFERROR(VLOOKUP(AY3,Lager!$A:$C,3,FALSE),0) -> 121 | BA3: =IF(BC3=0,"Pt udsolgt",IFERROR(_xlfn.XLOOKUP(BB3,Tilbehør!$B:$B,Tilbehør!$A:$A),"Findes ikke")) -> Apple iPhone 12 og 12 Pro Silicone MagSafe Cypress Green | BB3: A24279 | BC3: =IFERROR(VLOOKUP(BB3,Lager!$A:$C,3,FALSE),0) -> 121 | BD3: =IF(BF3=0,"Pt udsolgt",IFERROR(_xlfn.XLOOKUP(BE3,Tilbehør!$B:$B,Tilbehør!$A:$A),"Findes ikke")) -> Apple iPhone 12 og 12 Pro Silicone MagSafe Cypress Green | BE3: A24279 | BF3: =IFERROR(VLOOKUP(BE3,Lager!$A:$C,3,FALSE),0) -> 121 | BG3: =IF(BI3=0,"Pt udsolgt",IFERROR(_xlfn.XLOOKUP(BH3,Tilbehør!$B:$B,Tilbehør!$A:$A),"Findes ikke")) -> Apple iPhone 12 mini Leather MagSafe Baltic Blue | BH3: A24265 | BI3: =IFERROR(VLOOKUP(BH3,Lager!$A:$C,3,FALSE),0) -> 10 | BJ3: =IF(BL3=0,"Pt udsolgt",IFERROR(_xlfn.XLOOKUP(BK3,Tilbehør!$B:$B,Tilbehør!$A:$A),"Findes ikke")) -> Apple iPhone 12 mini Leather MagSafe Baltic Blue | BK3: A24265 | BL3: =IFERROR(VLOOKUP(BK3,Lager!$A:$C,3,FALSE),0) -> 10 | BM3: =IF(BO3=0,"Pt udsolgt",IFERROR(_xlfn.XLOOKUP(BN3,Tilbehør!$B:$B,Tilbehør!$A:$A),"Findes ikke")) -> Apple iPhone 12 mini Leather MagSafe Baltic Blue | BN3: A24265 | BO3: =IFERROR(VLOOKUP(BN3,Lager!$A:$C,3,FALSE),0) -> 10 | BP3: =IF(BR3=0,"Pt udsolgt",IFERROR(_xlfn.XLOOKUP(BQ3,Tilbehør!$B:$B,Tilbehør!$A:$A),"Findes ikke")) -> Apple iPhone 12 Pro Max Leather MagSafe Baltic Blue | BQ3: A24271 | BR3: =IFERROR(VLOOKUP(BQ3,Lager!$A:$C,3,FALSE),0) -> 11 | BS3: =IF(BU3=0,"Pt udsolgt",IFERROR(_xlfn.XLOOKUP(BT3,Tilbehør!$B:$B,Tilbehør!$A:$A),"Findes ikke")) -> Apple iPhone 12 Pro Max Leather MagSafe Baltic Blue | BT3: A24271 | BU3: =IFERROR(VLOOKUP(BT3,Lager!$A:$C,3,FALSE),0) -> 11 | BV3: =IF(BX3=0,"Pt udsolgt",IFERROR(_xlfn.XLOOKUP(BW3,Tilbehør!$B:$B,Tilbehør!$A:$A),"Findes ikke")) -> Apple iPhone 12 Pro Max Leather MagSafe Baltic Blue | BW3: A24271 | BX3: =IFERROR(VLOOKUP(BW3,Lager!$A:$C,3,FALSE),0) -> 11
A4: Apple iPhone 12 mini 256GB (OBS. UDEN OPLADER) | B4: AppleiPhone12mini256GBCover | C4: AppleiPhone12mini256GBpanserglas | E4: =IF(G4=0,"Pt udsolgt",IFERROR(_xlfn.XLOOKUP(F4,Tilbehør!B:B,Tilbehør!A:A),"Findes ikke")) -> ON IPHONE iPhone 11 Premium Silicone BLACK | F4: A23199 | G4: =IFERROR(VLOOKUP(F4,Lager!$A:$C,3,FALSE),0) -> 44 | H4: =IF(J4=0,"Pt udsolgt",IFERROR(_xlfn.XLOOKUP(I4,Tilbehør!$B:$B,Tilbehør!$A:$A),"Findes ikke")) -> Apple iPhone 11 Pro Clear Case | I4: A23253 | J4: =IFERROR(VLOOKUP(I4,Lager!$A:$C,3,FALSE),0) -> 36 | K4: =IF(M4=0,"Pt udsolgt",IFERROR(_xlfn.XLOOKUP(L4,Tilbehør!$B:$B,Tilbehør!$A:$A),"Findes ikke")) -> Apple iPhone 11 Pro Max Clear Case | L4: A23259 | M4: =IFERROR(VLOOKUP(L4,Lager!$A:$C,3,FALSE),0) -> 121 | Q4: =IF(S4=0,"Pt udsolgt",IFERROR(_xlfn.XLOOKUP(R4,Tilbehør!$B:$B,Tilbehør!$A:$A),"Findes ikke")) -> Apple iPhone XS Max Silicone Case Pink Sand | R4: A22987 | S4: =IFERROR(VLOOKUP(R4,Lager!$A:$C,3,FALSE),0) -> 145 | T4: =IF(V4=0,"Pt udsolgt",IFERROR(_xlfn.XLOOKUP(U4,Tilbehør!$B:$B,Tilbehør!$A:$A),"Findes ikke")) -> Dbramante 1928 Tune iPhone Xr Black | U4: A22943 | V4: =IFERROR(VLOOKUP(U4,Lager!$A:$C,3,FALSE),0) -> 69 | W4: =IF(Y4=0,"Pt udsolgt",IFERROR(_xlfn.XLOOKUP(X3,Tilbehør!$B:$B,Tilbehør!$A:$A),"Findes ikke")) -> Pt udsolgt | X4: A22774 | Y4: =IFERROR(VLOOKUP(X4,Lager!$A:$C,3,FALSE),0) -> 0 | Z4: =IF(AB4=0,"Pt udsolgt",IFERROR(_xlfn.XLOOKUP(AA4,Tilbehør!$B:$B,Tilbehør!$A:$A),"Findes ikke")) -> Apple iPhone 8 Plus 7 Plus Silicone Case Midnight Blue | AA4: A22510 | AB4: =IFERROR(VLOOKUP(AA4,Lager!$A:$C,3,FALSE),0) -> 57 | AC4: =IF(AE4=0,"Pt udsolgt",IFERROR(_xlfn.XLOOKUP(AD4,Tilbehør!$B:$B,Tilbehør!$A:$A),"Findes ikke")) -> Pt udsolgt | AD4: A22774 | AE4: =IFERROR(VLOOKUP(AD4,Lager!A:C,3,FALSE),0) -> 0 | AF4: =IF(AH4=0,"Pt udsolgt",IFERROR(_xlfn.XLOOKUP(AG4,Tilbehør!$B:$B,Tilbehør!$A:$A),"Findes ikke")) -> Apple iPhone SE Leather Black | AG4: A23749 | AH4: =IFERROR(VLOOKUP(AG4,Lager!$A:$C,3,FALSE),0) -> 5 | AI4: =IF(AK4=0,"Pt udsolgt",IFERROR(_xlfn.XLOOKUP(AJ4,Tilbehør!$B:$B,Tilbehør!$A:$A),"Findes ikke")) -> Apple iPhone SE Leather Black | AJ4: A23749 | AK4: =IFERROR(VLOOKUP(AJ4,Lager!$A:$C,3,FALSE),0) -> 5 | AL4: =IF(AN4=0,"Pt udsolgt",IFERROR(_xlfn.XLOOKUP(AM4,Tilbehør!$B:$B,Tilbehør!$A:$A),"Findes ikke")) -> Apple iPhone SE Leather Black | AM4: A23749 | AN4: =IFERROR(VLOOKUP(AM4,Lager!$A:$C,3,FALSE),0) -> 5 | AO4: =IF(AQ4=0,"Pt udsolgt",IFERROR(_xlfn.XLOOKUP(AP4,Tilbehør!$B:$B,Tilbehør!$A:$A),"Findes ikke")) -> Apple iPhone 12 og 12 Pro Silicone MagSafe Plum | AP4: A24278 | AQ4: =IFERROR(VLOOKUP(AP4,Lager!$A:$C,3,FALSE),0) -> 20 | AR4: =IF(AT4=0,"Pt udsolgt",IFERROR(_xlfn.XLOOKUP(AS4,Tilbehør!$B:$B,Tilbehør!$A:$A),"Findes ikke")) -> Apple iPhone 12 og 12 Pro Silicone MagSafe Plum | AS4: A24278 | AT4: =IFERROR(VLOOKUP(AS4,Lager!$A:$C,3,FALSE),0) -> 20 | AU4: =IF(AW4=0,"Pt udsolgt",IFERROR(_xlfn.XLOOKUP(AV4,Tilbehør!$B:$B,Tilbehør!$A:$A),"Findes ikke")) -> Apple iPhone 12 og 12 Pro Silicone MagSafe Plum | AV4: A24278 | AW4: =IFERROR(VLOOKUP(AV4,Lager!$A:$C,3,FALSE),0) -> 20 | AX4: =IF(AZ4=0,"Pt udsolgt",IFERROR(_xlfn.XLOOKUP(AY4,Tilbehør!$B:$B,Tilbehør!$A:$A),"Findes ikke")) -> Apple iPhone 12 og 12 Pro Silicone MagSafe Plum | AY4: A24278 | AZ4: =IFERROR(VLOOKUP(AY4,Lager!$A:$C,3,FALSE),0) -> 20 | BA4: =IF(BC4=0,"Pt udsolgt",IFERROR(_xlfn.XLOOKUP(BB4,Tilbehør!$B:$B,Tilbehør!$A:$A),"Findes ikke")) -> Apple iPhone 12 og 12 Pro Silicone MagSafe Plum | BB4: A24278 | BC4: =IFERROR(VLOOKUP(BB4,Lager!$A:$C,3,FALSE),0) -> 20 | BD4: =IF(BF4=0,"Pt udsolgt",IFERROR(_xlfn.XLOOKUP(BE4,Tilbehør!$B:$B,Tilbehør!$A:$A),"Findes ikke")) -> Apple iPhone 12 og 12 Pro Silicone MagSafe Plum | BE4: A24278 | BF4: =IFERROR(VLOOKUP(BE4,Lager!$A:$C,3,FALSE),0) -> 20 | BG4: =IF(BI4=0,"Pt udsolgt",IFERROR(_xlfn.XLOOKUP(BH4,Tilbehør!$B:$B,Tilbehør!$A:$A),"Findes ikke")) -> Apple iPhone 12 mini Leather MagSafe Saddle Brown | BH4: A24266 | BI4: =IFERROR(VLOOKUP(BH4,Lager!$A:$C,3,FALSE),0) -> 40 | BJ4: =IF(BL4=0,"Pt udsolgt",IFERROR(_xlfn.XLOOKUP(BK4,Tilbehør!$B:$B,Tilbehør!$A:$A),"Findes ikke")) -> Apple iPhone 12 mini Leather MagSafe Saddle Brown | BK4: A24266 | BL4: =IFERROR(VLOOKUP(BK4,Lager!$A:$C,3,FALSE),0) -> 40 | BM4: =IF(BO4=0,"Pt udsolgt",IFERROR(_xlfn.XLOOKUP(BN4,Tilbehør!$B:$B,Tilbehør!$A:$A),"Findes ikke")) -> Apple iPhone 12 mini Leather MagSafe Saddle Brown | BN4: A24266 | BO4: =IFERROR(VLOOKUP(BN4,Lager!$A:$C,3,FALSE),0) -> 40 | BP4: =IF(BR4=0,"Pt udsolgt",IFERROR(_xlfn.XLOOKUP(BQ4,Tilbehør!$B:$B,Tilbehør!$A:$A),"Findes ikke")) -> Apple iPhone 12 Pro Max Leather MagSafe Saddle Brown | BQ4: A24272 | BR4: =IFERROR(VLOOKUP(BQ4,Lager!$A:$C,3,FALSE),0) -> 40 | BS4: =IF(BU4=0,"Pt udsolgt",IFERROR(_xlfn.XLOOKUP(BT4,Tilbehør!$B:$B,Tilbehør!$A:$A),"Findes ikke")) -> Apple iPhone 12 Pro Max Leather MagSafe Saddle Brown | BT4: A24272 | BU4: =IFERROR(VLOOKUP(BT4,Lager!$A:$C,3,FALSE),0) -> 40 | BV4: =IF(BX4=0,"Pt udsolgt",IFERROR(_xlfn.XLOOKUP(BW4,Tilbehør!$B:$B,Tilbehør!$A:$A),"Findes ikke")) -> Apple iPhone 12 Pro Max Leather MagSafe Saddle Brown | BW4: A24272 | BX4: =IFERROR(VLOOKUP(BW4,Lager!$A:$C,3,FALSE),0) -> 40
A5: Apple iPhone 12 64GB (OBS. UDEN OPLADER) | B5: AppleiPhone12128GBCover | C5: AppleiPhone12128GBPanserglas | E5: =IF(G5=0,"Pt udsolgt",IFERROR(_xlfn.XLOOKUP(F5,Tilbehør!B:B,Tilbehør!A:A),"Findes ikke")) -> ON iPhone 11 TPU ULTRA THIN CLEAR | F5: A23196 | G5: =IFERROR(VLOOKUP(F5,Lager!$A:$C,3,FALSE),0) -> 174 | H5: =IF(J5=0,"Pt udsolgt",IFERROR(_xlfn.XLOOKUP(I5,Tilbehør!$B:$B,Tilbehør!$A:$A),"Findes ikke")) -> Apple iPhone 11 Pro Leather Case Black | I5: A23252 | J5: =IFERROR(VLOOKUP(I5,Lager!$A:$C,3,FALSE),0) -> 44 | K5: =IF(M5=0,"Pt udsolgt",IFERROR(_xlfn.XLOOKUP(L5,Tilbehør!$B:$B,Tilbehør!$A:$A),"Findes ikke")) -> Apple iPhone 11 Pro Max Silicone Case Black | L5: A23257 | M5: =IFERROR(VLOOKUP(L5,Lager!$A:$C,3,FALSE),0) -> 8 | Q5: =IF(S5=0,"Pt udsolgt",IFERROR(_xlfn.XLOOKUP(R5,Tilbehør!$B:$B,Tilbehør!$A:$A),"Findes ikke")) -> Apple iPhone XS Max Leather Folio Black | R5: A22985 | S5: =IFERROR(VLOOKUP(R5,Lager!$A:$C,3,FALSE),0) -> 80 | Z5: =IF(AB5=0,"Pt udsolgt",IFERROR(_xlfn.XLOOKUP(AA5,Tilbehør!$B:$B,Tilbehør!$A:$A),"Findes ikke")) -> Pt udsolgt | AA5: A21614 | AB5: =IFERROR(VLOOKUP(AA5,Lager!$A:$C,3,FALSE),0) -> 0 | AF5: =IF(AH5=0,"Pt udsolgt",IFERROR(_xlfn.XLOOKUP(AG5,Tilbehør!$B:$B,Tilbehør!$A:$A),"Findes ikke")) -> Apple iPhone SE Silicone Case Pink Sand | AG5: A23748 | AH5: =IFERROR(VLOOKUP(AG5,Lager!$A:$C,3,FALSE),0) -> 2 | AI5: =IF(AK5=0,"Pt udsolgt",IFERROR(_xlfn.XLOOKUP(#REF!,Tilbehør!$B:$B,Tilbehør!$A:$A),"Findes ikke")) -> Pt udsolgt | AJ5: A23748 | AK5: =IFERROR(VLOOKUP(#REF!,Lager!$A:$C,3,FALSE),0) -> 0 | AL5: =IF(AN5=0,"Pt udsolgt",IFERROR(_xlfn.XLOOKUP(#REF!,Tilbehør!$B:$B,Tilbehør!$A:$A),"Findes ikke")) -> Pt udsolgt | AM5: A23748 | AN5: =IFERROR(VLOOKUP(#REF!,Lager!$A:$C,3,FALSE),0) -> 0 | AO5: =IF(AQ5=0,"Pt udsolgt",IFERROR(_xlfn.XLOOKUP(AP5,Tilbehør!$B:$B,Tilbehør!$A:$A),"Findes ikke")) -> Dbramante Barcelona iPhone 12 og 12 pro Night Black | AP5: A23965 | AQ5: =IFERROR(VLOOKUP(AP5,Lager!$A:$C,3,FALSE),0) -> 57 | AR5: =IF(AT5=0,"Pt udsolgt",IFERROR(_xlfn.XLOOKUP(AS5,Tilbehør!$B:$B,Tilbehør!$A:$A),"Findes ikke")) -> Dbramante Barcelona iPhone 12 og 12 pro Night Black | AS5: A23965 | AT5: =IFERROR(VLOOKUP(AS5,Lager!$A:$C,3,FALSE),0) -> 57 | AU5: =IF(AW5=0,"Pt udsolgt",IFERROR(_xlfn.XLOOKUP(AV5,Tilbehør!$B:$B,Tilbehør!$A:$A),"Findes ikke")) -> Dbramante Barcelona iPhone 12 og 12 pro Night Black | AV5: A23965 | AW5: =IFERROR(VLOOKUP(AV5,Lager!$A:$C,3,FALSE),0) -> 57 | AX5: =IF(AZ5=0,"Pt udsolgt",IFERROR(_xlfn.XLOOKUP(AY5,Tilbehør!$B:$B,Tilbehør!$A:$A),"Findes ikke")) -> Dbramante Barcelona iPhone 12 og 12 pro Night Black | AY5: A23965 | AZ5: =IFERROR(VLOOKUP(AY5,Lager!$A:$C,3,FALSE),0) -> 57 | BA5: =IF(BC5=0,"Pt udsolgt",IFERROR(_xlfn.XLOOKUP(BB5,Tilbehør!$B:$B,Tilbehør!$A:$A),"Findes ikke")) -> Dbramante Barcelona iPhone 12 og 12 pro Night Black | BB5: A23965 | BC5: =IFERROR(VLOOKUP(BB5,Lager!$A:$C,3,FALSE),0) -> 57 | BD5: =IF(BF5=0,"Pt udsolgt",IFERROR(_xlfn.XLOOKUP(BE5,Tilbehør!$B:$B,Tilbehør!$A:$A),"Findes ikke")) -> Dbramante Barcelona iPhone 12 og 12 pro Night Black | BE5: A23965 | BF5: =IFERROR(VLOOKUP(BE5,Lager!$A:$C,3,FALSE),0) -> 57 | BG5: =IF(BI5=0,"Pt udsolgt",IFERROR(_xlfn.XLOOKUP(BH5,Tilbehør!$B:$B,Tilbehør!$A:$A),"Findes ikke")) -> Apple iPhone 12 mini Leather MagSafe Black | BH5: A24267 | BI5: =IFERROR(VLOOKUP(BH5,Lager!$A:$C,3,FALSE),0) -> 67 | BJ5: =IF(BL5=0,"Pt udsolgt",IFERROR(_xlfn.XLOOKUP(BK5,Tilbehør!$B:$B,Tilbehør!$A:$A),"Findes ikke")) -> Apple iPhone 12 mini Leather MagSafe Black | BK5: A24267 | BL5: =IFERROR(VLOOKUP(BK5,Lager!$A:$C,3,FALSE),0) -> 67 | BM5: =IF(BO5=0,"Pt udsolgt",IFERROR(_xlfn.XLOOKUP(BN5,Tilbehør!$B:$B,Tilbehør!$A:$A),"Findes ikke")) -> Apple iPhone 12 mini Leather MagSafe Black | BN5: A24267 | BO5: =IFERROR(VLOOKUP(BN5,Lager!$A:$C,3,FALSE),0) -> 67 | BP5: =IF(BR5=0,"Pt udsolgt",IFERROR(_xlfn.XLOOKUP(BQ5,Tilbehør!$B:$B,Tilbehør!$A:$A),"Findes ikke")) -> Apple iPhone 12 Pro Max Leather MagSafe Black | BQ5: A24273 | BR5: =IFERROR(VLOOKUP(BQ5,Lager!$A:$C,3,FALSE),0) -> 73 | BS5: =IF(BU5=0,"Pt udsolgt",IFERROR(_xlfn.XLOOKUP(BT5,Tilbehør!$B:$B,Tilbehør!$A:$A),"Findes ikke")) -> Apple iPhone 12 Pro Max Leather MagSafe Black | BT5: A24273 | BU5: =IFERROR(VLOOKUP(BT5,Lager!$A:$C,3,FALSE),0) -> 73 | BV5: =IF(BX5=0,"Pt udsolgt",IFERROR(_xlfn.XLOOKUP(BW5,Tilbehør!$B:$B,Tilbehør!$A:$A),"Findes ikke")) -> Apple iPhone 12 Pro Max Leather MagSafe Black | BW5: A24273 | BX5: =IFERROR(VLOOKUP(BW5,Lager!$A:$C,3,FALSE),0) -> 73
A6: Apple iPhone 12 128GB (OBS. UDEN OPLADER) | B6: AppleiPhone12256GBCover | C6: AppleiPhone12256GBPanserglas | E6: =IF(G6=0,"Pt udsolgt",IFERROR(_xlfn.XLOOKUP(F6,Tilbehør!B:B,Tilbehør!A:A),"Findes ikke")) -> DBRAMANTE 1928 LYNGE iPhone 11 BLACK | F6: A23207 | G6: =IFERROR(VLOOKUP(F6,Lager!$A:$C,3,FALSE),0) -> 5 | H6: =IF(J6=0,"Pt udsolgt",IFERROR(_xlfn.XLOOKUP(I6,Tilbehør!$B:$B,Tilbehør!$A:$A),"Findes ikke")) -> Apple iPhone 11 Pro Silicone Case Black | I6: A23256 | J6: =IFERROR(VLOOKUP(I6,Lager!$A:$C,3,FALSE),0) -> 20 | K6: =IF(M6=0,"Pt udsolgt",IFERROR(_xlfn.XLOOKUP(L6,Tilbehør!$B:$B,Tilbehør!$A:$A),"Findes ikke")) -> Apple iPhone 11 Pro Max Leather Case Black | L6: A23258 | M6: =IFERROR(VLOOKUP(L6,Lager!$A:$C,3,FALSE),0) -> 2 | Q6: =IF(S6=0,"Pt udsolgt",IFERROR(_xlfn.XLOOKUP(R6,Tilbehør!$B:$B,Tilbehør!$A:$A),"Findes ikke")) -> Apple iPhone XS Max Leather Case Black | R6: A22984 | S6: =IFERROR(VLOOKUP(R6,Lager!$A:$C,3,FALSE),0) -> 221 | Z6: =IF(AB6=0,"Pt udsolgt",IFERROR(_xlfn.XLOOKUP(AA6,Tilbehør!$B:$B,Tilbehør!$A:$A),"Findes ikke")) -> Pt udsolgt | AA6: A21622 | AB6: =IFERROR(VLOOKUP(AA6,Lager!$A:$C,3,FALSE),0) -> 0 | AO6: =IF(AQ6=0,"Pt udsolgt",IFERROR(_xlfn.XLOOKUP(AP6,Tilbehør!$B:$B,Tilbehør!$A:$A),"Findes ikke")) -> Apple iPhone 12 og 12 Pro Silicone MagSafe Black | AP6: A24281 | AQ6: =IFERROR(VLOOKUP(AP6,Lager!$A:$C,3,FALSE),0) -> 32 | AR6: =IF(AT6=0,"Pt udsolgt",IFERROR(_xlfn.XLOOKUP(AS6,Tilbehør!$B:$B,Tilbehør!$A:$A),"Findes ikke")) -> Apple iPhone 12 og 12 Pro Silicone MagSafe Black | AS6: A24281 | AT6: =IFERROR(VLOOKUP(AS6,Lager!$A:$C,3,FALSE),0) -> 32 | AU6: =IF(AW6=0,"Pt udsolgt",IFERROR(_xlfn.XLOOKUP(AV6,Tilbehør!$B:$B,Tilbehør!$A:$A),"Findes ikke")) -> Apple iPhone 12 og 12 Pro Silicone MagSafe Black | AV6: A24281 | AW6: =IFERROR(VLOOKUP(AV6,Lager!$A:$C,3,FALSE),0) -> 32 | AX6: =IF(AZ6=0,"Pt udsolgt",IFERROR(_xlfn.XLOOKUP(AY6,Tilbehør!$B:$B,Tilbehør!$A:$A),"Findes ikke")) -> Apple iPhone 12 og 12 Pro Silicone MagSafe Black | AY6: A24281 | AZ6: =IFERROR(VLOOKUP(AY6,Lager!$A:$C,3,FALSE),0) -> 32 | BA6: =IF(BC6=0,"Pt udsolgt",IFERROR(_xlfn.XLOOKUP(BB6,Tilbehør!$B:$B,Tilbehør!$A:$A),"Findes ikke")) -> Apple iPhone 12 og 12 Pro Silicone MagSafe Black | BB6: A24281 | BC6: =IFERROR(VLOOKUP(BB6,Lager!$A:$C,3,FALSE),0) -> 32 | BD6: =IF(BF6=0,"Pt udsolgt",IFERROR(_xlfn.XLOOKUP(BE6,Tilbehør!$B:$B,Tilbehør!$A:$A),"Findes ikke")) -> Apple iPhone 12 og 12 Pro Silicone MagSafe Black | BE6: A24281 | BF6: =IFERROR(VLOOKUP(BE6,Lager!$A:$C,3,FALSE),0) -> 32 | BG6: =IF(BI6=0,"Pt udsolgt",IFERROR(_xlfn.XLOOKUP(BH6,Tilbehør!$B:$B,Tilbehør!$A:$A),"Findes ikke")) -> Apple iPhone 12 mini Silicone MagSafe Plum | BH6: A24274 | BI6: =IFERROR(VLOOKUP(BH6,Lager!$A:$C,3,FALSE),0) -> 39 | BJ6: =IF(BL6=0,"Pt udsolgt",IFERROR(_xlfn.XLOOKUP(BK6,Tilbehør!$B:$B,Tilbehør!$A:$A),"Findes ikke")) -> Apple iPhone 12 mini Silicone MagSafe Plum | BK6: A24274 | BL6: =IFERROR(VLOOKUP(BK6,Lager!$A:$C,3,FALSE),0) -> 39 | BM6: =IF(BO6=0,"Pt udsolgt",IFERROR(_xlfn.XLOOKUP(BN6,Tilbehør!$B:$B,Tilbehør!$A:$A),"Findes ikke")) -> Apple iPhone 12 mini Silicone MagSafe Plum | BN6: A24274 | BO6: =IFERROR(VLOOKUP(BN6,Lager!$A:$C,3,FALSE),0) -> 39 | BP6: =IF(BR6=0,"Pt udsolgt",IFERROR(_xlfn.XLOOKUP(BQ6,Tilbehør!$B:$B,Tilbehør!$A:$A),"Findes ikke")) -> Apple iPhone 12 Pro Max Silicone MagSafe Plum | BQ6: A24282 | BR6: =IFERROR(VLOOKUP(BQ6,Lager!$A:$C,3,FALSE),0) -> 30 | BS6: =IF(BU6=0,"Pt udsolgt",IFERROR(_xlfn.XLOOKUP(BT6,Tilbehør!$B:$B,Tilbehør!$A:$A),"Findes ikke")) -> Apple iPhone 12 Pro Max Silicone MagSafe Plum | BT6: A24282 | BU6: =IFERROR(VLOOKUP(BT6,Lager!$A:$C,3,FALSE),0) -> 30 | BV6: =IF(BX6=0,"Pt udsolgt",IFERROR(_xlfn.XLOOKUP(BW6,Tilbehør!$B:$B,Tilbehør!$A:$A),"Findes ikke")) -> Apple iPhone 12 Pro Max Silicone MagSafe Plum | BW6: A24282 | BX6: =IFERROR(VLOOKUP(BW6,Lager!$A:$C,3,FALSE),0) -> 30
A7: Apple iPhone 12 256GB (OBS. UDEN OPLADER) | B7: AppleiPhone1264GBCover | C7: AppleiPhone1264GBPanserglas | E7: =IF(G7=0,"Pt udsolgt",IFERROR(_xlfn.XLOOKUP(F7,Tilbehør!B:B,Tilbehør!A:A),"Findes ikke")) -> DBRAMANTE 1928 Herning iPhone 11 Pro Black | F7: A23208 | G7: =IFERROR(VLOOKUP(F7,Lager!$A:$C,3,FALSE),0) -> 73 | H7: =IF(J7=0,"Pt udsolgt",IFERROR(_xlfn.XLOOKUP(I7,Tilbehør!$B:$B,Tilbehør!$A:$A),"Findes ikke")) -> Apple iPhone 11 Pro Silicone Case White | I7: A23254 | J7: =IFERROR(VLOOKUP(I7,Lager!$A:$C,3,FALSE),0) -> 53 | K7: =IF(M7=0,"Pt udsolgt",IFERROR(_xlfn.XLOOKUP(L7,Tilbehør!$B:$B,Tilbehør!$A:$A),"Findes ikke")) -> ON IPHONE 11 MAX Pro Premium Silicone BLACK | L7: A23201 | M7: =IFERROR(VLOOKUP(L7,Lager!$A:$C,3,FALSE),0) -> 12 | Q7: =IF(S7=0,"Pt udsolgt",IFERROR(_xlfn.XLOOKUP(R7,Tilbehør!$B:$B,Tilbehør!$A:$A),"Findes ikke")) -> Pt udsolgt | R7: A22942 | S7: =IFERROR(VLOOKUP(R7,Lager!$A:$C,3,FALSE),0) -> 0 | Z7: =IF(AB7=0,"Pt udsolgt",IFERROR(_xlfn.XLOOKUP(AA7,Tilbehør!$B:$B,Tilbehør!$A:$A),"Findes ikke")) -> Pt udsolgt | AA7: A21620 | AB7: =IFERROR(VLOOKUP(AA7,Lager!$A:$C,3,FALSE),0) -> 0 | AO7: =IF(AQ7=0,"Pt udsolgt",IFERROR(_xlfn.XLOOKUP(AP7,Tilbehør!$B:$B,Tilbehør!$A:$A),"Findes ikke")) -> Dbramante Lynge iPhone 12 og 12 pro Black | AP7: A23949 | AQ7: =IFERROR(VLOOKUP(AP7,Lager!$A:$C,3,FALSE),0) -> 4 | AR7: =IF(AT7=0,"Pt udsolgt",IFERROR(_xlfn.XLOOKUP(AS7,Tilbehør!$B:$B,Tilbehør!$A:$A),"Findes ikke")) -> Dbramante Lynge iPhone 12 og 12 pro Black | AS7: A23949 | AT7: =IFERROR(VLOOKUP(AS7,Lager!$A:$C,3,FALSE),0) -> 4 | AU7: =IF(AW7=0,"Pt udsolgt",IFERROR(_xlfn.XLOOKUP(AV7,Tilbehør!$B:$B,Tilbehør!$A:$A),"Findes ikke")) -> Dbramante Lynge iPhone 12 og 12 pro Black | AV7: A23949 | AW7: =IFERROR(VLOOKUP(AV7,Lager!$A:$C,3,FALSE),0) -> 4 | AX7: =IF(AZ7=0,"Pt udsolgt",IFERROR(_xlfn.XLOOKUP(AY7,Tilbehør!$B:$B,Tilbehør!$A:$A),"Findes ikke")) -> Dbramante Lynge iPhone 12 og 12 pro Black | AY7: A23949 | AZ7: =IFERROR(VLOOKUP(AY7,Lager!$A:$C,3,FALSE),0) -> 4 | BA7: =IF(BC7=0,"Pt udsolgt",IFERROR(_xlfn.XLOOKUP(BB7,Tilbehør!$B:$B,Tilbehør!$A:$A),"Findes ikke")) -> Dbramante Lynge iPhone 12 og 12 pro Black | BB7: A23949 | BC7: =IFERROR(VLOOKUP(BB7,Lager!$A:$C,3,FALSE),0) -> 4 | BD7: =IF(BF7=0,"Pt udsolgt",IFERROR(_xlfn.XLOOKUP(BE7,Tilbehør!$B:$B,Tilbehør!$A:$A),"Findes ikke")) -> Dbramante Lynge iPhone 12 og 12 pro Black | BE7: A23949 | BF7: =IFERROR(VLOOKUP(BE7,Lager!$A:$C,3,FALSE),0) -> 4 | BG7: =IF(BI7=0,"Pt udsolgt",IFERROR(_xlfn.XLOOKUP(BH7,Tilbehør!$B:$B,Tilbehør!$A:$A),"Findes ikke")) -> Apple iPhone 12 mini Silicone MagSafe Cypress Green | BH7: A24275 | BI7: =IFERROR(VLOOKUP(BH7,Lager!$A:$C,3,FALSE),0) -> 179 | BJ7: =IF(BL7=0,"Pt udsolgt",IFERROR(_xlfn.XLOOKUP(BK7,Tilbehør!$B:$B,Tilbehør!$A:$A),"Findes ikke")) -> Apple iPhone 12 mini Silicone MagSafe Cypress Green | BK7: A24275 | BL7: =IFERROR(VLOOKUP(BK7,Lager!$A:$C,3,FALSE),0) -> 179 | BM7: =IF(BO7=0,"Pt udsolgt",IFERROR(_xlfn.XLOOKUP(BN7,Tilbehør!$B:$B,Tilbehør!$A:$A),"Findes ikke")) -> Apple iPhone 12 mini Silicone MagSafe Cypress Green | BN7: A24275 | BO7: =IFERROR(VLOOKUP(BN7,Lager!$A:$C,3,FALSE),0) -> 179 | BP7: =IF(BR7=0,"Pt udsolgt",IFERROR(_xlfn.XLOOKUP(BQ7,Tilbehør!$B:$B,Tilbehør!$A:$A),"Findes ikke")) -> Apple iPhone 12 Pro Max Silicone MagSafe Cypress Green | BQ7: A24283 | BR7: =IFERROR(VLOOKUP(BQ7,Lager!$A:$C,3,FALSE),0) -> 189 | BS7: =IF(BU7=0,"Pt udsolgt",IFERROR(_xlfn.XLOOKUP(BT7,Tilbehør!$B:$B,Tilbehør!$A:$A),"Findes ikke")) -> Apple iPhone 12 Pro Max Silicone MagSafe Cypress Green | BT7: A24283 | BU7: =IFERROR(VLOOKUP(BT7,Lager!$A:$C,3,FALSE),0) -> 189 | BV7: =IF(BX7=0,"Pt udsolgt",IFERROR(_xlfn.XLOOKUP(BW7,Tilbehør!$B:$B,Tilbehør!$A:$A),"Findes ikke")) -> Apple iPhone 12 Pro Max Silicone MagSafe Cypress Green | BW7: A24283 | BX7: =IFERROR(VLOOKUP(BW7,Lager!$A:$C,3,FALSE),0) -> 189
A8: Apple iPhone 12 Pro 128GB (OBS. UDEN OPLADER) | B8: AppleiPhone12Pro128GBCover | C8: AppleiPhone12Pro128GBPanserglas | E8: =IF(G8=0,"Pt udsolgt",IFERROR(_xlfn.XLOOKUP(F8,Tilbehør!B:B,Tilbehør!A:A),"Findes ikke")) -> IDEAL FASHION WALLET IPHONE 11 BLACK | F8: A23342 | G8: =IFERROR(VLOOKUP(F8,Lager!$A:$C,3,FALSE),0) -> 17 | H8: =IF(J8=0,"Pt udsolgt",IFERROR(_xlfn.XLOOKUP(I8,Tilbehør!$B:$B,Tilbehør!$A:$A),"Findes ikke")) -> ON IPHONE iPhone 11 Pro TPU ULTRA THIN CLEAR | I8: A23197 | J8: =IFERROR(VLOOKUP(I8,Lager!$A:$C,3,FALSE),0) -> 30 | Q8: =IF(S8=0,"Pt udsolgt",IFERROR(_xlfn.XLOOKUP(R8,Tilbehør!$B:$B,Tilbehør!$A:$A),"Findes ikke")) -> Pt udsolgt | S8: =IFERROR(VLOOKUP(R8,Lager!$A:$C,3,FALSE),0) -> 0 | Z8: =IF(AB8=0,"Pt udsolgt",IFERROR(_xlfn.XLOOKUP(AA8,Tilbehør!$B:$B,Tilbehør!$A:$A),"Findes ikke")) -> Pt udsolgt | AA8: A21617 | AB8: =IFERROR(VLOOKUP(AA8,Lager!$A:$C,3,FALSE),0) -> 0 | AO8: =IF(AQ8=0,"Pt udsolgt",IFERROR(_xlfn.XLOOKUP(AP8,Tilbehør!$B:$B,Tilbehør!$A:$A),"Findes ikke")) -> Dbramante Lynge iPhone 12 og 12 pro Tan | AP8: A23950 | AQ8: =IFERROR(VLOOKUP(AP8,Lager!$A:$C,3,FALSE),0) -> 3 | AR8: =IF(AT8=0,"Pt udsolgt",IFERROR(_xlfn.XLOOKUP(AS8,Tilbehør!$B:$B,Tilbehør!$A:$A),"Findes ikke")) -> Dbramante Lynge iPhone 12 og 12 pro Tan | AS8: A23950 | AT8: =IFERROR(VLOOKUP(AS8,Lager!$A:$C,3,FALSE),0) -> 3 | AU8: =IF(AW8=0,"Pt udsolgt",IFERROR(_xlfn.XLOOKUP(AV8,Tilbehør!$B:$B,Tilbehør!$A:$A),"Findes ikke")) -> Dbramante Lynge iPhone 12 og 12 pro Tan | AV8: A23950 | AW8: =IFERROR(VLOOKUP(AV8,Lager!$A:$C,3,FALSE),0) -> 3 | AX8: =IF(AZ8=0,"Pt udsolgt",IFERROR(_xlfn.XLOOKUP(AY8,Tilbehør!$B:$B,Tilbehør!$A:$A),"Findes ikke")) -> Dbramante Lynge iPhone 12 og 12 pro Tan | AY8: A23950 | AZ8: =IFERROR(VLOOKUP(AY8,Lager!$A:$C,3,FALSE),0) -> 3 | BA8: =IF(BC8=0,"Pt udsolgt",IFERROR(_xlfn.XLOOKUP(BB8,Tilbehør!$B:$B,Tilbehør!$A:$A),"Findes ikke")) -> Dbramante Lynge iPhone 12 og 12 pro Tan | BB8: A23950 | BC8: =IFERROR(VLOOKUP(BB8,Lager!$A:$C,3,FALSE),0) -> 3 | BD8: =IF(BF8=0,"Pt udsolgt",IFERROR(_xlfn.XLOOKUP(BE8,Tilbehør!$B:$B,Tilbehør!$A:$A),"Findes ikke")) -> Dbramante Lynge iPhone 12 og 12 pro Tan | BE8: A23950 | BF8: =IFERROR(VLOOKUP(BE8,Lager!$A:$C,3,FALSE),0) -> 3 | BG8: =IF(BI8=0,"Pt udsolgt",IFERROR(_xlfn.XLOOKUP(BH8,Tilbehør!$B:$B,Tilbehør!$A:$A),"Findes ikke")) -> Apple iPhone 12 mini Silicone MagSafe Black | BH8: A24277 | BI8: =IFERROR(VLOOKUP(BH8,Lager!$A:$C,3,FALSE),0) -> 168 | BJ8: =IF(BL8=0,"Pt udsolgt",IFERROR(_xlfn.XLOOKUP(BK8,Tilbehør!$B:$B,Tilbehør!$A:$A),"Findes ikke")) -> Apple iPhone 12 mini Silicone MagSafe Black | BK8: A24277 | BL8: =IFERROR(VLOOKUP(BK8,Lager!$A:$C,3,FALSE),0) -> 168 | BM8: =IF(BO8=0,"Pt udsolgt",IFERROR(_xlfn.XLOOKUP(BN8,Tilbehør!$B:$B,Tilbehør!$A:$A),"Findes ikke")) -> Apple iPhone 12 mini Silicone MagSafe Black | BN8: A24277 | BO8: =IFERROR(VLOOKUP(BN8,Lager!$A:$C,3,FALSE),0) -> 168 | BP8: =IF(BR8=0,"Pt udsolgt",IFERROR(_xlfn.XLOOKUP(BQ8,Tilbehør!$B:$B,Tilbehør!$A:$A),"Findes ikke")) -> Apple iPhone 12 Pro Max Silicone MagSafe Deep Navy | BQ8: A24284 | BR8: =IFERROR(VLOOKUP(BQ8,Lager!$A:$C,3,FALSE),0) -> 149 | BS8: =IF(BU8=0,"Pt udsolgt",IFERROR(_xlfn.XLOOKUP(BT8,Tilbehør!$B:$B,Tilbehør!$A:$A),"Findes ikke")) -> Apple iPhone 12 Pro Max Silicone MagSafe Deep Navy | BT8: A24284 | BU8: =IFERROR(VLOOKUP(BT8,Lager!$A:$C,3,FALSE),0) -> 149 | BV8: =IF(BX8=0,"Pt udsolgt",IFERROR(_xlfn.XLOOKUP(BW8,Tilbehør!$B:$B,Tilbehør!$A:$A),"Findes ikke")) -> Apple iPhone 12 Pro Max Silicone MagSafe Deep Navy | BW8: A24284 | BX8: =IFERROR(VLOOKUP(BW8,Lager!$A:$C,3,FALSE),0) -> 149
A9: Apple iPhone 12 Pro 256GB (OBS. UDEN OPLADER) | B9: AppleiPhone12Pro256GBCover | C9: AppleiPhone12Pro256GBPanserglas | E9: =IF(G9=0,"Pt udsolgt",IFERROR(_xlfn.XLOOKUP(F9,Tilbehør!B:B,Tilbehør!A:A),"Findes ikke")) -> Apple iPhone 11 Silicone Case Black | F9: A23251 | G9: =IFERROR(VLOOKUP(F9,Lager!$A:$C,3,FALSE),0) -> 40 | H9: =IF(J9=0,"Pt udsolgt",IFERROR(_xlfn.XLOOKUP(I9,Tilbehør!$B:$B,Tilbehør!$A:$A),"Findes ikke")) -> IDEAL FASHION CASE iPhone 11 Pro in FLORAL ROMANCE | I9: A23212 | J9: =IFERROR(VLOOKUP(I9,Lager!$A:$C,3,FALSE),0) -> 34 | Q9: =IF(S9=0,"Pt udsolgt",IFERROR(_xlfn.XLOOKUP(R9,Tilbehør!$B:$B,Tilbehør!$A:$A),"Findes ikke")) -> Pt udsolgt | S9: =IFERROR(VLOOKUP(R9,Lager!$A:$C,3,FALSE),0) -> 0 | Z9: =IF(AB9=0,"Pt udsolgt",IFERROR(_xlfn.XLOOKUP(AA9,Tilbehør!$B:$B,Tilbehør!$A:$A),"Findes ikke")) -> Pt udsolgt | AA9: A21616 | AB9: =IFERROR(VLOOKUP(AA9,Lager!$A:$C,3,FALSE),0) -> 0 | AO9: =IF(AQ9=0,"Pt udsolgt",IFERROR(_xlfn.XLOOKUP(AP9,Tilbehør!$B:$B,Tilbehør!$A:$A),"Findes ikke")) -> Dbramante Grenen iPhone 12 og 12 pro Black | AP9: A23957 | AQ9: =IFERROR(VLOOKUP(AP9,Lager!$A:$C,3,FALSE),0) -> 64 | AR9: =IF(AT9=0,"Pt udsolgt",IFERROR(_xlfn.XLOOKUP(AS9,Tilbehør!$B:$B,Tilbehør!$A:$A),"Findes ikke")) -> Dbramante Grenen iPhone 12 og 12 pro Black | AS9: A23957 | AT9: =IFERROR(VLOOKUP(AS9,Lager!$A:$C,3,FALSE),0) -> 64 | AU9: =IF(AW9=0,"Pt udsolgt",IFERROR(_xlfn.XLOOKUP(AV9,Tilbehør!$B:$B,Tilbehør!$A:$A),"Findes ikke")) -> Dbramante Grenen iPhone 12 og 12 pro Black | AV9: A23957 | AW9: =IFERROR(VLOOKUP(AV9,Lager!$A:$C,3,FALSE),0) -> 64 | AX9: =IF(AZ9=0,"Pt udsolgt",IFERROR(_xlfn.XLOOKUP(AY9,Tilbehør!$B:$B,Tilbehør!$A:$A),"Findes ikke")) -> Dbramante Grenen iPhone 12 og 12 pro Black | AY9: A23957 | AZ9: =IFERROR(VLOOKUP(AY9,Lager!$A:$C,3,FALSE),0) -> 64 | BA9: =IF(BC9=0,"Pt udsolgt",IFERROR(_xlfn.XLOOKUP(BB9,Tilbehør!$B:$B,Tilbehør!$A:$A),"Findes ikke")) -> Dbramante Grenen iPhone 12 og 12 pro Black | BB9: A23957 | BC9: =IFERROR(VLOOKUP(BB9,Lager!$A:$C,3,FALSE),0) -> 64 | BD9: =IF(BF9=0,"Pt udsolgt",IFERROR(_xlfn.XLOOKUP(BE9,Tilbehør!$B:$B,Tilbehør!$A:$A),"Findes ikke")) -> Dbramante Grenen iPhone 12 og 12 pro Black | BE9: A23957 | BF9: =IFERROR(VLOOKUP(BE9,Lager!$A:$C,3,FALSE),0) -> 64 | BG9: =IF(BI9=0,"Pt udsolgt",IFERROR(_xlfn.XLOOKUP(BH9,Tilbehør!$B:$B,Tilbehør!$A:$A),"Findes ikke")) -> Apple iPhone 12 mini Silicone MagSafe Deep Navy | BH9: A24276 | BI9: =IFERROR(VLOOKUP(BH9,Lager!$A:$C,3,FALSE),0) -> 187 | BJ9: =IF(BL9=0,"Pt udsolgt",IFERROR(_xlfn.XLOOKUP(BK9,Tilbehør!$B:$B,Tilbehør!$A:$A),"Findes ikke")) -> Apple iPhone 12 mini Silicone MagSafe Deep Navy | BK9: A24276 | BL9: =IFERROR(VLOOKUP(BK9,Lager!$A:$C,3,FALSE),0) -> 187 | BM9: =IF(BO9=0,"Pt udsolgt",IFERROR(_xlfn.XLOOKUP(BN9,Tilbehør!$B:$B,Tilbehør!$A:$A),"Findes ikke")) -> Apple iPhone 12 mini Silicone MagSafe Deep Navy | BN9: A24276 | BO9: =IFERROR(VLOOKUP(BN9,Lager!$A:$C,3,FALSE),0) -> 187 | BP9: =IF(BR9=0,"Pt udsolgt",IFERROR(_xlfn.XLOOKUP(BQ9,Tilbehør!$B:$B,Tilbehør!$A:$A),"Findes ikke")) -> Apple iPhone 12 og 12 Pro Clear MagSafe | BQ9: A24285 | BR9: =IFERROR(VLOOKUP(BQ9,Lager!$A:$C,3,FALSE),0) -> 61 | BS9: =IF(BU9=0,"Pt udsolgt",IFERROR(_xlfn.XLOOKUP(BT9,Tilbehør!$B:$B,Tilbehør!$A:$A),"Findes ikke")) -> Apple iPhone 12 og 12 Pro Clear MagSafe | BT9: A24285 | BU9: =IFERROR(VLOOKUP(BT9,Lager!$A:$C,3,FALSE),0) -> 61 | BV9: =IF(BX9=0,"Pt udsolgt",IFERROR(_xlfn.XLOOKUP(BW9,Tilbehør!$B:$B,Tilbehør!$A:$A),"Findes ikke")) -> Apple iPhone 12 og 12 Pro Clear MagSafe | BW9: A24285 | BX9: =IFERROR(VLOOKUP(BW9,Lager!$A:$C,3,FALSE),0) -> 61
A10: Apple iPhone 12 Pro 512GB (OBS. UDEN OPLADER) | B10: AppleiPhone12Pro512GBCover | C10: AppleiPhone12Pro512GBPanserglas | E10: =IF(G10=0,"Pt udsolgt",IFERROR(_xlfn.XLOOKUP(F10,Tilbehør!B:B,Tilbehør!A:A),"Findes ikke")) -> IDEAL FASHION CASE iPhone 11 in CARRARA GOLD | F10: A23213 | G10: =IFERROR(VLOOKUP(F10,Lager!$A:$C,3,FALSE),0) -> 13 | Q10: =IF(S10=0,"Pt udsolgt",IFERROR(_xlfn.XLOOKUP(R10,Tilbehør!$B:$B,Tilbehør!$A:$A),"Findes ikke")) -> Pt udsolgt | S10: =IFERROR(VLOOKUP(R10,Lager!$A:$C,3,FALSE),0) -> 0 | Z10: =IF(AB10=0,"Pt udsolgt",IFERROR(_xlfn.XLOOKUP(AA10,Tilbehør!$B:$B,Tilbehør!$A:$A),"Findes ikke")) -> Pt udsolgt | AA10: A21619 | AB10: =IFERROR(VLOOKUP(AA10,Lager!$A:$C,3,FALSE),0) -> 0 | AO10: =IF(AQ10=0,"Pt udsolgt",IFERROR(_xlfn.XLOOKUP(AP10,Tilbehør!$B:$B,Tilbehør!$A:$A),"Findes ikke")) -> Dbramante Grenen iPhone 12 og 12 pro Dark Olive Green | AP10: A23958 | AQ10: =IFERROR(VLOOKUP(AP10,Lager!$A:$C,3,FALSE),0) -> 52 | AR10: =IF(AT10=0,"Pt udsolgt",IFERROR(_xlfn.XLOOKUP(AS10,Tilbehør!$B:$B,Tilbehør!$A:$A),"Findes ikke")) -> Dbramante Grenen iPhone 12 og 12 pro Dark Olive Green | AS10: A23958 | AT10: =IFERROR(VLOOKUP(AS10,Lager!$A:$C,3,FALSE),0) -> 52 | AU10: =IF(AW10=0,"Pt udsolgt",IFERROR(_xlfn.XLOOKUP(AV10,Tilbehør!$B:$B,Tilbehør!$A:$A),"Findes ikke")) -> Dbramante Grenen iPhone 12 og 12 pro Dark Olive Green | AV10: A23958 | AW10: =IFERROR(VLOOKUP(AV10,Lager!$A:$C,3,FALSE),0) -> 52 | AX10: =IF(AZ10=0,"Pt udsolgt",IFERROR(_xlfn.XLOOKUP(AY10,Tilbehør!$B:$B,Tilbehør!$A:$A),"Findes ikke")) -> Dbramante Grenen iPhone 12 og 12 pro Dark Olive Green | AY10: A23958 | AZ10: =IFERROR(VLOOKUP(AY10,Lager!$A:$C,3,FALSE),0) -> 52 | BA10: =IF(BC10=0,"Pt udsolgt",IFERROR(_xlfn.XLOOKUP(BB10,Tilbehør!$B:$B,Tilbehør!$A:$A),"Findes ikke")) -> Dbramante Grenen iPhone 12 og 12 pro Dark Olive Green | BB10: A23958 | BC10: =IFERROR(VLOOKUP(BB10,Lager!$A:$C,3,FALSE),0) -> 52 | BD10: =IF(BF10=0,"Pt udsolgt",IFERROR(_xlfn.XLOOKUP(BE10,Tilbehør!$B:$B,Tilbehør!$A:$A),"Findes ikke")) -> Dbramante Grenen iPhone 12 og 12 pro Dark Olive Green | BE10: A23958 | BF10: =IFERROR(VLOOKUP(BE10,Lager!$A:$C,3,FALSE),0) -> 52 | BG10: =IF(BI10=0,"Pt udsolgt",IFERROR(_xlfn.XLOOKUP(BH10,Tilbehør!$B:$B,Tilbehør!$A:$A),"Findes ikke")) -> Dbramante Lynge iPhone 12 Mini Black | BH10: A23947 | BI10: =IFERROR(VLOOKUP(BH10,Lager!$A:$C,3,FALSE),0) -> 9 | BJ10: =IF(BL10=0,"Pt udsolgt",IFERROR(_xlfn.XLOOKUP(BK10,Tilbehør!$B:$B,Tilbehør!$A:$A),"Findes ikke")) -> Dbramante Lynge iPhone 12 Mini Black | BK10: A23947 | BL10: =IFERROR(VLOOKUP(BK10,Lager!$A:$C,3,FALSE),0) -> 9 | BM10: =IF(BO10=0,"Pt udsolgt",IFERROR(_xlfn.XLOOKUP(BN10,Tilbehør!$B:$B,Tilbehør!$A:$A),"Findes ikke")) -> Dbramante Lynge iPhone 12 Mini Black | BN10: A23947 | BO10: =IFERROR(VLOOKUP(BN10,Lager!$A:$C,3,FALSE),0) -> 9 | BP10: =IF(BR10=0,"Pt udsolgt",IFERROR(_xlfn.XLOOKUP(BQ10,Tilbehør!$B:$B,Tilbehør!$A:$A),"Findes ikke")) -> Apple iPhone 12 Pro Max Clear MagSafe | BQ10: A24286 | BR10: =IFERROR(VLOOKUP(BQ10,Lager!$A:$C,3,FALSE),0) -> 109 | BS10: =IF(BU10=0,"Pt udsolgt",IFERROR(_xlfn.XLOOKUP(BT10,Tilbehør!$B:$B,Tilbehør!$A:$A),"Findes ikke")) -> Apple iPhone 12 Pro Max Clear MagSafe | BT10: A24286 | BU10: =IFERROR(VLOOKUP(BT10,Lager!$A:$C,3,FALSE),0) -> 109 | BV10: =IF(BX10=0,"Pt udsolgt",IFERROR(_xlfn.XLOOKUP(BW10,Tilbehør!$B:$B,Tilbehør!$A:$A),"Findes ikke")) -> Apple iPhone 12 Pro Max Clear MagSafe | BW10: A24286 | BX10: =IFERROR(VLOOKUP(BW10,Lager!$A:$C,3,FALSE),0) -> 109
A11: Apple iPhone 12 Pro Max 128GB (OBS. UDEN OPLADER) | B11: AppleiPhone12ProMax128GBCover | C11: AppleiPhone12ProMax128GBpanserglas | E11: =IF(G11=0,"Pt udsolgt",IFERROR(_xlfn.XLOOKUP(F11,Tilbehør!B:B,Tilbehør!A:A),"Findes ikke")) -> IDEAL FASHION CASE iPhone 11 in FLORAL ROMANCE | F11: A23214 | G11: =IFERROR(VLOOKUP(F11,Lager!$A:$C,3,FALSE),0) -> 7 | Z11: =IF(AB11=0,"Pt udsolgt",IFERROR(_xlfn.XLOOKUP(AA11,Tilbehør!$B:$B,Tilbehør!$A:$A),"Findes ikke")) -> Pt udsolgt | AA11: A21615 | AB11: =IFERROR(VLOOKUP(AA11,Lager!$A:$C,3,FALSE),0) -> 0 | AO11: =IF(AQ11=0,"Pt udsolgt",IFERROR(_xlfn.XLOOKUP(#REF!,Tilbehør!$B:$B,Tilbehør!$A:$A),"Findes ikke")) -> Pt udsolgt | AP11: A24280 | AQ11: =IFERROR(VLOOKUP(#REF!,Lager!$A:$C,3,FALSE),0) -> 0 | AR11: =IF(AT11=0,"Pt udsolgt",IFERROR(_xlfn.XLOOKUP(#REF!,Tilbehør!$B:$B,Tilbehør!$A:$A),"Findes ikke")) -> Pt udsolgt | AS11: A24280 | AT11: =IFERROR(VLOOKUP(#REF!,Lager!$A:$C,3,FALSE),0) -> 0 | AU11: =IF(AW11=0,"Pt udsolgt",IFERROR(_xlfn.XLOOKUP(#REF!,Tilbehør!$B:$B,Tilbehør!$A:$A),"Findes ikke")) -> Pt udsolgt | AV11: A24280 | AW11: =IFERROR(VLOOKUP(#REF!,Lager!$A:$C,3,FALSE),0) -> 0 | AX11: =IF(AZ11=0,"Pt udsolgt",IFERROR(_xlfn.XLOOKUP(#REF!,Tilbehør!$B:$B,Tilbehør!$A:$A),"Findes ikke")) -> Pt udsolgt | AY11: A24280 | AZ11: =IFERROR(VLOOKUP(#REF!,Lager!$A:$C,3,FALSE),0) -> 0 | BA11: =IF(BC11=0,"Pt udsolgt",IFERROR(_xlfn.XLOOKUP(#REF!,Tilbehør!$B:$B,Tilbehør!$A:$A),"Findes ikke")) -> Pt udsolgt | BB11: A24280 | BC11: =IFERROR(VLOOKUP(#REF!,Lager!$A:$C,3,FALSE),0) -> 0 | BD11: =IF(BF11=0,"Pt udsolgt",IFERROR(_xlfn.XLOOKUP(#REF!,Tilbehør!$B:$B,Tilbehør!$A:$A),"Findes ikke")) -> Pt udsolgt | BE11: A24280 | BF11: =IFERROR(VLOOKUP(#REF!,Lager!$A:$C,3,FALSE),0) -> 0 | BG11: =IF(BI11=0,"Pt udsolgt",IFERROR(_xlfn.XLOOKUP(BH11,Tilbehør!$B:$B,Tilbehør!$A:$A),"Findes ikke")) -> Dbramante Lynge iPhone 12 Mini Tan | BH11: A23948 | BI11: =IFERROR(VLOOKUP(BH11,Lager!$A:$C,3,FALSE),0) -> 21 | BJ11: =IF(BL11=0,"Pt udsolgt",IFERROR(_xlfn.XLOOKUP(BK11,Tilbehør!$B:$B,Tilbehør!$A:$A),"Findes ikke")) -> Dbramante Lynge iPhone 12 Mini Tan | BK11: A23948 | BL11: =IFERROR(VLOOKUP(BK11,Lager!$A:$C,3,FALSE),0) -> 21 | BM11: =IF(BO11=0,"Pt udsolgt",IFERROR(_xlfn.XLOOKUP(BN11,Tilbehør!$B:$B,Tilbehør!$A:$A),"Findes ikke")) -> Dbramante Lynge iPhone 12 Mini Tan | BN11: A23948 | BO11: =IFERROR(VLOOKUP(BN11,Lager!$A:$C,3,FALSE),0) -> 21 | BP11: =IF(BR11=0,"Pt udsolgt",IFERROR(_xlfn.XLOOKUP(BQ11,Tilbehør!$B:$B,Tilbehør!$A:$A),"Findes ikke")) -> Dbramante Lynge iPhone 12 Pro Max Black | BQ11: A23951 | BR11: =IFERROR(VLOOKUP(BQ11,Lager!$A:$C,3,FALSE),0) -> 5 | BS11: =IF(BU11=0,"Pt udsolgt",IFERROR(_xlfn.XLOOKUP(BT11,Tilbehør!$B:$B,Tilbehør!$A:$A),"Findes ikke")) -> Dbramante Lynge iPhone 12 Pro Max Black | BT11: A23951 | BU11: =IFERROR(VLOOKUP(BT11,Lager!$A:$C,3,FALSE),0) -> 5 | BV11: =IF(BX11=0,"Pt udsolgt",IFERROR(_xlfn.XLOOKUP(BW11,Tilbehør!$B:$B,Tilbehør!$A:$A),"Findes ikke")) -> Dbramante Lynge iPhone 12 Pro Max Black | BW11: A23951 | BX11: =IFERROR(VLOOKUP(BW11,Lager!$A:$C,3,FALSE),0) -> 5
A12: Apple iPhone 12 Pro Max 256GB (OBS. UDEN OPLADER) | B12: AppleiPhone12ProMax256GBCover | C12: AppleiPhone12ProMax256GBpanserglas | E12: =IF(G12=0,"Pt udsolgt",IFERROR(_xlfn.XLOOKUP(F12,Tilbehør!B:B,Tilbehør!A:A),"Findes ikke")) -> DBRAMANTE 1928 COPENHAGEN SLIM iPhone 11 BLACK | F12: A23204 | G12: =IFERROR(VLOOKUP(F12,Lager!$A:$C,3,FALSE),0) -> 58 | Z12: =IF(AB12=0,"Pt udsolgt",IFERROR(_xlfn.XLOOKUP(AA12,Tilbehør!$B:$B,Tilbehør!$A:$A),"Findes ikke")) -> Pt udsolgt | AA12: A21618 | AB12: =IFERROR(VLOOKUP(AA12,Lager!$A:$C,3,FALSE),0) -> 0 | BG12: =IF(BI12=0,"Pt udsolgt",IFERROR(_xlfn.XLOOKUP(BH12,Tilbehør!$B:$B,Tilbehør!$A:$A),"Findes ikke")) -> Dbramante Grenen iPhone 12 Mini Black | BH12: A23955 | BI12: =IFERROR(VLOOKUP(BH12,Lager!$A:$C,3,FALSE),0) -> 71 | BJ12: =IF(BL12=0,"Pt udsolgt",IFERROR(_xlfn.XLOOKUP(BK12,Tilbehør!$B:$B,Tilbehør!$A:$A),"Findes ikke")) -> Dbramante Grenen iPhone 12 Mini Black | BK12: A23955 | BL12: =IFERROR(VLOOKUP(BK12,Lager!$A:$C,3,FALSE),0) -> 71 | BM12: =IF(BO12=0,"Pt udsolgt",IFERROR(_xlfn.XLOOKUP(BN12,Tilbehør!$B:$B,Tilbehør!$A:$A),"Findes ikke")) -> Dbramante Grenen iPhone 12 Mini Black | BN12: A23955 | BO12: =IFERROR(VLOOKUP(BN12,Lager!$A:$C,3,FALSE),0) -> 71 | BP12: =IF(BR12=0,"Pt udsolgt",IFERROR(_xlfn.XLOOKUP(BQ12,Tilbehør!$B:$B,Tilbehør!$A:$A),"Findes ikke")) -> Dbramante Lynge iPhone 12 Pro Max Tan | BQ12: A23952 | BR12: =IFERROR(VLOOKUP(BQ12,Lager!$A:$C,3,FALSE),0) -> 19 | BS12: =IF(BU12=0,"Pt udsolgt",IFERROR(_xlfn.XLOOKUP(BT12,Tilbehør!$B:$B,Tilbehør!$A:$A),"Findes ikke")) -> Dbramante Lynge iPhone 12 Pro Max Tan | BT12: A23952 | BU12: =IFERROR(VLOOKUP(BT12,Lager!$A:$C,3,FALSE),0) -> 19 | BV12: =IF(BX12=0,"Pt udsolgt",IFERROR(_xlfn.XLOOKUP(BW12,Tilbehør!$B:$B,Tilbehør!$A:$A),"Findes ikke")) -> Dbramante Lynge iPhone 12 Pro Max Tan | BW12: A23952 | BX12: =IFERROR(VLOOKUP(BW12,Lager!$A:$C,3,FALSE),0) -> 19
A13: Apple iPhone 12 Pro Max 512GB (OBS. UDEN OPLADER) | B13: AppleiPhone12ProMax512GBCover | C13: AppleiPhone12ProMax512GBpanserglas | Z13: =IF(AB13=0,"Pt udsolgt",IFERROR(_xlfn.XLOOKUP(AA13,Tilbehør!$B:$B,Tilbehør!$A:$A),"Findes ikke")) -> Pt udsolgt | AA13: A21621 | AB13: =IFERROR(VLOOKUP(AA13,Lager!$A:$C,3,FALSE),0) -> 0 | BG13: =IF(BI13=0,"Pt udsolgt",IFERROR(_xlfn.XLOOKUP(BH13,Tilbehør!$B:$B,Tilbehør!$A:$A),"Findes ikke")) -> Dbramante Grenen iPhone 12 Mini Dark Olive Green | BH13: A23956 | BI13: =IFERROR(VLOOKUP(BH13,Lager!$A:$C,3,FALSE),0) -> 54 | BJ13: =IF(BL13=0,"Pt udsolgt",IFERROR(_xlfn.XLOOKUP(BK13,Tilbehør!$B:$B,Tilbehør!$A:$A),"Findes ikke")) -> Dbramante Grenen iPhone 12 Mini Dark Olive Green | BK13: A23956 | BL13: =IFERROR(VLOOKUP(BK13,Lager!$A:$C,3,FALSE),0) -> 54 | BM13: =IF(BO13=0,"Pt udsolgt",IFERROR(_xlfn.XLOOKUP(BN13,Tilbehør!$B:$B,Tilbehør!$A:$A),"Findes ikke")) -> Dbramante Grenen iPhone 12 Mini Dark Olive Green | BN13: A23956 | BO13: =IFERROR(VLOOKUP(BN13,Lager!$A:$C,3,FALSE),0) -> 54 | BP13: =IF(BR13=0,"Pt udsolgt",IFERROR(_xlfn.XLOOKUP(BQ13,Tilbehør!$B:$B,Tilbehør!$A:$A),"Findes ikke")) -> Dbramante Grenen iPhone 12 Pro Max Black | BQ13: A23959 | BR13: =IFERROR(VLOOKUP(BQ13,Lager!$A:$C,3,FALSE),0) -> 74 | BS13: =IF(BU13=0,"Pt udsolgt",IFERROR(_xlfn.XLOOKUP(BT13,Tilbehør!$B:$B,Tilbehør!$A:$A),"Findes ikke")) -> Dbramante Grenen iPhone 12 Pro Max Black | BT13: A23959 | BU13: =IFERROR(VLOOKUP(BT13,Lager!$A:$C,3,FALSE),0) -> 74 | BV13: =IF(BX13=0,"Pt udsolgt",IFERROR(_xlfn.XLOOKUP(BW13,Tilbehør!$B:$B,Tilbehør!$A:$A),"Findes ikke")) -> Dbramante Grenen iPhone 12 Pro Max Black | BW13: A23959 | BX13: =IFERROR(VLOOKUP(BW13,Lager!$A:$C,3,FALSE),0) -> 74
A14: Apple iPhone 11 64GB NEW (OBS. UDEN OPLADER) | B14: iPhone11Cover | C14: iPhone11panserglas | BG14: =IF(BI14=0,"Pt udsolgt",IFERROR(_xlfn.XLOOKUP(BH14,Tilbehør!$B:$B,Tilbehør!$A:$A),"Findes ikke")) -> Dbramante Barcelona iPhone 12 Mini Night Black | BH14: A23963 | BI14: =IFERROR(VLOOKUP(BH14,Lager!$A:$C,3,FALSE),0) -> 75 | BJ14: =IF(BL14=0,"Pt udsolgt",IFERROR(_xlfn.XLOOKUP(BK14,Tilbehør!$B:$B,Tilbehør!$A:$A),"Findes ikke")) -> Dbramante Barcelona iPhone 12 Mini Night Black | BK14: A23963 | BL14: =IFERROR(VLOOKUP(BK14,Lager!$A:$C,3,FALSE),0) -> 75 | BM14: =IF(BO14=0,"Pt udsolgt",IFERROR(_xlfn.XLOOKUP(BN14,Tilbehør!$B:$B,Tilbehør!$A:$A),"Findes ikke")) -> Dbramante Barcelona iPhone 12 Mini Night Black | BN14: A23963 | BO14: =IFERROR(VLOOKUP(BN14,Lager!$A:$C,3,FALSE),0) -> 75 | BP14: =IF(BR14=0,"Pt udsolgt",IFERROR(_xlfn.XLOOKUP(BQ14,Tilbehør!$B:$B,Tilbehør!$A:$A),"Findes ikke")) -> Dbramante Grenen iPhone 12 Pro Max Dark Olive Green | BQ14: A23960 | BR14: =IFERROR(VLOOKUP(BQ14,Lager!$A:$C,3,FALSE),0) -> 36 | BS14: =IF(BU14=0,"Pt udsolgt",IFERROR(_xlfn.XLOOKUP(BT14,Tilbehør!$B:$B,Tilbehør!$A:$A),"Findes ikke")) -> Dbramante Grenen iPhone 12 Pro Max Dark Olive Green | BT14: A23960 | BU14: =IFERROR(VLOOKUP(BT14,Lager!$A:$C,3,FALSE),0) -> 36 | BV14: =IF(BX14=0,"Pt udsolgt",IFERROR(_xlfn.XLOOKUP(BW14,Tilbehør!$B:$B,Tilbehør!$A:$A),"Findes ikke")) -> Dbramante Grenen iPhone 12 Pro Max Dark Olive Green | BW14: A23960 | BX14: =IFERROR(VLOOKUP(BW14,Lager!$A:$C,3,FALSE),0) -> 36
A15: Apple iPhone 11 128GB NEW (OBS. UDEN OPLADER) | B15: iPhone11Cover | C15: iPhone11panserglas | BG15: =IF(BI15=0,"Pt udsolgt",IFERROR(_xlfn.XLOOKUP(BH15,Tilbehør!$B:$B,Tilbehør!$A:$A),"Findes ikke")) -> Dbramante Barcelona iPhone 12 Mini Sahara Sand | BH15: A23964 | BI15: =IFERROR(VLOOKUP(BH15,Lager!$A:$C,3,FALSE),0) -> 54 | BJ15: =IF(BL15=0,"Pt udsolgt",IFERROR(_xlfn.XLOOKUP(BK15,Tilbehør!$B:$B,Tilbehør!$A:$A),"Findes ikke")) -> Dbramante Barcelona iPhone 12 Mini Sahara Sand | BK15: A23964 | BL15: =IFERROR(VLOOKUP(BK15,Lager!$A:$C,3,FALSE),0) -> 54 | BM15: =IF(BO15=0,"Pt udsolgt",IFERROR(_xlfn.XLOOKUP(BN15,Tilbehør!$B:$B,Tilbehør!$A:$A),"Findes ikke")) -> Dbramante Barcelona iPhone 12 Mini Sahara Sand | BN15: A23964 | BO15: =IFERROR(VLOOKUP(BN15,Lager!$A:$C,3,FALSE),0) -> 54 | BP15: =IF(BR15=0,"Pt udsolgt",IFERROR(_xlfn.XLOOKUP(BQ15,Tilbehør!$B:$B,Tilbehør!$A:$A),"Findes ikke")) -> Dbramante Barcelona iPhone 12 Pro Max Night Black | BQ15: A23967 | BR15: =IFERROR(VLOOKUP(BQ15,Lager!$A:$C,3,FALSE),0) -> 27 | BS15: =IF(BU15=0,"Pt udsolgt",IFERROR(_xlfn.XLOOKUP(BT15,Tilbehør!$B:$B,Tilbehør!$A:$A),"Findes ikke")) -> Dbramante Barcelona iPhone 12 Pro Max Night Black | BT15: A23967 | BU15: =IFERROR(VLOOKUP(BT15,Lager!$A:$C,3,FALSE),0) -> 27 | BV15: =IF(BX15=0,"Pt udsolgt",IFERROR(_xlfn.XLOOKUP(BW15,Tilbehør!$B:$B,Tilbehør!$A:$A),"Findes ikke")) -> Dbramante Barcelona iPhone 12 Pro Max Night Black | BW15: A23967 | BX15: =IFERROR(VLOOKUP(BW15,Lager!$A:$C,3,FALSE),0) -> 27
A16: Apple iPhone 11 256GB | B16: iPhone11Cover | C16: iPhone11panserglas
A17: Apple iPhone 11 Pro 64GB | B17: iPhone11procover | C17: iPhone11propanserglas | E17: iPhone11panserglas | F17: Anummer | G17: Lager | H17: iPhone11propanserglas | I17: Anummer | J17: Lager | K17: iPhone11promaxpanserglas | L17: Anummer | M17: Lager | N17: iPhonexspanserglas | O17: Anummer | P17: Lager | Q17: iPhonexsmaxpanserglas | R17: Anummer | S17: Lager | T17: iPhonexrpanserglas | U17: Anummer | V17: Lager | W17: iPhone8panserglas | X17: Anummer | Y17: Lager | Z17: iPhone8pluspanserglas | AA17: Anummer | AB17: Lager | AC17: iPhone7panserglas | AD17: Anummer | AE17: Lager | AF17: AppleiPhoneSE2ndgen128GBpanserglas | AG17: Anummer | AH17: Lager | AI17: AppleiPhoneSE2ndgen256GBpanserglas | AJ17: Anummer | AK17: Lager | AL17: AppleiPhoneSE2ndgen64GBpanserglas | AM17: Anummer | AN17: Lager | AO17: AppleiPhone12128GBPanserglas | AP17: Anummer | AQ17: Lager | AR17: AppleiPhone12256GBPanserglas | AS17: Anummer | AT17: Lager | AU17: AppleiPhone1264GBPanserglas | AV17: Anummer | AW17: Lager | AX17: AppleiPhone12Pro128GBPanserglas | AY17: Anummer | AZ17: Lager | BA17: AppleiPhone12Pro256GBPanserglas | BB17: Anummer | BC17: Lager | BD17: AppleiPhone12Pro512GBPanserglas | BE17: Anummer | BF17: Lager | BG17: AppleiPhone12mini64GBpanserglas | BH17: Anummer | BI17: Lager | BJ17: AppleiPhone12mini128GBpanserglas | BK17: Anummer | BL17: Lager | BM17: AppleiPhone12mini256GBpanserglas | BN17: Anummer | BO17: Lager | BP17: AppleiPhone12ProMax128GBpanserglas | BQ17: Anummer | BR17: Lager | BS17: AppleiPhone12ProMax256GBpanserglas | BT17: Anummer | BU17: Lager | BV17: AppleiPhone12ProMax512GBpanserglas | BW17: Anummer | BX17: Lager
A18: Apple iPhone 11 Pro 256GB | B18: iPhone11procover | C18: iPhone11propanserglas | E18: =IF(G18=0,"Pt udsolgt",IFERROR(_xlfn.XLOOKUP(F18,Tilbehør!B:B,Tilbehør!A:A),"Findes ikke")) -> Invisibleshield Glass Elite VisionguardPlus Iphone Xr 11 Screen | F18: A23611 | G18: =IFERROR(VLOOKUP(F18,Lager!$A:$C,3,FALSE),0) -> 17 | H18: =IF(J18=0,"Pt udsolgt",IFERROR(_xlfn.XLOOKUP(I18,Tilbehør!$B:$B,Tilbehør!$A:$A),"Findes ikke")) -> PanzerGlass Apple iPhone 11 Pro | I18: A23217 | J18: =IFERROR(VLOOKUP(I18,Lager!$A:$C,3,FALSE),0) -> 9 | K18: =IF(M18=0,"Pt udsolgt",IFERROR(_xlfn.XLOOKUP(L18,Tilbehør!$B:$B,Tilbehør!$A:$A),"Findes ikke")) -> Invisibleshield Glass Elite Iphone Xs Max 11 Pro Max Screen | L18: A23601 | M18: =IFERROR(VLOOKUP(L18,Lager!$A:$C,3,FALSE),0) -> 19 | N18: =IF(P18=0,"Pt udsolgt",IFERROR(_xlfn.XLOOKUP(O18,Tilbehør!$B:$B,Tilbehør!$A:$A),"Findes ikke")) -> Invisibleshield Glass Elite Edge Iphone X Xs 11 Pro Screen | O18: A23604 | P18: =IFERROR(VLOOKUP(O18,Lager!$A:$C,3,FALSE),0) -> 98 | Q18: =IF(S18=0,"Pt udsolgt",IFERROR(_xlfn.XLOOKUP(R18,Tilbehør!$B:$B,Tilbehør!$A:$A),"Findes ikke")) -> Invisibleshield Glass Elite Iphone Xs Max 11 Pro Max Screen | R18: A23601 | S18: =IFERROR(VLOOKUP(R18,Lager!$A:$C,3,FALSE),0) -> 19 | T18: =IF(V18=0,"Pt udsolgt",IFERROR(_xlfn.XLOOKUP(U18,Tilbehør!$B:$B,Tilbehør!$A:$A),"Findes ikke")) -> Invisibleshield Glass Elite Edge Iphone Xr 11 Screen | U18: A23605 | V18: =IFERROR(VLOOKUP(U18,Lager!$A:$C,3,FALSE),0) -> 293 | W18: =IF(Y18=0,"Pt udsolgt",IFERROR(_xlfn.XLOOKUP(X18,Tilbehør!$B:$B,Tilbehør!$A:$A),"Findes ikke")) -> PanzerGlass PREMIUM iPhone 6s 7 8 White | X18: A22398 | Y18: =IFERROR(VLOOKUP(X18,Lager!$A:$C,3,FALSE),0) -> 1 | Z18: =IF(AB18=0,"Pt udsolgt",IFERROR(_xlfn.XLOOKUP(AA18,Tilbehør!$B:$B,Tilbehør!$A:$A),"Findes ikke")) -> Pt udsolgt | AA18: A22042 | AB18: =IFERROR(VLOOKUP(AA18,Lager!$A:$C,3,FALSE),0) -> 0 | AC18: =IF(AE18=0,"Pt udsolgt",IFERROR(_xlfn.XLOOKUP(AD18,Tilbehør!$B:$B,Tilbehør!$A:$A),"Findes ikke")) -> Invisibleshield GlassPlus Privacy Apple Iphone 8 7 6S 6 Case Friendly Screen | AD18: A23613 | AE18: =IFERROR(VLOOKUP(AD18,Lager!$A:$C,3,FALSE),0) -> 39 | AF18: =IF(AH18=0,"Pt udsolgt",IFERROR(_xlfn.XLOOKUP(AG18,Tilbehør!$B:$B,Tilbehør!$A:$A),"Findes ikke")) -> Invisibleshield GlasselitePlus Apple Baby Yoda 8 7 6S 6 Screen | AG18: A23597 | AH18: =IFERROR(VLOOKUP(AG18,Lager!$A:$C,3,FALSE),0) -> 34 | AI18: =IF(AK18=0,"Pt udsolgt",IFERROR(_xlfn.XLOOKUP(AJ18,Tilbehør!$B:$B,Tilbehør!$A:$A),"Findes ikke")) -> Invisibleshield GlasselitePlus Apple Baby Yoda 8 7 6S 6 Screen | AJ18: A23597 | AK18: =IFERROR(VLOOKUP(AJ18,Lager!$A:$C,3,FALSE),0) -> 34 | AL18: =IF(AN18=0,"Pt udsolgt",IFERROR(_xlfn.XLOOKUP(AM18,Tilbehør!$B:$B,Tilbehør!$A:$A),"Findes ikke")) -> Invisibleshield GlasselitePlus Apple Baby Yoda 8 7 6S 6 Screen | AM18: A23597 | AN18: =IFERROR(VLOOKUP(AM18,Lager!$A:$C,3,FALSE),0) -> 34 | AO18: =IF(AQ18=0,"Pt udsolgt",IFERROR(_xlfn.XLOOKUP(AP18,Tilbehør!$B:$B,Tilbehør!$A:$A),"Findes ikke")) -> InvisibleShield Glass Eliteplus Apple iPhone 11 XR 12 12 Pro Screen | AP18: A24043 | AQ18: =IFERROR(VLOOKUP(AP18,Lager!$A:$C,3,FALSE),0) -> 506 | AR18: =IF(AT18=0,"Pt udsolgt",IFERROR(_xlfn.XLOOKUP(AS18,Tilbehør!$B:$B,Tilbehør!$A:$A),"Findes ikke")) -> InvisibleShield Glass Eliteplus Apple iPhone 11 XR 12 12 Pro Screen | AS18: A24043 | AT18: =IFERROR(VLOOKUP(AS18,Lager!$A:$C,3,FALSE),0) -> 506 | AU18: =IF(AW18=0,"Pt udsolgt",IFERROR(_xlfn.XLOOKUP(AV18,Tilbehør!$B:$B,Tilbehør!$A:$A),"Findes ikke")) -> InvisibleShield Glass Eliteplus Apple iPhone 11 XR 12 12 Pro Screen | AV18: A24043 | AW18: =IFERROR(VLOOKUP(AV18,Lager!$A:$C,3,FALSE),0) -> 506 | AX18: =IF(AZ18=0,"Pt udsolgt",IFERROR(_xlfn.XLOOKUP(AY18,Tilbehør!$B:$B,Tilbehør!$A:$A),"Findes ikke")) -> InvisibleShield Glass Eliteplus Apple iPhone 11 XR 12 12 Pro Screen | AY18: A24043 | AZ18: =IFERROR(VLOOKUP(AY18,Lager!$A:$C,3,FALSE),0) -> 506 | BA18: =IF(BC18=0,"Pt udsolgt",IFERROR(_xlfn.XLOOKUP(BB18,Tilbehør!$B:$B,Tilbehør!$A:$A),"Findes ikke")) -> InvisibleShield Glass Eliteplus Apple iPhone 11 XR 12 12 Pro Screen | BB18: A24043 | BC18: =IFERROR(VLOOKUP(BB18,Lager!$A:$C,3,FALSE),0) -> 506 | BD18: =IF(BF18=0,"Pt udsolgt",IFERROR(_xlfn.XLOOKUP(BE18,Tilbehør!$B:$B,Tilbehør!$A:$A),"Findes ikke")) -> InvisibleShield Glass Eliteplus Apple iPhone 11 XR 12 12 Pro Screen | BE18: A24043 | BF18: =IFERROR(VLOOKUP(BE18,Lager!$A:$C,3,FALSE),0) -> 506 | BG18: =IF(BI18=0,"Pt udsolgt",IFERROR(_xlfn.XLOOKUP(BH18,Tilbehør!$B:$B,Tilbehør!$A:$A),"Findes ikke")) -> INVISIBLESHIELD GLASS ELITE plus IPHONE iPhone 12 Mini | BH18: A24042 | BI18: =IFERROR(VLOOKUP(BH18,Lager!$A:$C,3,FALSE),0) -> 362 | BJ18: =IF(BL18=0,"Pt udsolgt",IFERROR(_xlfn.XLOOKUP(BK18,Tilbehør!$B:$B,Tilbehør!$A:$A),"Findes ikke")) -> INVISIBLESHIELD GLASS ELITE plus IPHONE iPhone 12 Mini | BK18: A24042 | BL18: =IFERROR(VLOOKUP(BK18,Lager!$A:$C,3,FALSE),0) -> 362 | BM18: =IF(BO18=0,"Pt udsolgt",IFERROR(_xlfn.XLOOKUP(BN18,Tilbehør!$B:$B,Tilbehør!$A:$A),"Findes ikke")) -> INVISIBLESHIELD GLASS ELITE plus IPHONE iPhone 12 Mini | BN18: A24042 | BO18: =IFERROR(VLOOKUP(BN18,Lager!$A:$C,3,FALSE),0) -> 362 | BP18: =IF(BR18=0,"Pt udsolgt",IFERROR(_xlfn.XLOOKUP(BQ18,Tilbehør!$B:$B,Tilbehør!$A:$A),"Findes ikke")) -> INVISIBLESHIELD GLASS ELITE plus IPHONE iPhone 12 pro Max | BQ18: A24044 | BR18: =IFERROR(VLOOKUP(BQ18,Lager!$A:$C,3,FALSE),0) -> 40 | BS18: =IF(BU18=0,"Pt udsolgt",IFERROR(_xlfn.XLOOKUP(BT18,Tilbehør!$B:$B,Tilbehør!$A:$A),"Findes ikke")) -> INVISIBLESHIELD GLASS ELITE plus IPHONE iPhone 12 pro Max | BT18: A24044 | BU18: =IFERROR(VLOOKUP(BT18,Lager!$A:$C,3,FALSE),0) -> 40 | BV18: =IF(BX18=0,"Pt udsolgt",IFERROR(_xlfn.XLOOKUP(BW18,Tilbehør!$B:$B,Tilbehør!$A:$A),"Findes ikke")) -> INVISIBLESHIELD GLASS ELITE plus IPHONE iPhone 12 pro Max | BW18: A24044 | BX18: =IFERROR(VLOOKUP(BW18,Lager!$A:$C,3,FALSE),0) -> 40
A19: Apple iPhone 11 Pro 512GB | B19: iPhone11procover | C19: iPhone11propanserglas | E19: =IF(G19=0,"Pt udsolgt",IFERROR(_xlfn.XLOOKUP(F19,Tilbehør!B:B,Tilbehør!A:A),"Findes ikke")) -> Invisibleshield Glass Elite Privacy Iphone Xr 11Screen | F19: A23616 | G19: =IFERROR(VLOOKUP(F19,Lager!$A:$C,3,FALSE),0) -> 5 | H19: =IF(J19=0,"Pt udsolgt",IFERROR(_xlfn.XLOOKUP(I19,Tilbehør!$B:$B,Tilbehør!$A:$A),"Findes ikke")) -> Invisibleshield Glass Elite Iphone X Xs 11 Pro Screen | I19: A23599 | J19: =IFERROR(VLOOKUP(I19,Lager!$A:$C,3,FALSE),0) -> 44 | K19: =IF(M19=0,"Pt udsolgt",IFERROR(_xlfn.XLOOKUP(L19,Tilbehør!$B:$B,Tilbehør!$A:$A),"Findes ikke")) -> Invisibleshield Glass Elite Edge Iphone Xs Max 11 Pro Max Screen | L19: A23606 | M19: =IFERROR(VLOOKUP(L19,Lager!$A:$C,3,FALSE),0) -> 81 | N19: =IF(P19=0,"Pt udsolgt",IFERROR(_xlfn.XLOOKUP(O19,Tilbehør!$B:$B,Tilbehør!$A:$A),"Findes ikke")) -> Invisibleshield Glass Elite VisionguardPlus Iphone X Xs 11 Pro Screen | O19: A23610 | P19: =IFERROR(VLOOKUP(O19,Lager!$A:$C,3,FALSE),0) -> 35 | Q19: =IF(S19=0,"Pt udsolgt",IFERROR(_xlfn.XLOOKUP(R19,Tilbehør!$B:$B,Tilbehør!$A:$A),"Findes ikke")) -> Invisibleshield Glass Elite Edge Iphone Xs Max 11 Pro Max Screen | R19: A23606 | S19: =IFERROR(VLOOKUP(R19,Lager!$A:$C,3,FALSE),0) -> 81 | T19: =IF(V19=0,"Pt udsolgt",IFERROR(_xlfn.XLOOKUP(U19,Tilbehør!$B:$B,Tilbehør!$A:$A),"Findes ikke")) -> Pt udsolgt | U19: A23600 | V19: =IFERROR(VLOOKUP(U19,Lager!$A:$C,3,FALSE),0) -> 0 | W19: =IF(Y19=0,"Pt udsolgt",IFERROR(_xlfn.XLOOKUP(#REF!,Tilbehør!$B:$B,Tilbehør!$A:$A),"Findes ikke")) -> Pt udsolgt | X19: A23598 | Y19: =IFERROR(VLOOKUP(X19,Lager!$A:$C,3,FALSE),0) -> 0 | AC19: =IF(AE19=0,"Pt udsolgt",IFERROR(_xlfn.XLOOKUP(AD19,Tilbehør!$B:$B,Tilbehør!$A:$A),"Findes ikke")) -> Invisibleshield Glass Curve Apple Iphone 8 7 Screen Black | AD19: A23602 | AE19: =IFERROR(VLOOKUP(AD19,Lager!$A:$C,3,FALSE),0) -> 6 | AF19: =IF(AH19=0,"Pt udsolgt",IFERROR(_xlfn.XLOOKUP(AG19,Tilbehør!$B:$B,Tilbehør!$A:$A),"Findes ikke")) -> Invisibleshield Glasselite VisionguardPlus Apple Baby Yoda 8 7 6S 6 Screen | AG19: A23609 | AH19: =IFERROR(VLOOKUP(AG19,Lager!$A:$C,3,FALSE),0) -> 2 | AI19: =IF(AK19=0,"Pt udsolgt",IFERROR(_xlfn.XLOOKUP(AJ19,Tilbehør!$B:$B,Tilbehør!$A:$A),"Findes ikke")) -> Invisibleshield Glasselite VisionguardPlus Apple Baby Yoda 8 7 6S 6 Screen | AJ19: A23609 | AK19: =IFERROR(VLOOKUP(AJ19,Lager!$A:$C,3,FALSE),0) -> 2 | AL19: =IF(AN19=0,"Pt udsolgt",IFERROR(_xlfn.XLOOKUP(AM19,Tilbehør!$B:$B,Tilbehør!$A:$A),"Findes ikke")) -> Invisibleshield Glasselite VisionguardPlus Apple Baby Yoda 8 7 6S 6 Screen | AM19: A23609 | AN19: =IFERROR(VLOOKUP(AM19,Lager!$A:$C,3,FALSE),0) -> 2 | AO19: =IF(AQ19=0,"Pt udsolgt",IFERROR(_xlfn.XLOOKUP(AP19,Tilbehør!$B:$B,Tilbehør!$A:$A),"Findes ikke")) -> InvisibleShield Glass Elite VisionGuardplus Apple iPhone 11 XR 12 12 Pro Screen | AP19: A24046 | AQ19: =IFERROR(VLOOKUP(AP19,Lager!$A:$C,3,FALSE),0) -> 912 | AR19: =IF(AT19=0,"Pt udsolgt",IFERROR(_xlfn.XLOOKUP(AS19,Tilbehør!$B:$B,Tilbehør!$A:$A),"Findes ikke")) -> InvisibleShield Glass Elite VisionGuardplus Apple iPhone 11 XR 12 12 Pro Screen | AS19: A24046 | AT19: =IFERROR(VLOOKUP(AS19,Lager!$A:$C,3,FALSE),0) -> 912 | AU19: =IF(AW19=0,"Pt udsolgt",IFERROR(_xlfn.XLOOKUP(AV19,Tilbehør!$B:$B,Tilbehør!$A:$A),"Findes ikke")) -> InvisibleShield Glass Elite VisionGuardplus Apple iPhone 11 XR 12 12 Pro Screen | AV19: A24046 | AW19: =IFERROR(VLOOKUP(AV19,Lager!$A:$C,3,FALSE),0) -> 912 | AX19: =IF(AZ19=0,"Pt udsolgt",IFERROR(_xlfn.XLOOKUP(AY19,Tilbehør!$B:$B,Tilbehør!$A:$A),"Findes ikke")) -> InvisibleShield Glass Elite VisionGuardplus Apple iPhone 11 XR 12 12 Pro Screen | AY19: A24046 | AZ19: =IFERROR(VLOOKUP(AY19,Lager!$A:$C,3,FALSE),0) -> 912 | BA19: =IF(BC19=0,"Pt udsolgt",IFERROR(_xlfn.XLOOKUP(BB19,Tilbehør!$B:$B,Tilbehør!$A:$A),"Findes ikke")) -> InvisibleShield Glass Elite VisionGuardplus Apple iPhone 11 XR 12 12 Pro Screen | BB19: A24046 | BC19: =IFERROR(VLOOKUP(BB19,Lager!$A:$C,3,FALSE),0) -> 912 | BD19: =IF(BF19=0,"Pt udsolgt",IFERROR(_xlfn.XLOOKUP(BE19,Tilbehør!$B:$B,Tilbehør!$A:$A),"Findes ikke")) -> InvisibleShield Glass Elite VisionGuardplus Apple iPhone 11 XR 12 12 Pro Screen | BE19: A24046 | BF19: =IFERROR(VLOOKUP(BE19,Lager!$A:$C,3,FALSE),0) -> 912 | BG19: =IF(BI19=0,"Pt udsolgt",IFERROR(_xlfn.XLOOKUP(BH19,Tilbehør!$B:$B,Tilbehør!$A:$A),"Findes ikke")) -> INVISIBLESHIELS GLASS ELITE VISIONGUARD SCREEN IPHONE iPhone 12 Mini | BH19: A24045 | BI19: =IFERROR(VLOOKUP(BH19,Lager!$A:$C,3,FALSE),0) -> 938 | BJ19: =IF(BL19=0,"Pt udsolgt",IFERROR(_xlfn.XLOOKUP(BK19,Tilbehør!$B:$B,Tilbehør!$A:$A),"Findes ikke")) -> INVISIBLESHIELS GLASS ELITE VISIONGUARD SCREEN IPHONE iPhone 12 Mini | BK19: A24045 | BL19: =IFERROR(VLOOKUP(BK19,Lager!$A:$C,3,FALSE),0) -> 938 | BM19: =IF(BO19=0,"Pt udsolgt",IFERROR(_xlfn.XLOOKUP(BN19,Tilbehør!$B:$B,Tilbehør!$A:$A),"Findes ikke")) -> INVISIBLESHIELS GLASS ELITE VISIONGUARD SCREEN IPHONE iPhone 12 Mini | BN19: A24045 | BO19: =IFERROR(VLOOKUP(BN19,Lager!$A:$C,3,FALSE),0) -> 938 | BP19: =IF(BR19=0,"Pt udsolgt",IFERROR(_xlfn.XLOOKUP(BQ19,Tilbehør!$B:$B,Tilbehør!$A:$A),"Findes ikke")) -> INVISIBLESHIELS GLASS ELITE VISIONGUARD SCREEN IPHONE iPhone 12 pro Max | BQ19: A24047 | BR19: =IFERROR(VLOOKUP(BQ19,Lager!$A:$C,3,FALSE),0) -> 278 | BS19: =IF(BU19=0,"Pt udsolgt",IFERROR(_xlfn.XLOOKUP(BT19,Tilbehør!$B:$B,Tilbehør!$A:$A),"Findes ikke")) -> INVISIBLESHIELS GLASS ELITE VISIONGUARD SCREEN IPHONE iPhone 12 pro Max | BT19: A24047 | BU19: =IFERROR(VLOOKUP(BT19,Lager!$A:$C,3,FALSE),0) -> 278 | BV19: =IF(BX19=0,"Pt udsolgt",IFERROR(_xlfn.XLOOKUP(BW19,Tilbehør!$B:$B,Tilbehør!$A:$A),"Findes ikke")) -> INVISIBLESHIELS GLASS ELITE VISIONGUARD SCREEN IPHONE iPhone 12 pro Max | BW19: A24047 | BX19: =IFERROR(VLOOKUP(BW19,Lager!$A:$C,3,FALSE),0) -> 278
A20: Apple iPhone 11 Pro Max 64GB | B20: iPhone11promaxcover | C20: iPhone11promaxpanserglas | E20: =IF(G20=0,"Pt udsolgt",IFERROR(_xlfn.XLOOKUP(F20,Tilbehør!B:B,Tilbehør!A:A),"Findes ikke")) -> Pt udsolgt | F20: A23600 | G20: =IFERROR(VLOOKUP(F20,Lager!$A:$C,3,FALSE),0) -> 0 | H20: =IF(J20=0,"Pt udsolgt",IFERROR(_xlfn.XLOOKUP(I20,Tilbehør!$B:$B,Tilbehør!$A:$A),"Findes ikke")) -> Invisibleshield Glass Elite Edge Iphone X Xs 11 Pro Screen | I20: A23604 | J20: =IFERROR(VLOOKUP(I20,Lager!$A:$C,3,FALSE),0) -> 98 | K20: =IF(M20=0,"Pt udsolgt",IFERROR(_xlfn.XLOOKUP(L20,Tilbehør!$B:$B,Tilbehør!$A:$A),"Findes ikke")) -> Invisibleshield Glass Elite Vision GuardPlus Iphone Xs Max 11 Pro Max Screen | L20: A23612 | M20: =IFERROR(VLOOKUP(L20,Lager!$A:$C,3,FALSE),0) -> 8 | N20: =IF(P20=0,"Pt udsolgt",IFERROR(_xlfn.XLOOKUP(O20,Tilbehør!$B:$B,Tilbehør!$A:$A),"Findes ikke")) -> Invisibleshield Glass Elite Privacy Iphone X Xs 11 Pro Screen | O20: A23615 | P20: =IFERROR(VLOOKUP(O20,Lager!$A:$C,3,FALSE),0) -> 38 | Q20: =IF(S20=0,"Pt udsolgt",IFERROR(_xlfn.XLOOKUP(R20,Tilbehør!$B:$B,Tilbehør!$A:$A),"Findes ikke")) -> Invisibleshield Glass Elite Vision GuardPlus Iphone Xs Max 11 Pro Max Screen | R20: A23612 | S20: =IFERROR(VLOOKUP(R20,Lager!$A:$C,3,FALSE),0) -> 8 | T20: =IF(V20=0,"Pt udsolgt",IFERROR(_xlfn.XLOOKUP(U20,Tilbehør!$B:$B,Tilbehør!$A:$A),"Findes ikke")) -> Invisibleshield Glass Elite VisionguardPlus Iphone Xr 11 Screen | U20: A23611 | V20: =IFERROR(VLOOKUP(U20,Lager!$A:$C,3,FALSE),0) -> 17 | W20: =IF(Y20=0,"Pt udsolgt",IFERROR(_xlfn.XLOOKUP(X20,Tilbehør!$B:$B,Tilbehør!$A:$A),"Findes ikke")) -> Pt udsolgt | X20: A23614 | Y20: =IFERROR(VLOOKUP(X20,Lager!$A:$C,3,FALSE),0) -> 0 | AC20: =IF(AE20=0,"Pt udsolgt",IFERROR(_xlfn.XLOOKUP(AD20,Tilbehør!$B:$B,Tilbehør!$A:$A),"Findes ikke")) -> Invisibleshield GlasselitePlus Apple Baby Yoda 8 7 6S 6 Screen | AD20: A23597 | AE20: =IFERROR(VLOOKUP(AD20,Lager!$A:$C,3,FALSE),0) -> 34 | AO20: =IF(AQ20=0,"Pt udsolgt",IFERROR(_xlfn.XLOOKUP(AP20,Tilbehør!$B:$B,Tilbehør!$A:$A),"Findes ikke")) -> InvisibleShield Glass Elite Privacyplus Apple iPhone 11 XR 12 12 Pro Screen | AP20: A24049 | AQ20: =IFERROR(VLOOKUP(AP20,Lager!$A:$C,3,FALSE),0) -> 75 | AR20: =IF(AT20=0,"Pt udsolgt",IFERROR(_xlfn.XLOOKUP(AS20,Tilbehør!$B:$B,Tilbehør!$A:$A),"Findes ikke")) -> InvisibleShield Glass Elite Privacyplus Apple iPhone 11 XR 12 12 Pro Screen | AS20: A24049 | AT20: =IFERROR(VLOOKUP(AS20,Lager!$A:$C,3,FALSE),0) -> 75 | AU20: =IF(AW20=0,"Pt udsolgt",IFERROR(_xlfn.XLOOKUP(AV20,Tilbehør!$B:$B,Tilbehør!$A:$A),"Findes ikke")) -> InvisibleShield Glass Elite Privacyplus Apple iPhone 11 XR 12 12 Pro Screen | AV20: A24049 | AW20: =IFERROR(VLOOKUP(AV20,Lager!$A:$C,3,FALSE),0) -> 75 | AX20: =IF(AZ20=0,"Pt udsolgt",IFERROR(_xlfn.XLOOKUP(AY20,Tilbehør!$B:$B,Tilbehør!$A:$A),"Findes ikke")) -> InvisibleShield Glass Elite Privacyplus Apple iPhone 11 XR 12 12 Pro Screen | AY20: A24049 | AZ20: =IFERROR(VLOOKUP(AY20,Lager!$A:$C,3,FALSE),0) -> 75 | BA20: =IF(BC20=0,"Pt udsolgt",IFERROR(_xlfn.XLOOKUP(BB20,Tilbehør!$B:$B,Tilbehør!$A:$A),"Findes ikke")) -> InvisibleShield Glass Elite Privacyplus Apple iPhone 11 XR 12 12 Pro Screen | BB20: A24049 | BC20: =IFERROR(VLOOKUP(BB20,Lager!$A:$C,3,FALSE),0) -> 75 | BD20: =IF(BF20=0,"Pt udsolgt",IFERROR(_xlfn.XLOOKUP(BE20,Tilbehør!$B:$B,Tilbehør!$A:$A),"Findes ikke")) -> InvisibleShield Glass Elite Privacyplus Apple iPhone 11 XR 12 12 Pro Screen | BE20: A24049 | BF20: =IFERROR(VLOOKUP(BE20,Lager!$A:$C,3,FALSE),0) -> 75 | BG20: =IF(BI20=0,"Pt udsolgt",IFERROR(_xlfn.XLOOKUP(BH20,Tilbehør!$B:$B,Tilbehør!$A:$A),"Findes ikke")) -> INVISIBLESHIELD GLASS ELITE PRIVACY plus IPHONE iPhone 12 Mini | BH20: A24048 | BI20: =IFERROR(VLOOKUP(BH20,Lager!$A:$C,3,FALSE),0) -> 145 | BJ20: =IF(BL20=0,"Pt udsolgt",IFERROR(_xlfn.XLOOKUP(BK20,Tilbehør!$B:$B,Tilbehør!$A:$A),"Findes ikke")) -> INVISIBLESHIELD GLASS ELITE PRIVACY plus IPHONE iPhone 12 Mini | BK20: A24048 | BL20: =IFERROR(VLOOKUP(BK20,Lager!$A:$C,3,FALSE),0) -> 145 | BM20: =IF(BO20=0,"Pt udsolgt",IFERROR(_xlfn.XLOOKUP(BN20,Tilbehør!$B:$B,Tilbehør!$A:$A),"Findes ikke")) -> INVISIBLESHIELD GLASS ELITE PRIVACY plus IPHONE iPhone 12 Mini | BN20: A24048 | BO20: =IFERROR(VLOOKUP(BN20,Lager!$A:$C,3,FALSE),0) -> 145 | BP20: =IF(BR20=0,"Pt udsolgt",IFERROR(_xlfn.XLOOKUP(BQ20,Tilbehør!$B:$B,Tilbehør!$A:$A),"Findes ikke")) -> INVISIBLESHIELD GLASS ELITE PRIVACY plus IPHONE iPhone 12 pro Max | BQ20: A24050 | BR20: =IFERROR(VLOOKUP(BQ20,Lager!$A:$C,3,FALSE),0) -> 83 | BS20: =IF(BU20=0,"Pt udsolgt",IFERROR(_xlfn.XLOOKUP(BT20,Tilbehør!$B:$B,Tilbehør!$A:$A),"Findes ikke")) -> INVISIBLESHIELD GLASS ELITE PRIVACY plus IPHONE iPhone 12 pro Max | BT20: A24050 | BU20: =IFERROR(VLOOKUP(BT20,Lager!$A:$C,3,FALSE),0) -> 83 | BV20: =IF(BX20=0,"Pt udsolgt",IFERROR(_xlfn.XLOOKUP(BW20,Tilbehør!$B:$B,Tilbehør!$A:$A),"Findes ikke")) -> INVISIBLESHIELD GLASS ELITE PRIVACY plus IPHONE iPhone 12 pro Max | BW20: A24050 | BX20: =IFERROR(VLOOKUP(BW20,Lager!$A:$C,3,FALSE),0) -> 83
A21: Apple iPhone 11 Pro Max 256GB | B21: iPhone11promaxcover | C21: iPhone11promaxpanserglas | H21: =IF(J21=0,"Pt udsolgt",IFERROR(_xlfn.XLOOKUP(I21,Tilbehør!$B:$B,Tilbehør!$A:$A),"Findes ikke")) -> Invisibleshield Glass Elite VisionguardPlus Iphone X Xs 11 Pro Screen | I21: A23610 | J21: =IFERROR(VLOOKUP(I21,Lager!$A:$C,3,FALSE),0) -> 35 | K21: =IF(M21=0,"Pt udsolgt",IFERROR(_xlfn.XLOOKUP(L21,Tilbehør!$B:$B,Tilbehør!$A:$A),"Findes ikke")) -> Pt udsolgt | M21: =IFERROR(VLOOKUP(L21,Lager!$A:$C,3,FALSE),0) -> 0 | N21: =IF(P21=0,"Pt udsolgt",IFERROR(_xlfn.XLOOKUP(O21,Tilbehør!$B:$B,Tilbehør!$A:$A),"Findes ikke")) -> Invisibleshield Glass Elite Iphone X Xs 11 Pro Screen | O21: A23599 | P21: =IFERROR(VLOOKUP(O21,Lager!$A:$C,3,FALSE),0) -> 44 | Q21: =IF(S21=0,"Pt udsolgt",IFERROR(_xlfn.XLOOKUP(R21,Tilbehør!$B:$B,Tilbehør!$A:$A),"Findes ikke")) -> Pt udsolgt | S21: =IFERROR(VLOOKUP(R21,Lager!$A:$C,3,FALSE),0) -> 0 | T21: =IF(V21=0,"Pt udsolgt",IFERROR(_xlfn.XLOOKUP(U21,Tilbehør!$B:$B,Tilbehør!$A:$A),"Findes ikke")) -> Invisibleshield Glass Elite Privacy Iphone Xr 11Screen | U21: A23616 | V21: =IFERROR(VLOOKUP(U21,Lager!$A:$C,3,FALSE),0) -> 5 | AO21: =IF(AQ21=0,"Pt udsolgt",IFERROR(_xlfn.XLOOKUP(AP21,Tilbehør!$B:$B,Tilbehør!$A:$A),"Findes ikke")) -> PanzerGlass ClearCase for Apple iPhone 12 og 12 Pro | AP21: A24083 | AQ21: =IFERROR(VLOOKUP(AP21,Lager!$A:$C,3,FALSE),0) -> 15 | AR21: =IF(AT21=0,"Pt udsolgt",IFERROR(_xlfn.XLOOKUP(AS21,Tilbehør!$B:$B,Tilbehør!$A:$A),"Findes ikke")) -> PanzerGlass ClearCase for Apple iPhone 12 og 12 Pro | AS21: A24083 | AT21: =IFERROR(VLOOKUP(AS21,Lager!$A:$C,3,FALSE),0) -> 15 | AU21: =IF(AW21=0,"Pt udsolgt",IFERROR(_xlfn.XLOOKUP(AV21,Tilbehør!$B:$B,Tilbehør!$A:$A),"Findes ikke")) -> PanzerGlass ClearCase for Apple iPhone 12 og 12 Pro | AV21: A24083 | AW21: =IFERROR(VLOOKUP(AV21,Lager!$A:$C,3,FALSE),0) -> 15 | AX21: =IF(AZ21=0,"Pt udsolgt",IFERROR(_xlfn.XLOOKUP(AY21,Tilbehør!$B:$B,Tilbehør!$A:$A),"Findes ikke")) -> PanzerGlass ClearCase for Apple iPhone 12 og 12 Pro | AY21: A24083 | AZ21: =IFERROR(VLOOKUP(AY21,Lager!$A:$C,3,FALSE),0) -> 15 | BA21: =IF(BC21=0,"Pt udsolgt",IFERROR(_xlfn.XLOOKUP(BB21,Tilbehør!$B:$B,Tilbehør!$A:$A),"Findes ikke")) -> PanzerGlass ClearCase for Apple iPhone 12 og 12 Pro | BB21: A24083 | BC21: =IFERROR(VLOOKUP(BB21,Lager!$A:$C,3,FALSE),0) -> 15 | BD21: =IF(BF21=0,"Pt udsolgt",IFERROR(_xlfn.XLOOKUP(BE21,Tilbehør!$B:$B,Tilbehør!$A:$A),"Findes ikke")) -> PanzerGlass ClearCase for Apple iPhone 12 og 12 Pro | BE21: A24083 | BF21: =IFERROR(VLOOKUP(BE21,Lager!$A:$C,3,FALSE),0) -> 15
A22: Apple iPhone 11 Pro Max 512GB | B22: iPhone11promaxcover | C22: iPhone11promaxpanserglas | H22: =IF(J22=0,"Pt udsolgt",IFERROR(_xlfn.XLOOKUP(I22,Tilbehør!$B:$B,Tilbehør!$A:$A),"Findes ikke")) -> Invisibleshield Glass Elite Privacy Iphone X Xs 11 Pro Screen | I22: A23615 | J22: =IFERROR(VLOOKUP(I22,Lager!$A:$C,3,FALSE),0) -> 38 | K22: =IF(M22=0,"Pt udsolgt",IFERROR(_xlfn.XLOOKUP(L22,Tilbehør!$B:$B,Tilbehør!$A:$A),"Findes ikke")) -> Pt udsolgt | M22: =IFERROR(VLOOKUP(L22,Lager!$A:$C,3,FALSE),0) -> 0 | N22: =IF(P22=0,"Pt udsolgt",IFERROR(_xlfn.XLOOKUP(#REF!,Tilbehør!$B:$B,Tilbehør!$A:$A),"Findes ikke")) -> Pt udsolgt | O22: A22485 | P22: =IFERROR(VLOOKUP(#REF!,Lager!$A:$C,3,FALSE),0) -> 0 | Q22: =IF(S22=0,"Pt udsolgt",IFERROR(_xlfn.XLOOKUP(R22,Tilbehør!$B:$B,Tilbehør!$A:$A),"Findes ikke")) -> Pt udsolgt | S22: =IFERROR(VLOOKUP(R22,Lager!$A:$C,3,FALSE),0) -> 0 | T22: =IF(V22=0,"Pt udsolgt",IFERROR(_xlfn.XLOOKUP(#REF!,Tilbehør!$B:$B,Tilbehør!$A:$A),"Findes ikke")) -> Pt udsolgt | U22: A22949 | V22: =IFERROR(VLOOKUP(#REF!,Lager!$A:$C,3,FALSE),0) -> 0 | AO22: =IF(AQ22=0,"Pt udsolgt",IFERROR(_xlfn.XLOOKUP(AP22,Tilbehør!$B:$B,Tilbehør!$A:$A),"Findes ikke")) -> PanzerGlass ClearCase with BlackFrame for Apple iPhone 12 og 12 Pro | AP22: A24086 | AQ22: =IFERROR(VLOOKUP(AP22,Lager!$A:$C,3,FALSE),0) -> 23 | AR22: =IF(AT22=0,"Pt udsolgt",IFERROR(_xlfn.XLOOKUP(AS22,Tilbehør!$B:$B,Tilbehør!$A:$A),"Findes ikke")) -> PanzerGlass ClearCase with BlackFrame for Apple iPhone 12 og 12 Pro | AS22: A24086 | AT22: =IFERROR(VLOOKUP(AS22,Lager!$A:$C,3,FALSE),0) -> 23 | AU22: =IF(AW22=0,"Pt udsolgt",IFERROR(_xlfn.XLOOKUP(AV22,Tilbehør!$B:$B,Tilbehør!$A:$A),"Findes ikke")) -> PanzerGlass ClearCase with BlackFrame for Apple iPhone 12 og 12 Pro | AV22: A24086 | AW22: =IFERROR(VLOOKUP(AV22,Lager!$A:$C,3,FALSE),0) -> 23 | AX22: =IF(AZ22=0,"Pt udsolgt",IFERROR(_xlfn.XLOOKUP(AY22,Tilbehør!$B:$B,Tilbehør!$A:$A),"Findes ikke")) -> PanzerGlass ClearCase with BlackFrame for Apple iPhone 12 og 12 Pro | AY22: A24086 | AZ22: =IFERROR(VLOOKUP(AY22,Lager!$A:$C,3,FALSE),0) -> 23 | BA22: =IF(BC22=0,"Pt udsolgt",IFERROR(_xlfn.XLOOKUP(BB22,Tilbehør!$B:$B,Tilbehør!$A:$A),"Findes ikke")) -> PanzerGlass ClearCase with BlackFrame for Apple iPhone 12 og 12 Pro | BB22: A24086 | BC22: =IFERROR(VLOOKUP(BB22,Lager!$A:$C,3,FALSE),0) -> 23 | BD22: =IF(BF22=0,"Pt udsolgt",IFERROR(_xlfn.XLOOKUP(BE22,Tilbehør!$B:$B,Tilbehør!$A:$A),"Findes ikke")) -> PanzerGlass ClearCase with BlackFrame for Apple iPhone 12 og 12 Pro | BE22: A24086 | BF22: =IFERROR(VLOOKUP(BE22,Lager!$A:$C,3,FALSE),0) -> 23
A23: Apple iPhone XS 64GB | B23: iPhonexscover | C23: iPhonexspanserglas | H23: =IF(J23=0,"Pt udsolgt",IFERROR(_xlfn.XLOOKUP(I23,Tilbehør!$B:$B,Tilbehør!$A:$A),"Findes ikke")) -> Pt udsolgt | I23: A23223 | J23: =IFERROR(VLOOKUP(I23,Lager!$A:$C,3,FALSE),0) -> 0 | K23: =IF(M23=0,"Pt udsolgt",IFERROR(_xlfn.XLOOKUP(L23,Tilbehør!$B:$B,Tilbehør!$A:$A),"Findes ikke")) -> Pt udsolgt | M23: =IFERROR(VLOOKUP(L23,Lager!$A:$C,3,FALSE),0) -> 0 | Q23: =IF(S23=0,"Pt udsolgt",IFERROR(_xlfn.XLOOKUP(R23,Tilbehør!$B:$B,Tilbehør!$A:$A),"Findes ikke")) -> Pt udsolgt | S23: =IFERROR(VLOOKUP(R23,Lager!$A:$C,3,FALSE),0) -> 0
A24: Apple iPhone XS 256GB | B24: iPhonexscover | C24: iPhonexspanserglas | H24: =IF(J24=0,"Pt udsolgt",IFERROR(_xlfn.XLOOKUP(I24,Tilbehør!$B:$B,Tilbehør!$A:$A),"Findes ikke")) -> Pt udsolgt | I24: A23220 | J24: =IFERROR(VLOOKUP(I24,Lager!$A:$C,3,FALSE),0) -> 0
A25: Apple iPhone XS Max 64GB | B25: iPhonexsmaxcover | C25: iPhonexsmaxpanserglas
A26: Apple iPhone XS Max 256GB | B26: iPhonexsmaxcover | C26: iPhonexsmaxpanserglas | E26: Motoroloaonezoomcover | F26: Anummer | G26: Lager | H26: Morololaonehypercover | I26: Anummer | J26: Lager
A27: Apple iPhone Xr 64GB | B27: iPhonexrcover | C27: iPhonexrpanserglas | E27: =IF(G27=0,"Pt udsolgt",IFERROR(_xlfn.XLOOKUP(F27,Tilbehør!B:B,Tilbehør!A:A),"Findes ikke")) -> Pt udsolgt | G27: =IFERROR(VLOOKUP(F27,Lager!$A:$C,3,FALSE),0) -> 0 | H27: =IF(J27=0,"Pt udsolgt",IFERROR(_xlfn.XLOOKUP(I27,Tilbehør!$B:$B,Tilbehør!$A:$A),"Findes ikke")) -> Pt udsolgt | J27: =IFERROR(VLOOKUP(I27,Lager!$A:$C,3,FALSE),0) -> 0
A28: Apple iPhone Xr 128GB | B28: iPhonexrcover | C28: iPhonexrpanserglas | E28: =IFERROR(VLOOKUP(F28,#REF!,5,FALSE),"") -> 
A29: Apple iPhone 8 64GB | B29: iPhone8cover | C29: iPhone8panserglas | E29: Motorolaonezoompanserglas | F29: Anummer | G29: Lager | H29: Morololaonehyperpanserglas | I29: Anummer | J29: Lager
A30: Apple iPhone 8 128GB | B30: iPhone8cover | C30: iPhone8panserglas | E30: =IF(G30=0,"Pt udsolgt",IFERROR(_xlfn.XLOOKUP(F30,Tilbehør!B:B,Tilbehør!A:A),"Findes ikke")) -> Pt udsolgt | F30: A23343 | G30: =IFERROR(VLOOKUP(F30,Lager!$A:$C,3,FALSE),0) -> 0 | H30: =IF(J30=0,"Pt udsolgt",IFERROR(_xlfn.XLOOKUP(I30,Tilbehør!$B:$B,Tilbehør!$A:$A),"Findes ikke")) -> Pt udsolgt | I30: A23463 | J30: =IFERROR(VLOOKUP(I30,Lager!$A:$C,3,FALSE),0) -> 0
A31: Apple iPhone 7 32GB | B31: iPhone7cover | C31: iPhone7panserglas
A32: Apple iPhone 8 Plus 64GB | B32: iPhone8pluscover | C32: iPhone8pluspanserglas | E32: p30litecover | F32: Anummer | G32: Lager | H32: p30cover | I32: Anummer | J32: Lager | K32: p30procover | L32: Anummer | M32: Lager | N32: p40litecover | O32: Anummer | P32: Lager | Q32: p40procover | R32: Anummer | S32: Lager
A33: Apple iPhone SE 2nd gen 128GB NEW (OBS. UDEN OPLADER) | B33: AppleiPhoneSE2ndgen128GBCover | C33: AppleiPhoneSE2ndgen128GBpanserglas | E33: =IF(G33=0,"Pt udsolgt",IFERROR(_xlfn.XLOOKUP(F33,Tilbehør!B:B,Tilbehør!A:A),"Findes ikke")) -> Pt udsolgt | F33: A23122 | G33: =IFERROR(VLOOKUP(F33,Lager!$A:$C,3,FALSE),0) -> 0 | H33: =IF(J33=0,"Pt udsolgt",IFERROR(_xlfn.XLOOKUP(I33,Tilbehør!$B:$B,Tilbehør!$A:$A),"Findes ikke")) -> Pt udsolgt | I33: A23124 | J33: =IFERROR(VLOOKUP(I33,Lager!$A:$C,3,FALSE),0) -> 0 | K33: =IF(M33=0,"Pt udsolgt",IFERROR(_xlfn.XLOOKUP(L33,Tilbehør!$B:$B,Tilbehør!$A:$A),"Findes ikke")) -> Pt udsolgt | L33: A23123 | M33: =IFERROR(VLOOKUP(L33,Lager!$A:$C,3,FALSE),0) -> 0 | N33: =IF(P33=0,"Pt udsolgt",IFERROR(_xlfn.XLOOKUP(O33,Tilbehør!$B:$B,Tilbehør!$A:$A),"Findes ikke")) -> Huawei P40 Lite Protective Cover Transparent | O33: A23724 | P33: =IFERROR(VLOOKUP(O33,Lager!$A:$C,3,FALSE),0) -> 12 | Q33: =IF(S33=0,"Pt udsolgt",IFERROR(_xlfn.XLOOKUP(R33,Tilbehør!$B:$B,Tilbehør!$A:$A),"Findes ikke")) -> Huawei P40 Pro Protective Cover Transparent | R33: A23725 | S33: =IFERROR(VLOOKUP(R33,Lager!$A:$C,3,FALSE),0) -> 11
A34: Apple iPhone SE 2nd gen 256GB NEW (OBS. UDEN OPLADER) | B34: AppleiPhoneSE2ndgen256GBCover | C34: AppleiPhoneSE2ndgen256GBpanserglas | E34: =IF(G34=0,"Pt udsolgt",IFERROR(_xlfn.XLOOKUP(F34,Tilbehør!B:B,Tilbehør!A:A),"Findes ikke")) -> Pt udsolgt | H34: =IF(J34=0,"Pt udsolgt",IFERROR(_xlfn.XLOOKUP(I34,Tilbehør!$B:$B,Tilbehør!$A:$A),"Findes ikke")) -> Pt udsolgt | I34: A23109 | J34: =IFERROR(VLOOKUP(I34,Lager!$A:$C,3,FALSE),0) -> 0 | K34: =IF(M34=0,"Pt udsolgt",IFERROR(_xlfn.XLOOKUP(L34,Tilbehør!$B:$B,Tilbehør!$A:$A),"Findes ikke")) -> Pt udsolgt | L34: A23112 | M34: =IFERROR(VLOOKUP(L34,Lager!$A:$C,3,FALSE),0) -> 0
A35: Apple iPhone SE 2nd gen 64GB NEW (OBS. UDEN OPLADER) | B35: AppleiPhoneSE2ndgen64GBCover | C35: AppleiPhoneSE2ndgen64GBpanserglas | H35: =IF(J35=0,"Pt udsolgt",IFERROR(_xlfn.XLOOKUP(I35,Tilbehør!$B:$B,Tilbehør!$A:$A),"Findes ikke")) -> Pt udsolgt | I35: A23110 | J35: =IFERROR(VLOOKUP(I35,Lager!$A:$C,3,FALSE),0) -> 0 | K35: =IF(M35=0,"Pt udsolgt",IFERROR(_xlfn.XLOOKUP(L35,Tilbehør!$B:$B,Tilbehør!$A:$A),"Findes ikke")) -> Pt udsolgt | L35: A23111 | M35: =IFERROR(VLOOKUP(L35,Lager!$A:$C,3,FALSE),0) -> 0
A37: Motorola One Hyper 128GB Blue | B37: Morololaonehypercover | C37: Morololaonehyperpanserglas | E37: p30litepanserglas | F37: Anummer | G37: Lager | H37: p30panserglas | I37: Anummer | J37: Lager | K37: p30propanserglas | L37: Anummer | M37: Lager | N37: p40litepanserglas | O37: Anummer | P37: Lager | Q37: p40propanserglas | R37: Anummer | S37: Lager
A38: Motorola One Zoom 128GB HDS | B38: Motoroloaonezoomcover | C38: Motorolaonezoompanserglas | E38: =IF(G38=0,"Pt udsolgt",IFERROR(_xlfn.XLOOKUP(F38,Tilbehør!B:B,Tilbehør!A:A),"Findes ikke")) -> Invisibleshield GlassPlus Huawei P30 Lite Screen | F38: A23639 | G38: =IFERROR(VLOOKUP(F38,Lager!$A:$C,3,FALSE),0) -> 4 | H38: =IF(J38=0,"Pt udsolgt",IFERROR(_xlfn.XLOOKUP(I38,Tilbehør!$B:$B,Tilbehør!$A:$A),"Findes ikke")) -> Invisibleshield GlassPlus Huawei P30 Lite Screen | I38: A23639 | J38: =IFERROR(VLOOKUP(I38,Lager!$A:$C,3,FALSE),0) -> 4 | K38: =IF(M38=0,"Pt udsolgt",IFERROR(_xlfn.XLOOKUP(L38,Tilbehør!$B:$B,Tilbehør!$A:$A),"Findes ikke")) -> Pt udsolgt | L38: A23107 | M38: =IFERROR(VLOOKUP(L38,Lager!$A:$C,3,FALSE),0) -> 0 | N38: =IF(P38=0,"Pt udsolgt",IFERROR(_xlfn.XLOOKUP(O38,Tilbehør!$B:$B,Tilbehør!$A:$A),"Findes ikke")) -> INVISIBLESHIELD ULTRA CLEAR SCREEN HUAWEI P40 LITE | O38: A23735 | P38: =IFERROR(VLOOKUP(O38,Lager!$A:$C,3,FALSE),0) -> 7 | Q38: =IF(S38=0,"Pt udsolgt",IFERROR(_xlfn.XLOOKUP(R38,Tilbehør!$B:$B,Tilbehør!$A:$A),"Findes ikke")) -> InvisibleShield Ultra Clear Huawei P40 Pro | R38: A23732 | S38: =IFERROR(VLOOKUP(R38,Lager!$A:$C,3,FALSE),0) -> 11
A40: Huawei P30 Lite | B40: p30litecover | C40: p30litepanserglas
A41: Huawei P30 | B41: p30cover | C41: p30panserglas | E41: Oneplus7cover | F41: Anummer | G41: Lager | H41: Oneplus7procover | I41: Anummer | J41: Lager | K41: Oneplus7tcover | L41: Anummer | M41: Lager | N41: Oneplus7tprocover | O41: Anummer | P41: Lager | Q41: OnePlusNord128Cover | R41: Anummer | S41: Lager | T41: OnePlusNord256Cover | U41: Anummer | V41: Lager
A42: Huawei P30 Pro 128GB | B42: p30procover | C42: p30propanserglas | E42: =IF(G42=0,"Pt udsolgt",IFERROR(_xlfn.XLOOKUP(F42,Tilbehør!B:B,Tilbehør!A:A),"Findes ikke")) -> Pt udsolgt | F42: A23175 | G42: =IFERROR(VLOOKUP(F42,Lager!$A:$C,3,FALSE),0) -> 0 | H42: =IF(J42=0,"Pt udsolgt",IFERROR(_xlfn.XLOOKUP(I42,Tilbehør!$B:$B,Tilbehør!$A:$A),"Findes ikke")) -> Pt udsolgt | I42: A23174 | J42: =IFERROR(VLOOKUP(I42,Lager!$A:$C,3,FALSE),0) -> 0 | K42: =IF(M42=0,"Pt udsolgt",IFERROR(_xlfn.XLOOKUP(L42,Tilbehør!$B:$B,Tilbehør!$A:$A),"Findes ikke")) -> Pt udsolgt | M42: =IFERROR(VLOOKUP(L42,Lager!$A:$C,3,FALSE),0) -> 0 | N42: =IF(P42=0,"Pt udsolgt",IFERROR(_xlfn.XLOOKUP(O42,Tilbehør!$B:$B,Tilbehør!$A:$A),"Findes ikke")) -> Pt udsolgt | P42: =IFERROR(VLOOKUP(O42,Lager!$A:$C,3,FALSE),0) -> 0 | Q42: =IF(S42=0,"Pt udsolgt",IFERROR(_xlfn.XLOOKUP(R42,Tilbehør!$B:$B,Tilbehør!$A:$A),"Findes ikke")) -> OnePlus Nord Sandstone Bumper Case Sandstone Black | R42: A24033 | S42: =IFERROR(VLOOKUP(R42,Lager!$A:$C,3,FALSE),0) -> 14 | T42: =IF(V42=0,"Pt udsolgt",IFERROR(_xlfn.XLOOKUP(U42,Tilbehør!$B:$B,Tilbehør!$A:$A),"Findes ikke")) -> OnePlus Nord Sandstone Bumper Case Sandstone Black | U42: A24033 | V42: =IFERROR(VLOOKUP(U42,Lager!$A:$C,3,FALSE),0) -> 14
A43: Huawei P30 Pro 256GB | B43: p30procover | C43: p30propanserglas | E43: =IF(G43=0,"Pt udsolgt",IFERROR(_xlfn.XLOOKUP(F43,Tilbehør!B:B,Tilbehør!A:A),"Findes ikke")) -> Pt udsolgt | F43: A23173 | G43: =IFERROR(VLOOKUP(F43,Lager!$A:$C,3,FALSE),0) -> 0 | H43: =IF(J43=0,"Pt udsolgt",IFERROR(_xlfn.XLOOKUP(I43,Tilbehør!$B:$B,Tilbehør!$A:$A),"Findes ikke")) -> Pt udsolgt | I43: A23172 | J43: =IFERROR(VLOOKUP(I43,Lager!$A:$C,3,FALSE),0) -> 0
A44: Huawei P40 Lite 4G | B44: p40litecover | C44: p40litepanserglas
A45: Huawei P40 Pro | B45: p40procover | C45: p40propanserglas | E45: Oneplus7panserglas | F45: Anummer | G45: Lager | H45: Oneplus7propanserglas | I45: Anummer | J45: Lager | K45: Oneplus7tpanserglas | L45: Anummer | M45: Lager | N45: Oneplus7tpropanserglas | O45: Anummer | P45: Lager | Q45: OnePlusNord128Panserglas | R45: Anummer | S45: Lager | T45: OnePlusNord256Panserglas | U45: Anummer | V45: Lager
E46: =IF(G46=0,"Pt udsolgt",IFERROR(_xlfn.XLOOKUP(F46,Tilbehør!B:B,Tilbehør!A:A),"Findes ikke")) -> PanzerGlass OnePlus 7 Black | F46: A22995 | G46: =IFERROR(VLOOKUP(F46,Lager!$A:$C,3,FALSE),0) -> 1 | H46: =IF(J46=0,"Pt udsolgt",IFERROR(_xlfn.XLOOKUP(I46,Tilbehør!$B:$B,Tilbehør!$A:$A),"Findes ikke")) -> Pt udsolgt | I46: A62536 | J46: =IFERROR(VLOOKUP(I46,Lager!$A:$C,3,FALSE),0) -> 0 | K46: =IF(M46=0,"Pt udsolgt",IFERROR(_xlfn.XLOOKUP(L46,Tilbehør!$B:$B,Tilbehør!$A:$A),"Findes ikke")) -> Pt udsolgt | M46: =IFERROR(VLOOKUP(L46,Lager!$A:$C,3,FALSE),0) -> 0 | N46: =IF(P46=0,"Pt udsolgt",IFERROR(_xlfn.XLOOKUP(O46,Tilbehør!$B:$B,Tilbehør!$A:$A),"Findes ikke")) -> Pt udsolgt | P46: =IFERROR(VLOOKUP(O46,Lager!$A:$C,3,FALSE),0) -> 0 | Q46: =IF(S46=0,"Pt udsolgt",IFERROR(_xlfn.XLOOKUP(R46,Tilbehør!$B:$B,Tilbehør!$A:$A),"Findes ikke")) -> Invisibleshield Ultra Clear Screen OnePlus Nord | R46: A23859 | S46: =IFERROR(VLOOKUP(R46,Lager!$A:$C,3,FALSE),0) -> 18 | T46: =IF(V46=0,"Pt udsolgt",IFERROR(_xlfn.XLOOKUP(U46,Tilbehør!$B:$B,Tilbehør!$A:$A),"Findes ikke")) -> Invisibleshield Ultra Clear Screen OnePlus Nord | U46: A23859 | V46: =IFERROR(VLOOKUP(U46,Lager!$A:$C,3,FALSE),0) -> 18
Q47: =IF(S47=0,"Pt udsolgt",IFERROR(_xlfn.XLOOKUP(R47,Tilbehør!$B:$B,Tilbehør!$A:$A),"Findes ikke")) -> Pt udsolgt | S47: =IFERROR(VLOOKUP(R47,Lager!$A:$C,3,FALSE),0) -> 0
A48: OnePlus 7 128GB | B48: Oneplus7cover | C48: Oneplus7panserglas
A49: OnePlus 7 Pro 256GB | B49: Oneplus7procover | C49: Oneplus7propanserglas
A50: OnePlus 7T 128GB | B50: Oneplus7tcover | C50: Oneplus7tpanserglas | E50: Note10cover | F50: Anummer | G50: Lager | H50: Note10pluscover | I50: Anummer | J50: Lager | K50: S10litecover | L50: Anummer | M50: Lager | N50: S10cover | O50: Anummer | P50: Lager | Q50: S10pluscover | R50: Anummer | S50: Lager | T50: Note9cover | U50: Anummer | V50: Lager | W50: Xcover4scover | X50: Anummer | Y50: Lager | Z50: A40cover | AA50: Anummer | AB50: Lager | AC50: S20cover | AD50: Anummer | AE50: Lager | AF50: S20ultracover | AG50: Anummer | AH50: Lager | AI50: S20pluscover | AJ50: Anummer | AK50: Lager | AL50: Zflipcover | AM50: Anummer | AN50: Lager | AO50: GalaxyA71cover | AP50: Anummer | AQ50: Lager | AR50: Note10LiteCover | AS50: Anummer | AT50: Lager | AU50: GalaxyA21scover | AV50: Anummer | AW50: Lager | AX50: SamsungGalaxyNote20256GB5GCover | AY50: Anummer | AZ50: Lager | BA50: SamsungGalaxyNote20Ultra256GB5GCover | BB50: Anummer | BC50: Lager | BD50: SamsungGalaxyNote20Ultra512GB5GCover | BE50: Anummer | BF50: Lager | BG50: SamsungGalaxyS20FE4G128GBCover | BH50: Anummer | BI50: Lager | BJ50: SamsungGalaxyS20FE5G128GBCover | BK50: Anummer | BL50: Lager | BM50: SamsungGalaxyS215G128GBCover | BN50: Anummer | BO50: Lager | BP50: SamsungGalaxyS215G256GBCover | BQ50: Anummer | BR50: Lager | BS50: SamsungGalaxyS215GUltra128GBCover | BT50: Anummer | BU50: Lager | BV50: SamsungGalaxyS215GUltra256GBCover | BW50: Anummer | BX50: Lager | BY50: SamsungGalaxyS215GUltra512GBCover | BZ50: Anummer | CA50: Lager | CB50: SamsungGalaxyS21Plus5G128GBCover | CC50: Anummer | CD50: Lager | CE50: SamsungGalaxyS21Plus5G256GBCover | CF50: Anummer | CG50: Lager
A51: OnePlus 7T Pro 256GB | B51: Oneplus7tprocover | C51: Oneplus7tpropanserglas | E51: =IF(G51=0,"Pt udsolgt",IFERROR(_xlfn.XLOOKUP(F51,Tilbehør!B:B,Tilbehør!A:A),"Findes ikke")) -> Pt udsolgt | F51: A23188 | G51: =IFERROR(VLOOKUP(F51,Lager!$A:$C,3,FALSE),0) -> 0 | H51: =IF(J51=0,"Pt udsolgt",IFERROR(_xlfn.XLOOKUP(I51,Tilbehør!$B:$B,Tilbehør!$A:$A),"Findes ikke")) -> Pt udsolgt | I51: A23192 | J51: =IFERROR(VLOOKUP(I51,Lager!$A:$C,3,FALSE),0) -> 0 | K51: =IF(M51=0,"Pt udsolgt",IFERROR(_xlfn.XLOOKUP(L51,Tilbehør!$B:$B,Tilbehør!$A:$A),"Findes ikke")) -> Pt udsolgt | L51: A23471 | M51: =IFERROR(VLOOKUP(L51,Lager!$A:$C,3,FALSE),0) -> 0 | N51: =IF(P51=0,"Pt udsolgt",IFERROR(_xlfn.XLOOKUP(O51,Tilbehør!$B:$B,Tilbehør!$A:$A),"Findes ikke")) -> Pt udsolgt | O51: A23072 | P51: =IFERROR(VLOOKUP(O51,Lager!$A:$C,3,FALSE),0) -> 0 | Q51: =IF(S51=0,"Pt udsolgt",IFERROR(_xlfn.XLOOKUP(R51,Tilbehør!$B:$B,Tilbehør!$A:$A),"Findes ikke")) -> Pt udsolgt | R51: A23077 | S51: =IFERROR(VLOOKUP(R51,Lager!$A:$C,3,FALSE),0) -> 0 | T51: =IF(V51=0,"Pt udsolgt",IFERROR(_xlfn.XLOOKUP(U51,Tilbehør!$B:$B,Tilbehør!$A:$A),"Findes ikke")) -> Pt udsolgt | U51: A22889 | V51: =IFERROR(VLOOKUP(U51,Lager!$A:$C,3,FALSE),0) -> 0 | W51: =IF(Y51=0,"Pt udsolgt",IFERROR(_xlfn.XLOOKUP(X51,Tilbehør!$B:$B,Tilbehør!$A:$A),"Findes ikke")) -> Pt udsolgt | Y51: =IFERROR(VLOOKUP(X51,Lager!$A:$C,3,FALSE),0) -> 0 | Z51: =IF(AB51=0,"Pt udsolgt",IFERROR(_xlfn.XLOOKUP(AA51,Tilbehør!$B:$B,Tilbehør!$A:$A),"Findes ikke")) -> Pt udsolgt | AA51: A23162 | AB51: =IFERROR(VLOOKUP(AA51,Lager!$A:$C,3,FALSE),0) -> 0 | AC51: =IF(AE51=0,"Pt udsolgt",IFERROR(_xlfn.XLOOKUP(AD51,Tilbehør!$B:$B,Tilbehør!$A:$A),"Findes ikke")) -> Pt udsolgt | AD51: A23678 | AE51: =IFERROR(VLOOKUP(AD51,Lager!$A:$C,3,FALSE),0) -> 0 | AF51: =IF(AH51=0,"Pt udsolgt",IFERROR(_xlfn.XLOOKUP(AG51,Tilbehør!$B:$B,Tilbehør!$A:$A),"Findes ikke")) -> Samsung Galaxy S20 Ultra Clear View Cover Black | AG51: A23499 | AH51: =IFERROR(VLOOKUP(AG51,Lager!$A:$C,3,FALSE),0) -> 33 | AI51: =IF(AK51=0,"Pt udsolgt",IFERROR(_xlfn.XLOOKUP(AJ51,Tilbehør!$B:$B,Tilbehør!$A:$A),"Findes ikke")) -> Samsung Clear View Cover S20Plus | AJ51: A23469 | AK51: =IFERROR(VLOOKUP(AJ51,Lager!$A:$C,3,FALSE),0) -> 32 | AL51: =IF(AN51=0,"Pt udsolgt",IFERROR(_xlfn.XLOOKUP(AM51,Tilbehør!$B:$B,Tilbehør!$A:$A),"Findes ikke")) -> Pt udsolgt | AM51: A23495 | AN51: =IFERROR(VLOOKUP(AM51,Lager!$A:$C,3,FALSE),0) -> 0 | AO51: =IF(AQ51=0,"Pt udsolgt",IFERROR(_xlfn.XLOOKUP(AP51,Tilbehør!$B:$B,Tilbehør!$A:$A),"Findes ikke")) -> Pt udsolgt | AQ51: =IFERROR(VLOOKUP(AP51,Lager!$A:$C,3,FALSE),0) -> 0 | AR51: =IF(AT51=0,"Pt udsolgt",IFERROR(_xlfn.XLOOKUP(AS51,Tilbehør!$B:$B,Tilbehør!$A:$A),"Findes ikke")) -> Pt udsolgt | AT51: =IFERROR(VLOOKUP(AS51,Lager!$A:$C,3,FALSE),0) -> 0 | AU51: =IF(AW51=0,"Pt udsolgt",IFERROR(_xlfn.XLOOKUP(AV51,Tilbehør!$B:$B,Tilbehør!$A:$A),"Findes ikke")) -> Pt udsolgt | AW51: =IFERROR(VLOOKUP(AV51,Lager!$A:$C,3,FALSE),0) -> 0 | AX51: =IF(AZ51=0,"Pt udsolgt",IFERROR(_xlfn.XLOOKUP(AY51,Tilbehør!$B:$B,Tilbehør!$A:$A),"Findes ikke")) -> Pt udsolgt | AZ51: =IFERROR(VLOOKUP(AY51,Lager!$A:$C,3,FALSE),0) -> 0 | BA51: =IF(BC51=0,"Pt udsolgt",IFERROR(_xlfn.XLOOKUP(BB51,Tilbehør!$B:$B,Tilbehør!$A:$A),"Findes ikke")) -> Samsung Galaxy Note 20 Plus Clear View Cover Mystic Black | BB51: A24030 | BC51: =IFERROR(VLOOKUP(BB51,Lager!$A:$C,3,FALSE),0) -> 10 | BD51: =IF(BF51=0,"Pt udsolgt",IFERROR(_xlfn.XLOOKUP(BE51,Tilbehør!$B:$B,Tilbehør!$A:$A),"Findes ikke")) -> Samsung Galaxy Note 20 Plus Clear View Cover Mystic Black | BE51: A24030 | BF51: =IFERROR(VLOOKUP(BE51,Lager!$A:$C,3,FALSE),0) -> 10 | BG51: =IF(BI51=0,"Pt udsolgt",IFERROR(_xlfn.XLOOKUP(BH51,Tilbehør!$B:$B,Tilbehør!$A:$A),"Findes ikke")) -> Samsung S20 FE Silicone Cover Navy | BH51: A24094 | BI51: =IFERROR(VLOOKUP(BH51,Lager!$A:$C,3,FALSE),0) -> 1 | BJ51: =IF(BL51=0,"Pt udsolgt",IFERROR(_xlfn.XLOOKUP(BK51,Tilbehør!$B:$B,Tilbehør!$A:$A),"Findes ikke")) -> Samsung S20 FE Silicone Cover Navy | BK51: A24094 | BL51: =IFERROR(VLOOKUP(BK51,Lager!$A:$C,3,FALSE),0) -> 1 | BM51: =IF(BO51=0,"Pt udsolgt",IFERROR(_xlfn.XLOOKUP(BN51,Tilbehør!$B:$B,Tilbehør!$A:$A),"Findes ikke")) -> Pt udsolgt | BO51: =IFERROR(VLOOKUP(BN51,Lager!$A:$C,3,FALSE),0) -> 0 | BP51: =IF(BR51=0,"Pt udsolgt",IFERROR(_xlfn.XLOOKUP(BQ51,Tilbehør!$B:$B,Tilbehør!$A:$A),"Findes ikke")) -> Pt udsolgt | BR51: =IFERROR(VLOOKUP(BQ51,Lager!$A:$C,3,FALSE),0) -> 0 | BS51: =IF(BU51=0,"Pt udsolgt",IFERROR(_xlfn.XLOOKUP(BT51,Tilbehør!$B:$B,Tilbehør!$A:$A),"Findes ikke")) -> Pt udsolgt | BU51: =IFERROR(VLOOKUP(BT51,Lager!$A:$C,3,FALSE),0) -> 0 | BV51: =IF(BX51=0,"Pt udsolgt",IFERROR(_xlfn.XLOOKUP(BW51,Tilbehør!$B:$B,Tilbehør!$A:$A),"Findes ikke")) -> Pt udsolgt | BX51: =IFERROR(VLOOKUP(BW51,Lager!$A:$C,3,FALSE),0) -> 0 | BY51: =IF(CA51=0,"Pt udsolgt",IFERROR(_xlfn.XLOOKUP(BZ51,Tilbehør!$B:$B,Tilbehør!$A:$A),"Findes ikke")) -> Pt udsolgt | CA51: =IFERROR(VLOOKUP(BZ51,Lager!$A:$C,3,FALSE),0) -> 0 | CB51: =IF(CD51=0,"Pt udsolgt",IFERROR(_xlfn.XLOOKUP(CC51,Tilbehør!$B:$B,Tilbehør!$A:$A),"Findes ikke")) -> Pt udsolgt | CD51: =IFERROR(VLOOKUP(CC51,Lager!$A:$C,3,FALSE),0) -> 0 | CE51: =IF(CG51=0,"Pt udsolgt",IFERROR(_xlfn.XLOOKUP(CF51,Tilbehør!$B:$B,Tilbehør!$A:$A),"Findes ikke")) -> Pt udsolgt | CG51: =IFERROR(VLOOKUP(CF51,Lager!$A:$C,3,FALSE),0) -> 0
A52: OnePlus Nord 128GB 5G | B52: OnePlusNord128Cover | C52: OnePlusNord128Panserglas | E52: =IF(G52=0,"Pt udsolgt",IFERROR(_xlfn.XLOOKUP(F52,Tilbehør!B:B,Tilbehør!A:A),"Findes ikke")) -> Pt udsolgt | F52: A23189 | G52: =IFERROR(VLOOKUP(F52,Lager!$A:$C,3,FALSE),0) -> 0 | H52: =IF(J52=0,"Pt udsolgt",IFERROR(_xlfn.XLOOKUP(I52,Tilbehør!$B:$B,Tilbehør!$A:$A),"Findes ikke")) -> Pt udsolgt | I52: A23190 | J52: =IFERROR(VLOOKUP(I52,Lager!$A:$C,3,FALSE),0) -> 0 | K52: =IF(M52=0,"Pt udsolgt",IFERROR(_xlfn.XLOOKUP(L52,Tilbehør!$B:$B,Tilbehør!$A:$A),"Findes ikke")) -> Pt udsolgt | L52: A23070 | M52: =IFERROR(VLOOKUP(L52,Lager!$A:$C,3,FALSE),0) -> 0 | N52: =IF(P52=0,"Pt udsolgt",IFERROR(_xlfn.XLOOKUP(O52,Tilbehør!$B:$B,Tilbehør!$A:$A),"Findes ikke")) -> Pt udsolgt | O52: A23073 | P52: =IFERROR(VLOOKUP(O52,Lager!$A:$C,3,FALSE),0) -> 0 | Q52: =IF(S52=0,"Pt udsolgt",IFERROR(_xlfn.XLOOKUP(R52,Tilbehør!$B:$B,Tilbehør!$A:$A),"Findes ikke")) -> Pt udsolgt | R52: A23076 | S52: =IFERROR(VLOOKUP(R52,Lager!$A:$C,3,FALSE),0) -> 0 | AC52: =IF(AE52=0,"Pt udsolgt",IFERROR(_xlfn.XLOOKUP(AD52,Tilbehør!$B:$B,Tilbehør!$A:$A),"Findes ikke")) -> Samsung Clear view Cover S20 | AD52: A23468 | AE52: =IFERROR(VLOOKUP(AD52,Lager!$A:$C,3,FALSE),0) -> 21 | AF52: =IF(AH52=0,"Pt udsolgt",IFERROR(_xlfn.XLOOKUP(AG52,Tilbehør!$B:$B,Tilbehør!$A:$A),"Findes ikke")) -> Samsung Galaxy S20 Ultra Silicone Cover Black | AG52: A23500 | AH52: =IFERROR(VLOOKUP(AG52,Lager!$A:$C,3,FALSE),0) -> 12 | AI52: =IF(AK52=0,"Pt udsolgt",IFERROR(_xlfn.XLOOKUP(AJ52,Tilbehør!$B:$B,Tilbehør!$A:$A),"Findes ikke")) -> Samsung Silicone Cover black S20Plus | AJ52: A23470 | AK52: =IFERROR(VLOOKUP(AJ52,Lager!$A:$C,3,FALSE),0) -> 16 | BA52: =IF(BC52=0,"Pt udsolgt",IFERROR(_xlfn.XLOOKUP(BB52,Tilbehør!$B:$B,Tilbehør!$A:$A),"Findes ikke")) -> Samsung Galaxy Note 20 Plus Silicone Cover Mystic Black | BB52: A24031 | BC52: =IFERROR(VLOOKUP(BB52,Lager!$A:$C,3,FALSE),0) -> 5 | BD52: =IF(BF52=0,"Pt udsolgt",IFERROR(_xlfn.XLOOKUP(BE52,Tilbehør!$B:$B,Tilbehør!$A:$A),"Findes ikke")) -> Samsung Galaxy Note 20 Plus Silicone Cover Mystic Black | BE52: A24031 | BF52: =IFERROR(VLOOKUP(BE52,Lager!$A:$C,3,FALSE),0) -> 5 | BG52: =IF(BI52=0,"Pt udsolgt",IFERROR(_xlfn.XLOOKUP(BH52,Tilbehør!$B:$B,Tilbehør!$A:$A),"Findes ikke")) -> Samsung S20 FE Clear Standing Cover Transparent | BH52: A24095 | BI52: =IFERROR(VLOOKUP(BH52,Lager!$A:$C,3,FALSE),0) -> 39 | BJ52: =IF(BL52=0,"Pt udsolgt",IFERROR(_xlfn.XLOOKUP(BK52,Tilbehør!$B:$B,Tilbehør!$A:$A),"Findes ikke")) -> Samsung S20 FE Clear Standing Cover Transparent | BK52: A24095 | BL52: =IFERROR(VLOOKUP(BK52,Lager!$A:$C,3,FALSE),0) -> 39
A53: OnePlus Nord 256GB 5G | B53: OnePlusNord256Cover | C53: OnePlusNord256Panserglas | N53: =IF(P53=0,"Pt udsolgt",IFERROR(_xlfn.XLOOKUP(O53,Tilbehør!$B:$B,Tilbehør!$A:$A),"Findes ikke")) -> Pt udsolgt | AC53: =IF(AE53=0,"Pt udsolgt",IFERROR(_xlfn.XLOOKUP(AD53,Tilbehør!$B:$B,Tilbehør!$A:$A),"Findes ikke")) -> Samsung Silicone Cover black S20 | AD53: A23473 | AE53: =IFERROR(VLOOKUP(AD53,Lager!$A:$C,3,FALSE),0) -> 16 | AF53: =IF(AH53=0,"Pt udsolgt",IFERROR(_xlfn.XLOOKUP(AG53,Tilbehør!$B:$B,Tilbehør!$A:$A),"Findes ikke")) -> Samsung Galaxy S20 Ultra Clear Cover Transparent | AG53: A23501 | AH53: =IFERROR(VLOOKUP(AG53,Lager!$A:$C,3,FALSE),0) -> 15 | AI53: =IF(AK53=0,"Pt udsolgt",IFERROR(_xlfn.XLOOKUP(AJ53,Tilbehør!$B:$B,Tilbehør!$A:$A),"Findes ikke")) -> ON TPU Samsung S20 Plus | AJ53: A23486 | AK53: =IFERROR(VLOOKUP(AJ53,Lager!$A:$C,3,FALSE),0) -> 41 | BA53: =IF(BC53=0,"Pt udsolgt",IFERROR(_xlfn.XLOOKUP(BB53,Tilbehør!$B:$B,Tilbehør!$A:$A),"Findes ikke")) -> Samsung Galaxy Note 20 Plus Clear Cover Transparent | BB53: A24032 | BC53: =IFERROR(VLOOKUP(BB53,Lager!$A:$C,3,FALSE),0) -> 8 | BD53: =IF(BF53=0,"Pt udsolgt",IFERROR(_xlfn.XLOOKUP(BE53,Tilbehør!$B:$B,Tilbehør!$A:$A),"Findes ikke")) -> Samsung Galaxy Note 20 Plus Clear Cover Transparent | BE53: A24032 | BF53: =IFERROR(VLOOKUP(BE53,Lager!$A:$C,3,FALSE),0) -> 8
AC54: =IF(AE54=0,"Pt udsolgt",IFERROR(_xlfn.XLOOKUP(AD54,Tilbehør!$B:$B,Tilbehør!$A:$A),"Findes ikke")) -> Pt udsolgt | AD54: A23486​ | AE54: =IFERROR(VLOOKUP(AD54,Lager!$A:$C,3,FALSE),0) -> 0 | AF54: =IF(AH54=0,"Pt udsolgt",IFERROR(_xlfn.XLOOKUP(AG54,Tilbehør!$B:$B,Tilbehør!$A:$A),"Findes ikke")) -> Pt udsolgt | AG54: A23504 | AH54: =IFERROR(VLOOKUP(AG54,Lager!$A:$C,3,FALSE),0) -> 0 | AI54: =IF(AK54=0,"Pt udsolgt",IFERROR(_xlfn.XLOOKUP(AJ54,Tilbehør!$B:$B,Tilbehør!$A:$A),"Findes ikke")) -> Pt udsolgt | AJ54: A23487 | AK54: =IFERROR(VLOOKUP(AJ54,Lager!$A:$C,3,FALSE),0) -> 0
A55: Samsung Galaxy Note 10 256 GB | B55: Note10cover | C55: Note10panserglas | AI55: =IF(AK55=0,"Pt udsolgt",IFERROR(_xlfn.XLOOKUP(AJ55,Tilbehør!$B:$B,Tilbehør!$A:$A),"Findes ikke")) -> Pt udsolgt | AJ55: A23487​ | AK55: =IFERROR(VLOOKUP(AJ55,Lager!$A:$C,3,FALSE),0) -> 0
A56: Samsung Galaxy Note 10 Plus 256 GB | B56: Note10pluscover | C56: Note10pluspanserglas | AI56: =IF(AK56=0,"Pt udsolgt",IFERROR(_xlfn.XLOOKUP(AJ56,Tilbehør!$B:$B,Tilbehør!$A:$A),"Findes ikke")) -> Pt udsolgt | AJ56: A23469​ | AK56: =IFERROR(VLOOKUP(AJ56,Lager!$A:$C,3,FALSE),0) -> 0
A57: Samsung Galaxy S10 Lite Black | B57: S10litecover | C57: S10litepanserglas | AI57: =IF(AK57=0,"Pt udsolgt",IFERROR(_xlfn.XLOOKUP(AJ57,Tilbehør!$B:$B,Tilbehør!$A:$A),"Findes ikke")) -> Pt udsolgt | AJ57: A23470​ | AK57: =IFERROR(VLOOKUP(AJ57,Lager!$A:$C,3,FALSE),0) -> 0
A58: Samsung Galaxy S10 128GB | B58: S10cover | C58: S10panserglas
A59: Samsung Galaxy S10 Plus 128GB | B59: S10pluscover | C59: S10pluspanserglas | E59: Note10panserglas | F59: Anummer | G59: Lager | H59: Note10pluspanserglas | I59: Anummer | J59: Lager | K59: S10litepanserglas | L59: Anummer | M59: Lager | N59: S10panserglas | O59: Anummer | P59: Lager | Q59: S10pluspanserglas | R59: Anummer | S59: Lager | T59: Note9panserglas | U59: Anummer | V59: Lager | W59: Xcover4spanserglas | X59: Anummer | Y59: Lager | Z59: A40panserglas | AA59: Anummer | AB59: Lager | AC59: S20panserglas | AD59: Anummer | AE59: Lager | AF59: S20ultrapanserglas | AG59: Anummer | AH59: Lager | AI59: S20pluspanserglas | AJ59: Anummer | AK59: Lager | AL59: Zflippanserglas | AM59: Anummer | AN59: Lager | AO59: GalaxyA71panserglas | AP59: Anummer | AQ59: Lager | AR59: Note10Litepanserglas | AS59: Anummer | AT59: Lager | AU59: GalaxyA21spanserglas | AV59: Anummer | AW59: Lager | AX59: SamsungGalaxyNote20256GB5GPanserglas | AY59: Anummer | AZ59: Lager | BA59: SamsungGalaxyNote20Ultra256GB5GPanserglas | BB59: Anummer | BC59: Lager | BD59: SamsungGalaxyNote20Ultra512GB5GPanserglas | BE59: Anummer | BF59: Lager | BG59: SamsungGalaxyS20FE4G128GBpanserglas | BH59: Anummer | BI59: Lager | BJ59: SamsungGalaxyS20FE5G128GBpanserglas | BK59: Anummer | BL59: Lager | BM59: SamsungGalaxyS215G128GBPanserglas | BN59: Anummer | BO59: Lager | BP59: SamsungGalaxyS215G256GBPanserglas | BQ59: Anummer | BR59: Lager | BS59: SamsungGalaxyS215GUltra128GBPanserglas | BT59: Anummer | BU59: Lager | BV59: SamsungGalaxyS215GUltra256GBPanserglas | BW59: Anummer | BX59: Lager | BY59: SamsungGalaxyS215GUltra512GBPanserglas | BZ59: Anummer | CA59: Lager | CB59: SamsungGalaxyS21Plus5G128GBPanserglas | CC59: Anummer | CD59: Lager | CE59: SamsungGalaxyS21Plus5G256GBPanserglas | CF59: Anummer | CG59: Lager
A60: Samsung Galaxy Note 9 | B60: Note9cover | C60: Note9panserglas | E60: =IF(G60=0,"Pt udsolgt",IFERROR(_xlfn.XLOOKUP(F60,Tilbehør!B:B,Tilbehør!A:A),"Findes ikke")) -> Pt udsolgt | F60: A23184 | G60: =IFERROR(VLOOKUP(F60,Lager!A:C,3,FALSE),0) -> 0 | H60: =IF(J60=0,"Pt udsolgt",IFERROR(_xlfn.XLOOKUP(I60,Tilbehør!$B:$B,Tilbehør!$A:$A),"Findes ikke")) -> INVISIBLESHIELD ULTRA CLEAR SCREEN SAMSUNG GALAXY NOTE 10 PLUS | I60: A23691 | J60: =IFERROR(VLOOKUP(I60,Lager!$A:$C,3,FALSE),0) -> 11 | K60: =IF(M60=0,"Pt udsolgt",IFERROR(_xlfn.XLOOKUP(L60,Tilbehør!$B:$B,Tilbehør!$A:$A),"Findes ikke")) -> Invisibleshield GlassPlus S10E Screen | L60: A23635 | M60: =IFERROR(VLOOKUP(L60,Lager!$A:$C,3,FALSE),0) -> 6 | N60: =IF(P60=0,"Pt udsolgt",IFERROR(_xlfn.XLOOKUP(O60,Tilbehør!$B:$B,Tilbehør!$A:$A),"Findes ikke")) -> Invisibleshield Ultra Clear Samsung S10 Screen | O60: A23627 | P60: =IFERROR(VLOOKUP(O60,Lager!$A:$C,3,FALSE),0) -> 18 | Q60: =IF(S60=0,"Pt udsolgt",IFERROR(_xlfn.XLOOKUP(R60,Tilbehør!$B:$B,Tilbehør!$A:$A),"Findes ikke")) -> Invisibleshield Ultra Clear Samsung S10Plus Screen | R60: A23628 | S60: =IFERROR(VLOOKUP(R60,Lager!$A:$C,3,FALSE),0) -> 6 | T60: =IF(V60=0,"Pt udsolgt",IFERROR(_xlfn.XLOOKUP(U60,Tilbehør!$B:$B,Tilbehør!$A:$A),"Findes ikke")) -> Pt udsolgt | U60: A22890 | V60: =IFERROR(VLOOKUP(U60,Lager!$A:$C,3,FALSE),0) -> 0 | W60: =IF(Y60=0,"Pt udsolgt",IFERROR(_xlfn.XLOOKUP(X60,Tilbehør!$B:$B,Tilbehør!$A:$A),"Findes ikke")) -> Pt udsolgt | Y60: =IFERROR(VLOOKUP(X60,Lager!$A:$C,3,FALSE),0) -> 0 | Z60: =IF(AB60=0,"Pt udsolgt",IFERROR(_xlfn.XLOOKUP(AA60,Tilbehør!$B:$B,Tilbehør!$A:$A),"Findes ikke")) -> Pt udsolgt | AA60: A23158 | AB60: =IFERROR(VLOOKUP(AA60,Lager!$A:$C,3,FALSE),0) -> 0 | AC60: =IF(AE60=0,"Pt udsolgt",IFERROR(_xlfn.XLOOKUP(AD60,Tilbehør!$B:$B,Tilbehør!$A:$A),"Findes ikke")) -> Invisibleshield Ultra ClearPlus Samsung Samsung S20 | AD60: A23629 | AE60: =IFERROR(VLOOKUP(AD60,Lager!$A:$C,3,FALSE),0) -> 30 | AF60: =IF(AH60=0,"Pt udsolgt",IFERROR(_xlfn.XLOOKUP(AG60,Tilbehør!$B:$B,Tilbehør!$A:$A),"Findes ikke")) -> Invisibleshield Ultra ClearPlus Samsung S20 Ultra | AG60: A23631 | AH60: =IFERROR(VLOOKUP(AG60,Lager!$A:$C,3,FALSE),0) -> 16 | AI60: =IF(AK60=0,"Pt udsolgt",IFERROR(_xlfn.XLOOKUP(AJ60,Tilbehør!$B:$B,Tilbehør!$A:$A),"Findes ikke")) -> Invisibleshield Ultra ClearPlus Samsung S20 Plus | AJ60: A23630 | AK60: =IFERROR(VLOOKUP(AJ60,Lager!$A:$C,3,FALSE),0) -> 15 | AL60: =IF(AN60=0,"Pt udsolgt",IFERROR(_xlfn.XLOOKUP(AM60,Tilbehør!$B:$B,Tilbehør!$A:$A),"Findes ikke")) -> Pt udsolgt | AN60: =IFERROR(VLOOKUP(AM60,Lager!$A:$C,3,FALSE),0) -> 0 | AO60: =IF(AQ60=0,"Pt udsolgt",IFERROR(_xlfn.XLOOKUP(AP60,Tilbehør!$B:$B,Tilbehør!$A:$A),"Findes ikke")) -> Pt udsolgt | AP60: A23624 | AQ60: =IFERROR(VLOOKUP(AP60,Lager!$A:$C,3,FALSE),0) -> 0 | AR60: =IF(AT60=0,"Pt udsolgt",IFERROR(_xlfn.XLOOKUP(AS60,Tilbehør!$B:$B,Tilbehør!$A:$A),"Findes ikke")) -> Pt udsolgt | AS60: A23625 | AT60: =IFERROR(VLOOKUP(AS60,Lager!$A:$C,3,FALSE),0) -> 0 | AU60: =IF(AW60=0,"Pt udsolgt",IFERROR(_xlfn.XLOOKUP(AV60,Tilbehør!$B:$B,Tilbehør!$A:$A),"Findes ikke")) -> Pt udsolgt | AV60: A23843 | AW60: =IFERROR(VLOOKUP(AV60,Lager!$A:$C,3,FALSE),0) -> 0 | AX60: =IF(AZ60=0,"Pt udsolgt",IFERROR(_xlfn.XLOOKUP(AY60,Tilbehør!$B:$B,Tilbehør!$A:$A),"Findes ikke")) -> InvisibleShield Ultra Clear Samsung Note 20 | AY60: A24034 | AZ60: =IFERROR(VLOOKUP(AY60,Lager!$A:$C,3,FALSE),0) -> 5 | BA60: =IF(BC60=0,"Pt udsolgt",IFERROR(_xlfn.XLOOKUP(BB60,Tilbehør!$B:$B,Tilbehør!$A:$A),"Findes ikke")) -> InvisibleShield Ultra Clear Samsung Note 20 ultra | BB60: A24035 | BC60: =IFERROR(VLOOKUP(BB60,Lager!$A:$C,3,FALSE),0) -> 6 | BD60: =IF(BF60=0,"Pt udsolgt",IFERROR(_xlfn.XLOOKUP(BE60,Tilbehør!$B:$B,Tilbehør!$A:$A),"Findes ikke")) -> InvisibleShield Ultra Clear Samsung Note 20 ultra | BE60: A24035 | BF60: =IFERROR(VLOOKUP(BE60,Lager!$A:$C,3,FALSE),0) -> 6 | BG60: =IF(BI60=0,"Pt udsolgt",IFERROR(_xlfn.XLOOKUP(BH60,Tilbehør!$B:$B,Tilbehør!$A:$A),"Findes ikke")) -> Invisibleshield GlassElite plus Samsung S20FE | BH60: A24248 | BI60: =IFERROR(VLOOKUP(BH60,Lager!$A:$C,3,FALSE),0) -> 95 | BJ60: =IF(BL60=0,"Pt udsolgt",IFERROR(_xlfn.XLOOKUP(BK60,Tilbehør!$B:$B,Tilbehør!$A:$A),"Findes ikke")) -> Invisibleshield GlassElite plus Samsung S20FE | BK60: A24248 | BL60: =IFERROR(VLOOKUP(BK60,Lager!$A:$C,3,FALSE),0) -> 95 | BM60: =IF(BO60=0,"Pt udsolgt",IFERROR(_xlfn.XLOOKUP(BN60,Tilbehør!$B:$B,Tilbehør!$A:$A),"Findes ikke")) -> Pt udsolgt | BO60: =IFERROR(VLOOKUP(BN60,Lager!$A:$C,3,FALSE),0) -> 0 | BP60: =IF(BR60=0,"Pt udsolgt",IFERROR(_xlfn.XLOOKUP(BQ60,Tilbehør!$B:$B,Tilbehør!$A:$A),"Findes ikke")) -> Pt udsolgt | BR60: =IFERROR(VLOOKUP(BQ60,Lager!$A:$C,3,FALSE),0) -> 0 | BS60: =IF(BU60=0,"Pt udsolgt",IFERROR(_xlfn.XLOOKUP(BT60,Tilbehør!$B:$B,Tilbehør!$A:$A),"Findes ikke")) -> Pt udsolgt | BU60: =IFERROR(VLOOKUP(BT60,Lager!$A:$C,3,FALSE),0) -> 0 | BV60: =IF(BX60=0,"Pt udsolgt",IFERROR(_xlfn.XLOOKUP(BW60,Tilbehør!$B:$B,Tilbehør!$A:$A),"Findes ikke")) -> Pt udsolgt | BX60: =IFERROR(VLOOKUP(BW60,Lager!$A:$C,3,FALSE),0) -> 0 | BY60: =IF(CA60=0,"Pt udsolgt",IFERROR(_xlfn.XLOOKUP(BZ60,Tilbehør!$B:$B,Tilbehør!$A:$A),"Findes ikke")) -> Pt udsolgt | CA60: =IFERROR(VLOOKUP(BZ60,Lager!$A:$C,3,FALSE),0) -> 0 | CB60: =IF(CD60=0,"Pt udsolgt",IFERROR(_xlfn.XLOOKUP(CC60,Tilbehør!$B:$B,Tilbehør!$A:$A),"Findes ikke")) -> Pt udsolgt | CD60: =IFERROR(VLOOKUP(CC60,Lager!$A:$C,3,FALSE),0) -> 0 | CE60: =IF(CG60=0,"Pt udsolgt",IFERROR(_xlfn.XLOOKUP(CF60,Tilbehør!$B:$B,Tilbehør!$A:$A),"Findes ikke")) -> Pt udsolgt | CG60: =IFERROR(VLOOKUP(CF60,Lager!$A:$C,3,FALSE),0) -> 0
A61: Samsung Galaxy Xcover 4s | B61: Xcover4scover | C61: Xcover4spanserglas | K61: =IF(M61=0,"Pt udsolgt",IFERROR(_xlfn.XLOOKUP(L61,Tilbehør!$B:$B,Tilbehør!$A:$A),"Findes ikke")) -> Invisibleshield GlassPlus Visionguard S10E Screen | L61: A23636 | M61: =IFERROR(VLOOKUP(L61,Lager!$A:$C,3,FALSE),0) -> 50 | N61: =IF(P61=0,"Pt udsolgt",IFERROR(_xlfn.XLOOKUP(#REF!,Tilbehør!$B:$B,Tilbehør!$A:$A),"Findes ikke")) -> Pt udsolgt | O61: A23160 | P61: =IFERROR(VLOOKUP(#REF!,Lager!$A:$C,3,FALSE),0) -> 0 | Q61: =IF(S61=0,"Pt udsolgt",IFERROR(_xlfn.XLOOKUP(#REF!,Tilbehør!$B:$B,Tilbehør!$A:$A),"Findes ikke")) -> Pt udsolgt | R61: A23161 | S61: =IFERROR(VLOOKUP(#REF!,Lager!$A:$C,3,FALSE),0) -> 0 | AC61: =IF(AE61=0,"Pt udsolgt",IFERROR(_xlfn.XLOOKUP(AD61,Tilbehør!$B:$B,Tilbehør!$A:$A),"Findes ikke")) -> Invisibleshield Ultra VisionGuard Plus Samsung S20 | AD61: A23632 | AE61: =IFERROR(VLOOKUP(AD61,Lager!$A:$C,3,FALSE),0) -> 5 | AF61: =IF(AH61=0,"Pt udsolgt",IFERROR(_xlfn.XLOOKUP(AG61,Tilbehør!$B:$B,Tilbehør!$A:$A),"Findes ikke")) -> Invisibleshield Ultra VisionGuard Plus Samsung S20 Ultra | AG61: A23634 | AH61: =IFERROR(VLOOKUP(AG61,Lager!$A:$C,3,FALSE),0) -> 6 | AI61: =IF(AK61=0,"Pt udsolgt",IFERROR(_xlfn.XLOOKUP(AJ61,Tilbehør!$B:$B,Tilbehør!$A:$A),"Findes ikke")) -> Invisibleshield Ultra VisionGuard Plus Samsung S20 Plus | AJ61: A23633 | AK61: =IFERROR(VLOOKUP(AJ61,Lager!$A:$C,3,FALSE),0) -> 8 | AX61: =IF(AZ61=0,"Pt udsolgt",IFERROR(_xlfn.XLOOKUP(AY61,Tilbehør!$B:$B,Tilbehør!$A:$A),"Findes ikke")) -> InvisibleShield Ultra VisionGuard Samsung Note 20 | AY61: A24051 | AZ61: =IFERROR(VLOOKUP(AY61,Lager!$A:$C,3,FALSE),0) -> 9 | BA61: =IF(BC61=0,"Pt udsolgt",IFERROR(_xlfn.XLOOKUP(BB61,Tilbehør!$B:$B,Tilbehør!$A:$A),"Findes ikke")) -> InvisibleShield Ultra VisionGuard Samsung Note 20 Ultra | BB61: A24052 | BC61: =IFERROR(VLOOKUP(BB61,Lager!$A:$C,3,FALSE),0) -> 3 | BD61: =IF(BF61=0,"Pt udsolgt",IFERROR(_xlfn.XLOOKUP(BE61,Tilbehør!$B:$B,Tilbehør!$A:$A),"Findes ikke")) -> InvisibleShield Ultra VisionGuard Samsung Note 20 Ultra | BE61: A24052 | BF61: =IFERROR(VLOOKUP(BE61,Lager!$A:$C,3,FALSE),0) -> 3 | BG61: =IF(BI61=0,"Pt udsolgt",IFERROR(_xlfn.XLOOKUP(BH61,Tilbehør!$B:$B,Tilbehør!$A:$A),"Findes ikke")) -> InvisibleShield Ultra Clear Samsung Galaxy S20FE 5G Screen | BH61: A24258 | BI61: =IFERROR(VLOOKUP(BH61,Lager!$A:$C,3,FALSE),0) -> 11 | BJ61: =IF(BL61=0,"Pt udsolgt",IFERROR(_xlfn.XLOOKUP(BK61,Tilbehør!$B:$B,Tilbehør!$A:$A),"Findes ikke")) -> InvisibleShield Ultra Clear Samsung Galaxy S20FE 5G Screen | BK61: A24258 | BL61: =IFERROR(VLOOKUP(BK61,Lager!$A:$C,3,FALSE),0) -> 11
A62: Samsung Galaxy A40 | B62: A40cover | C62: A40panserglas | K62: =IF(M62=0,"Pt udsolgt",IFERROR(_xlfn.XLOOKUP(L62,Tilbehør!$B:$B,Tilbehør!$A:$A),"Findes ikke")) -> Pt udsolgt
A63: Samsung Galaxy A40 enterprise
A64: Samsung Galaxy S20 5G | B64: S20cover | C64: S20panserglas
A65: Samsung Galaxy S20 Ultra 5G | B65: S20ultracover | C65: S20ultrapanserglas
A66: Samsung Galaxy S20+ 128GB 5G | B66: S20pluscover | C66: S20pluspanserglas | E66: Mix2scover | F66: Anummer | G66: Lager | H66: Mi8cover | I66: Anummer | J66: Lager | K66: Redmi7cover | L66: Anummer | M66: Lager
A67: Samsung Galaxy S20+ 512GB 5G | B67: S20pluscover | C67: S20pluspanserglas | E67: =IF(G67=0,"Pt udsolgt",IFERROR(_xlfn.XLOOKUP(F67,Tilbehør!B:B,Tilbehør!A:A),"Findes ikke")) -> Pt udsolgt | G67: =IFERROR(VLOOKUP(F67,Lager!A:C,3,FALSE),0) -> 0 | H67: =IF(J67=0,"Pt udsolgt",IFERROR(VLOOKUP(I67,#REF!,5,FALSE),"Findes ikke")) -> Pt udsolgt | I67: A22903 | J67: =IFERROR(VLOOKUP(I67,Lager!$A:$C,3,FALSE),0) -> 0 | K67: =IF(M67=0,"Pt udsolgt",IFERROR(VLOOKUP(L67,#REF!,5,FALSE),"Findes ikke")) -> Pt udsolgt | M67: =IFERROR(VLOOKUP(L67,Lager!$A:$C,3,FALSE),0) -> 0
A68: Samsung Galaxy A71 128GB | B68: GalaxyA71cover | C68: GalaxyA71panserglas
A69: Samsung Galaxy Note 10 Lite 128GB | B69: Note10LiteCover | C69: Note10Litepanserglas | E69: Mix2spanserglas | F69: Anummer | G69: Lager | H69: Mi8panserglas | I69: Anummer | J69: Lager | K69: Redmi7panserglas | L69: Anummer | M69: Lager
A70: Samsung Galaxy Note 20 256GB 5G | B70: SamsungGalaxyNote20256GB5GCover | C70: SamsungGalaxyNote20256GB5GPanserglas | E70: =IF(G70=0,"Pt udsolgt",IFERROR(_xlfn.XLOOKUP(F70,Tilbehør!B:B,Tilbehør!A:A),"Findes ikke")) -> Pt udsolgt | G70: =IFERROR(VLOOKUP(F70,Lager!A:C,3,FALSE),0) -> 0 | H70: =IF(J70=0,"Pt udsolgt",IFERROR(VLOOKUP(I70,#REF!,5,FALSE),"Findes ikke")) -> Pt udsolgt | I70: A22905 | J70: =IFERROR(VLOOKUP(I70,Lager!$A:$C,3,FALSE),0) -> 0 | K70: =IF(M70=0,"Pt udsolgt",IFERROR(VLOOKUP(L70,#REF!,5,FALSE),"Findes ikke")) -> Pt udsolgt | M70: =IFERROR(VLOOKUP(L70,Lager!$A:$C,3,FALSE),0) -> 0
A71: Samsung Galaxy Note 20 Ultra 256GB 5G | B71: SamsungGalaxyNote20Ultra256GB5GCover | C71: SamsungGalaxyNote20Ultra256GB5GPanserglas
A72: Samsung Galaxy Note 20 Ultra 512GB 5G | B72: SamsungGalaxyNote20Ultra512GB5GCover | C72: SamsungGalaxyNote20Ultra512GB5GPanserglas | E72: Nokia3310cover | F72: Anummer | G72: Lager
A73: Samsung Galaxy Z Flip 5G | B73: Zflipcover | C73: Zflippanserglas | E73: =IF(G73=0,"Pt udsolgt",IFERROR(_xlfn.XLOOKUP(F73,Tilbehør!B:B,Tilbehør!A:A),"Findes ikke")) -> Pt udsolgt | G73: =IFERROR(VLOOKUP(F73,Lager!A:C,3,FALSE),0) -> 0
A74: Samsung Galaxy A21s 64GB Black | B74: GalaxyA21scover | C74: GalaxyA21spanserglas
A75: Samsung Galaxy S20FE 4G 128GB | B75: =SUBSTITUTE(A75," ","")&"Cover" -> SamsungGalaxyS20FE4G128GBCover | C75: SamsungGalaxyS20FE4G128GBpanserglas | E75: Nokia3310panserglas | F75: Anummer | G75: Lager
A76: Samsung Galaxy S20FE 5G 128GB | B76: =SUBSTITUTE(A76," ","")&"Cover" -> SamsungGalaxyS20FE5G128GBCover | C76: SamsungGalaxyS20FE5G128GBpanserglas | E76: =IF(G76=0,"Pt udsolgt",IFERROR(_xlfn.XLOOKUP(F76,Tilbehør!B:B,Tilbehør!A:A),"Findes ikke")) -> Pt udsolgt | G76: =IFERROR(VLOOKUP(F76,Lager!A:C,3,FALSE),0) -> 0
A77: Samsung Galaxy S21 5G 128GB | B77: SamsungGalaxyS215G128GBCover | C77: SamsungGalaxyS215G128GBPanserglas
A78: Samsung Galaxy S21 5G 256GB | B78: SamsungGalaxyS215G256GBCover | C78: SamsungGalaxyS215G256GBPanserglas | E78: iPadPro1294thgen128GBCover | F78: Anummer | G78: Lager | H78: iPadPro1294thgen256GBCover | I78: Anummer | J78: Lager
A79: Samsung Galaxy S21 5G Ultra 128GB | B79: SamsungGalaxyS215GUltra128GBCover | C79: SamsungGalaxyS215GUltra128GBPanserglas | E79: =IF(G79=0,"Pt udsolgt",IFERROR(_xlfn.XLOOKUP(F79,Tilbehør!B:B,Tilbehør!A:A),"Findes ikke")) -> Pt udsolgt | G79: =IFERROR(VLOOKUP(F79,Lager!$A:$C,3,FALSE),0) -> 0 | H79: =IF(J79=0,"Pt udsolgt",IFERROR(_xlfn.XLOOKUP(I79,Tilbehør!E:E,Tilbehør!D:D),"Findes ikke")) -> Pt udsolgt | J79: =IFERROR(VLOOKUP(I79,Lager!$A:$C,3,FALSE),0) -> 0
A80: Samsung Galaxy S21 5G Ultra 256GB | B80: SamsungGalaxyS215GUltra256GBCover | C80: SamsungGalaxyS215GUltra256GBPanserglas
A81: Samsung Galaxy S21 5G Ultra 512GB | B81: SamsungGalaxyS215GUltra512GBCover | C81: SamsungGalaxyS215GUltra512GBPanserglas | E81: iPadPro1294thgen128GBPanserglas | F81: Anummer | G81: Lager | H81: iPadPro1294thgen256GBPanserglas | I81: Anummer | J81: Lager | K81: iPadPro11.0panserglas | L81: Anummer | M81: Lager
A82: Samsung Galaxy S21+ 5G 128GB | B82: SamsungGalaxyS21Plus5G128GBCover | C82: SamsungGalaxyS21Plus5G128GBPanserglas | E82: =IF(G82=0,"Pt udsolgt",IFERROR(_xlfn.XLOOKUP(F82,Tilbehør!B:B,Tilbehør!A:A),"Findes ikke")) -> Apple Smart Folio for iPad Air 4th generation Black | F82: A24221 | G82: =IFERROR(VLOOKUP(F82,Lager!$A:$C,3,FALSE),0) -> 16 | H82: =IF(J82=0,"Pt udsolgt",IFERROR(_xlfn.XLOOKUP(I82,Tilbehør!$B:$B,Tilbehør!$A:$A),"Findes ikke")) -> Apple Smart Folio for iPad Air 4th generation Black | I82: A24221 | J82: =IFERROR(VLOOKUP(I82,Lager!$A:$C,3,FALSE),0) -> 16 | K82: =IF(M82=0,"Pt udsolgt",IFERROR(_xlfn.XLOOKUP(R82,Tilbehør!H:H,Tilbehør!G:G),"Findes ikke")) -> Pt udsolgt | L82: A23052 | M82: =IFERROR(VLOOKUP(#REF!,Lager!$A:$C,3,FALSE),0) -> 0
A83: Samsung Galaxy S21+ 5G 256GB | B83: SamsungGalaxyS21Plus5G256GBCover | C83: SamsungGalaxyS21Plus5G256GBPanserglas | E83: =IF(G83=0,"Pt udsolgt",IFERROR(_xlfn.XLOOKUP(F83,Tilbehør!B:B,Tilbehør!A:A),"Findes ikke")) -> Apple Smart Folio for iPad Air 4th generation Cyprus Green | F83: A24222 | G83: =IFERROR(VLOOKUP(F83,Lager!$A:$C,3,FALSE),0) -> 30 | H83: =IF(J83=0,"Pt udsolgt",IFERROR(_xlfn.XLOOKUP(I83,Tilbehør!$B:$B,Tilbehør!$A:$A),"Findes ikke")) -> Apple Smart Folio for iPad Air 4th generation Cyprus Green | I83: A24222 | J83: =IFERROR(VLOOKUP(I83,Lager!$A:$C,3,FALSE),0) -> 30
E84: =IF(G84=0,"Pt udsolgt",IFERROR(_xlfn.XLOOKUP(F84,Tilbehør!B:B,Tilbehør!A:A),"Findes ikke")) -> Apple Smart Folio for iPad Air 4th generation Deep Navy | F84: A24223 | G84: =IFERROR(VLOOKUP(F84,Lager!$A:$C,3,FALSE),0) -> 20 | H84: =IF(J84=0,"Pt udsolgt",IFERROR(_xlfn.XLOOKUP(I84,Tilbehør!$B:$B,Tilbehør!$A:$A),"Findes ikke")) -> Apple Smart Folio for iPad Air 4th generation Deep Navy | I84: A24223 | J84: =IFERROR(VLOOKUP(I84,Lager!$A:$C,3,FALSE),0) -> 20
A85: Xiaomi Mix 2S 64GB | B85: Mix2scover | C85: Mix2spanserglas
A86: Xiaomi Mix 2S 128GB | B86: Mix2scover | C86: Mix2spanserglas
A87: Xiaomi Mi 8 64GB | B87: Mi8cover | C87: Mi8panserglas | E87: SamsungGalaxyTabS7LTECover | F87: Anummer | G87: Lager
A88: Xiaomi Mi 8 128GB | B88: Mi8cover | C88: Mi8panserglas | E88: =IF(G88=0,"Pt udsolgt",IFERROR(_xlfn.XLOOKUP(F88,Tilbehør!B:B,Tilbehør!A:A),"Findes ikke")) -> Pt udsolgt | G88: =IFERROR(VLOOKUP(F88,Lager!A:C,3,FALSE),0) -> 0
A89: Xiaomi Redmi 7 32GB | B89: Redmi7cover | C89: Redmi7panserglas
E90: SamsungGalaxyTabS7LTEpanserglas | F90: Anummer | G90: Lager
A91: Nokia 3310 3G DS | B91: Nokia3310cover | C91: Nokia3310panserglas | E91: =IF(G91=0,"Pt udsolgt",IFERROR(_xlfn.XLOOKUP(F91,Tilbehør!B:B,Tilbehør!A:A),"Findes ikke")) -> Pt udsolgt | G91: =IFERROR(VLOOKUP(F91,Lager!A:C,3,FALSE),0) -> 0
A94: Router
A95: Huawei B525
A96: Huawei E3372
A97: Huawei B315
A98: Huawei E5577
A100: Tablet
A101: Apple iPad 7th generation 32GB | B101: iPad7thgenerationcover | C101: iPad7thgenerationpanserglas
A102: Apple iPad 7th generation 128GB | B102: iPad7thgenerationcover | C102: iPad7thgenerationpanserglas
A103: Apple iPad Air 10.5 64GB | B103: iPadAir10.5cover | C103: iPadAir10.5panserglas
A104: Apple iPad Air 10.5 256GB | B104: iPadAir10.5cover | C104: iPadAir10.5panserglas
A105: Apple iPad Mini 5th gen 64GB | B105: iPadMini5thgencover | C105: iPadMini5thgenpanserglas
A106: Apple iPad Mini 5th gen 256GB | B106: iPadMini5thgencover | C106: iPadMini5thgenpanserglas
A107: Apple iPad Pro 11.0 64GB | B107: iPadPro11.0cover | C107: iPadPro11.0panserglas
A108: Apple iPad Pro 11.0 256GB | B108: iPadPro11.0cover | C108: iPadPro11.0panserglas
A109: Apple iPad Pro 12.9 3rd gen 64GB | B109: iPadPro12.93rdgencover | C109: iPadPro12.93rdgenpanserglas
A110: Apple iPad Pro 12.9 3rd gen 256GB | B110: iPadPro12.93rdgencover | C110: iPadPro12.93rdgenpanserglas
A111: Apple iPad 6th gen 32GB | B111: iPad6thgencover | C111: iPad6thgenpanserglas
A112: Apple iPad 6th gen 128GB | B112: iPad6thgencover | C112: iPad6thgenpanserglas
A113: Samsung Galaxy Tab S7 LTE | B113: SamsungGalaxyTabS7LTECover | C113: SamsungGalaxyTabS7LTEpanserglas
A114: Samsung Galaxy Tab S4 | B114: TabS4cover | C114: TabS4panserglas
A115: Galaxy Tab Active 2 4G | B115: TabActive24Gcover | C115: TabActive24Gpanserglas
A116: iPad Pro 12.9 4th gen 128GB | B116: iPadPro1294thgen128GBCover | C116: iPadPro1294thgen128GBPanserglas
A117: iPad Pro 12.9 4th gen 256GB | B117: iPadPro1294thgen256GBCover | C117: iPadPro1294thgen256GBPanserglas

Sheet Tilbehør (hidden)
A1: BESKRIVELSE | B1: SKU | C1: Business priser
A2: A Good Company iPhone 11 Charcoal Black Mobile Case | B2: A24180 | C2: 168
A3: A Good Company iPhone 11 Grass Green Mobile Case | B3: A24181 | C3: 168
A4: A Good Company iPhone 11 Green Paint Mobile Case | B4: A24182 | C4: 200
A5: A Good Company iPhone 11 Leopard Mobile Case | B5: A24183 | C5: 200
A6: A Good Company iPhone 11 Palm Leaves Mobile Case | B6: A24184 | C6: 200
A7: A Good Company iPhone 11 Pro Grass Green | B7: A24176 | C7: 168
A8: A Good Company iPhone 11 Pro Green Paint | B8: A24177 | C8: 200
A9: A Good Company iPhone 11 Pro Leopard | B9: A24178 | C9: 200
A10: A Good Company iPhone 11 Pro Palm Leafs | B10: A24179 | C10: 200
A11: A Good Company iPhone 11 Vanilla White Mobile Case | B11: A24185 | C11: 168
A12: A Good Company iPhone 12 Mini Charcoal Black | B12: A24186 | C12: 168
A13: A Good Company iPhone 12 Mini Grass Green | B13: A24188 | C13: 168
A14: A Good Company iPhone 12 Mini Green Paint | B14: A24189 | C14: 200
A15: A Good Company iPhone 12 Mini Leopard | B15: A24190 | C15: 200
A16: A Good Company iPhone 12 Mini Palm Leafs | B16: A24191 | C16: 200
A17: A Good Company iPhone 12 Mini Vanilla White | B17: A24187 | C17: 168
A18: A Good Company iPhone 12 og 12 Pro Charcoal Black | B18: A24192 | C18: 168
A19: A Good Company iPhone 12 og 12 Pro Grass Green | B19: A24193 | C19: 168
A20: A Good Company iPhone 12 og 12 Pro Green Paint | B20: A24194 | C20: 200
A21: A Good Company iPhone 12 og 12 Pro Leopard | B21: A24195 | C21: 200
A22: A Good Company iPhone 12 og 12 Pro Palm Leafs | B22: A24196 | C22: 200
A23: A Good Company iPhone 12 og 12 Pro Vanilla White | B23: A24197 | C23: 168
A24: A Good Company iPhone 12 Pro Max Charcoal Black | B24: A24198 | C24: 168
A25: A Good Company iPhone 12 Pro Max Grass Green | B25: A24199 | C25: 168
A26: A Good Company iPhone 12 Pro Max Green Paint | B26: A24200 | C26: 200
A27: A Good Company iPhone 12 Pro Max Leopard | B27: A24201 | C27: 200
A28: A Good Company iPhone 12 Pro Max Palm Leafs | B28: A24202 | C28: 200
A29: A Good Company iPhone 12 Pro Max Vanilla White | B29: A24203 | C29: 168
A30: A Good Company iPhone 8 og SE Charcoal Black Mobile Case | B30: A24206 | C30: 168
A31: A Good Company iPhone 8 og SE Grass Green Mobile Case | B31: A24207 | C31: 168
A32: A Good Company iPhone 8 og SE Green Paint Mobile Case | B32: A24208 | C32: 200
A33: A Good Company iPhone 8 og SE Leopard Mobile Case | B33: A24209 | C33: 200
A34: A Good Company iPhone 8 og SE Palm Leafs Mobile Case | B34: A24210 | C34: 200
A35: A Good Company iPhone 8 og SE Vanilla White Mobile Case | B35: A24211 | C35: 168
A36: A Good Company iPhone X XS Charcoal Black Mobile Case | B36: A24212 | C36: 168
A37: A Good Company iPhone X XS Grass Green Mobile Case | B37: A24213 | C37: 168
A38: A Good Company iPhone X XS Green Paint Mobile Case | B38: A24214 | C38: 200
A39: A Good Company iPhone X XS Leopard Mobile Case | B39: A24215 | C39: 200
A40: A Good Company iPhone X XS Palm Leafs Mobile Case | B40: A24216 | C40: 200
A41: A Good Company iPhone X XS Vanilla White Mobile Case | B41: A24217 | C41: 168
A42: Apple 12W USB Power Adapter | B42: A21608 | C42: 144
A43: Apple 20W USB C Power Adapter | B43: A24287 | C43: 144
A44: Apple 5W USB Power Adapter | B44: A24220 | C44: 120
A45: Apple AirPods Pro with wireless case | B45: A23444 | C45: 1752
A46: Apple AirPods with Charging Case | B46: A23335 | C46: 1104
A47: Apple AirPods with Wireless Charging Case | B47: A23333 | C47: 1416
A48: Apple EarPods with Lightning Connector | B48: A22057 | C48: 240
A49: Apple EARPODS WITH REMOTE AND MIC | B49: A22512 | C49: 240
A50: Apple iPhone 11 Clear Case | B50: A23250 | C50: 288
A51: Apple iPhone 11 Pro Clear Case | B51: A23253 | C51: 288
A52: Apple iPhone 11 Pro Leather Case Black | B52: A23252 | C52: 336
A53: Apple iPhone 11 Pro Silicone Case Black | B53: A23256 | C53: 288
A54: Apple iPhone 11 Silicone Case Black | B54: A23251 | C54: 288
A55: Apple iPhone 12 mini Clear MagSafe | B55: A24288 | C55: 336
A56: Apple iPhone 12 mini Leather MagSafe Baltic Blue | B56: A24265 | C56: 408
A57: Apple iPhone 12 mini Leather MagSafe Black | B57: A24267 | C57: 408
A58: Apple iPhone 12 mini Silicone MagSafe Black | B58: A24277 | C58: 336
A59: Apple iPhone 12 mini Silicone MagSafe Cypress Green | B59: A24275 | C59: 336
A60: Apple iPhone 12 mini Silicone MagSafe Deep Navy | B60: A24276 | C60: 336
A61: Apple iPhone 12 og 12 Pro Clear MagSafe | B61: A24285 | C61: 336
A62: Apple iPhone 12 og 12 Pro Leather MagSafe Baltic Blue | B62: A24268 | C62: 408
A63: Apple iPhone 12 og 12 Pro Leather MagSafe Black | B63: A24270 | C63: 408
A64: Apple iPhone 12 og 12 Pro Silicone MagSafe Black | B64: A24281 | C64: 336
A65: Apple iPhone 12 og 12 Pro Silicone MagSafe Cypress Green | B65: A24279 | C65: 336
A66: Apple iPhone 12 og 12 Pro Silicone MagSafe Deep Navy | B66: A24280 | C66: 336
A67: Apple iPhone 12 Pro Max Clear MagSafe | B67: A24286 | C67: 336
A68: Apple iPhone 12 Pro Max Leather Case with MagSafe Black | B68: A24291 | C68: 408
A69: Apple iPhone 12 Pro Max Leather MagSafe Baltic Blue | B69: A24271 | C69: 408
A70: Apple iPhone 12 Pro Max Leather MagSafe Black | B70: A24273 | C70: 408
A71: Apple iPhone 12 Pro Max Silicone MagSafe Cypress Green | B71: A24283 | C71: 336
A72: Apple iPhone 12 Pro Max Silicone MagSafe Deep Navy | B72: A24284 | C72: 336
A73: Apple iPhone SE Leather Black | B73: A23749 | C73: 312
A74: Apple iPhone SE Silicone Case Black | B74: A23747 | C74: 264
A75: Apple Lightning to Headphone Jack Adapter | B75: A22056 | C75: 96
A76: Apple Lightning to USB Cable 05 m | B76: A23466 | C76: 144
A77: Apple Lightning to USB Cable 1m | B77: A24293 | C77: 144
A78: Apple Lightning to USB Cable 2 m | B78: A23464 | C78: 200
A79: Apple Lightning to USB Cable 2 m | B79: A24292 | C79: 192
A80: Apple MagSafe Charger | B80: A24289 | C80: 288
A81: Apple TV 4K 32GB MQD22KK | B81: A23561 | C81: 1200
A82: Apple Watch Magnetic Charging Cable 1 m | B82: A23247 | C82: 216
A83: Apple Wireless Charging Case for AirPods | B83: A23332 | C83: 552
A84: Belkin 10 000 MAH POWER BANK | B84: A23865 | C84: 240
A85: Belkin 10W Wireless Car Vent Mount Charger | B85: A23872 | C85: 280
A86: Belkin 10W Wireless Charging Pad with PS | B86: A23860 | C86: 240
A87: Belkin 10W Wireless Charging Stand with | B87: A23861 | C87: 240
A88: Belkin 18W USB C Home Charger EU Plug | B88: A23864 | C88: 200
A89: Belkin 2x 10W Dual Wireless Charging Pad | B89: A23862 | C89: 360
A90: Belkin 3 in 1 Wireless Pad Stand Apple Watch | B90: A23871 | C90: 720
A91: Belkin BOOST CHARGE Lightning to USB A 1M white | B91: A23868 | C91: 96
A92: Belkin BOOST CHARGE Lightning to USB A 3M white | B92: A23869 | C92: 176
A93: Belkin BOOST CHARGE Lightning to USB C 1M white | B93: A23870 | C93: 168
A94: Belkin Boost Charge USB A To USB C 3M Black | B94: A23858 | C94: 240
A95: Belkin BOOST CHARGE USB A to USB C Cable 1M Black | B95: A23866 | C95: 96
A96: Belkin BOOST CHARGE USB C to USB C Cab 1M black | B96: A23867 | C96: 168
A97: Belkin Single USB A Wall Charger 18W QC | B97: A23863 | C97: 120
A98: BELKIN SOUNDFORM TRUE WIRELESS BLACK | B98: A24250 | C98: 320
A99: BELKIN SOUNDFORM TRUE WIRELESS WHITE | B99: A24251 | C99: 320
A100: Belkin Wireless Car Charging Vent Mount 10W | B100: A24146 | C100: 312
A101: Beoplay Beolit 20 Black Anthracite | B101: A24260 | C101: 3008
A102: Beoplay E8 3rd black Truly Wireless Earphones | B102: A23489 | C102: 2208
A103: Beoplay H4 2 Gen Black | B103: A23520 | C103: 1848
A104: Beoplay H4 2 Gen Limestone | B104: A23521 | C104: 1848
A105: Beoplay H9 3G Matte Black | B105: A23177 | C105: 3232
A106: BeoPlay M3 Black Bluetooth Airplay Chromecast | B106: A22587 | C106: 1920
A107: Beosound A1 2nd Gen Black | B107: A23840 | C107: 1608
A108: Beosound A1 2nd Gen Grey Mist | B108: A23839 | C108: 1608
A109: CELLY WALLET UNIVERSAL OP TIL 5 8 | B109: A24092 | C109: 192
A110: CELLY WALLET UNIVERSAL OP TIL 6 5 | B110: A24093 | C110: 192
A111: DBRAMANTE 1928 LYNGE iPhone 11 BLACK | B111: A23207 | C111: 360
A112: DBRAMANTE 1928 LYNGE iPhone 11 Pro BLACK | B112: A23205 | C112: 360
A113: Dbramante 1928 Lynge iPhone Xr Black | B113: A22941 | C113: 312
A114: Dbramante Barcelona iPhone 12 Mini Night Black | B114: A23963 | C114: 168
A115: Dbramante Barcelona iPhone 12 Mini Sahara Sand | B115: A23964 | C115: 168
A116: Dbramante Barcelona iPhone 12 og 12 pro Night Black | B116: A23965 | C116: 168
A117: Dbramante Barcelona iPhone 12 og 12 pro Sahara Sand | B117: A23966 | C117: 168
A118: Dbramante Barcelona iPhone 12 Pro Max Night Black | B118: A23967 | C118: 168
A119: Dbramante Barcelona iPhone SE 8 7 Night Black | B119: A23961 | C119: 168
A120: Dbramante Barcelona iPhone SE 8 7Sahara Sand | B120: A23962 | C120: 168
A121: Dbramante Grenen iPhone 12 Mini Black | B121: A23955 | C121: 168
A122: Dbramante Grenen iPhone 12 Mini Dark Olive Green | B122: A23956 | C122: 168
A123: Dbramante Grenen iPhone 12 og 12 pro Black | B123: A23957 | C123: 168
A124: Dbramante Grenen iPhone 12 og 12 pro Dark Olive Green | B124: A23958 | C124: 168
A125: Dbramante Grenen iPhone 12 Pro Max Black | B125: A23959 | C125: 168
A126: Dbramante Grenen iPhone 12 Pro Max Dark Olive Green | B126: A23960 | C126: 168
A127: Dbramante Grenen iPhone SE 8 7 Black | B127: A23953 | C127: 168
A128: Dbramante Grenen iPhone SE 8 7 Dark Olive Green | B128: A23954 | C128: 168
A129: Dbramante Lynge iPhone 12 Mini Black | B129: A23947 | C129: 360
A130: Dbramante Lynge iPhone 12 Mini Tan | B130: A23948 | C130: 360
A131: Dbramante Lynge iPhone 12 og 12 pro Black | B131: A23949 | C131: 360
A132: Dbramante Lynge iPhone 12 og 12 pro Tan | B132: A23950 | C132: 360
A133: Dbramante Lynge iPhone 12 Pro Max Black | B133: A23951 | C133: 360
A134: Dbramante Lynge iPhone 12 Pro Max Tan | B134: A23952 | C134: 360
A135: dbramante1928 Lynge iPhone 11 Tan | B135: A23439 | C135: 360
A136: dbramante1928 Lynge iPhone 11 Pro Tan | B136: A23440 | C136: 360
A137: dbramante1928 Lynge iPhone 8 7 6 TAN | B137: A23438 | C137: 360
A138: dbramante1928 Lynge iPhone 8 7 6 Series Black New | B138: A23452 | C138: 336
A139: Defunc TRUE GAMING Wireless BT Earbuds Black | B139: A23853 | C139: 600
A140: Defunc TRUE GO Slim Wireless Hybrid Earbud Black | B140: A23850 | C140: 312
A141: Defunc TRUE GO Slim Wireless Hybrid Earbud White | B141: A23851 | C141: 312
A142: eSTUFF AirPods Pro Silicone Case Black | B142: A24070 | C142: 72
A143: eSTUFF AirPods Pro Silicone Case Olive | B143: A24073 | C143: 72
A144: eSTUFF AirPods Pro Silicone Case Sand Pink | B144: A24072 | C144: 72
A145: eSTUFF AirPods Pro Silicone Case White | B145: A24071 | C145: 72
A146: eSTUFF AirPods Silicone Case Black | B146: A24066 | C146: 72
A147: eSTUFF AirPods Silicone Case Olive | B147: A24069 | C147: 72
A148: eSTUFF AirPods Silicone Case Sand Pink | B148: A24068 | C148: 72
A149: eSTUFF AirPods Silicone Case White | B149: A24067 | C149: 72
A150: eSTUFF Apple Silicone Watch Band Black 38 40 mm | B150: A24074 | C150: 120
A151: eSTUFF Apple Silicone Watch Band Black 42 44 mm | B151: A24078 | C151: 120
A152: eSTUFF Apple Silicone Watch Band Olive 38 40 mm | B152: A24077 | C152: 120
A153: eSTUFF Apple Silicone Watch Band Olive 42 44 mm | B153: A24081 | C153: 120
A154: eSTUFF Apple Silicone Watch Band Sand Pink 38 40 mm | B154: A24076 | C154: 120
A155: eSTUFF Apple Silicone Watch Band Sand Pink 42 44 mm | B155: A24080 | C155: 120
A156: eSTUFF Apple Silicone Watch Band White 42 44 mm | B156: A24079 | C156: 120
A157: eSTUFF Apple Silicone Watch Band White 38 40 mm | B157: A24075 | C157: 120
A158: eStuff Home Charger EU PD 18W | B158: A24290 | C158: 144
A159: Galaxy Buds Live Black | B159: A23968 | C159: 1128
A160: Google Chromecast 3 | B160: A24700 | C160: 288
A161: GORUNNER CONNECT | B161: A23756 | C161: 3200
A162: HI3G Bundle Pack iPhone 12 12 pro | B162: A24056 | C162: 456
A163: HI3G Bundle Pack iPhone 12 Max | B163: A24055 | C163: 456
A164: HI3G Bundle Pack iPhone 12 Mini | B164: A24054 | C164: 456
A165: HOLDIT AIRPODS BLUSH PINK | B165: A23900 | C165: 144
A166: HOLDIT AIRPODS LAVENDER | B166: A23914 | C166: 144
A167: HOLDIT AIRPODS MINT | B167: A23901 | C167: 144
A168: HOLDIT AIRPODS MOSS GREEN | B168: A23911 | C168: 144
A169: HOLDIT AIRPODS TAUPE | B169: A23898 | C169: 144
A170: HOLDIT AIRPODS YELLOW | B170: A23899 | C170: 144
A171: HOLDIT AIRPODS PRO BLACK | B171: A23903 | C171: 144
A172: HOLDIT AIRPODS PRO BLUSH PINK | B172: A23905 | C172: 144
A173: HOLDIT AIRPODS PRO MINT | B173: A23906 | C173: 144
A174: HOLDIT AIRPODS PRO TAUPE | B174: A23904 | C174: 144
A175: HOLDIT AIRPODS PRO MOSS GREEN | B175: A23915 | C175: 144
A176: HOLDIT IPHONE 11 BLUSH PINK | B176: A23895 | C176: 144
A177: HOLDIT IPHONE 11 LAVENDER | B177: A23912 | C177: 144
A178: HOLDIT IPHONE 11 MINT | B178: A23902 | C178: 144
A179: HOLDIT IPHONE 11 MOSS GREEN | B179: A23909 | C179: 144
A180: HOLDIT IPHONE 11 PRO BLUSH PINK | B180: A23892 | C180: 144
A181: HOLDIT IPHONE 11 PRO LAVENDER | B181: A23913 | C181: 144
A182: HOLDIT IPHONE 11 PRO MINT | B182: A23891 | C182: 144
A183: HOLDIT IPHONE 11 PRO MOSS GREEN | B183: A23910 | C183: 144
A184: HOLDIT IPHONE 11 PRO TAUPE | B184: A23894 | C184: 144
A185: HOLDIT IPHONE 11 PRO YELLOW | B185: A23893 | C185: 144
A186: HOLDIT IPHONE 11 TAUPE | B186: A23896 | C186: 144
A187: HOLDIT IPHONE 11 YELLOW | B187: A23897 | C187: 144
A188: HOLDIT IPHONE 7 8 SE BLUSH PINK | B188: A23881 | C188: 144
A189: HOLDIT IPHONE 7 8 SE LAVENDER | B189: A23887 | C189: 144
A190: HOLDIT IPHONE 7 8 SE MINT | B190: A23889 | C190: 144
A191: HOLDIT IPHONE 7 8 SE MOSS GREEN | B191: A23907 | C191: 144
A192: HOLDIT IPHONE 7 8 SE TAUPE | B192: A23883 | C192: 144
A193: HOLDIT IPHONE 7 8 SE YELLOW | B193: A23885 | C193: 144
A194: HOLDIT IPHONE X XS BLUSH PINK | B194: A23882 | C194: 144
A195: HOLDIT IPHONE X XS LAVENDER | B195: A23888 | C195: 144
A196: HOLDIT IPHONE X XS MINT | B196: A23890 | C196: 144
A197: HOLDIT IPHONE X XS MOSS GREEN | B197: A23908 | C197: 144
A198: HOLDIT IPHONE X XS TAUPE | B198: A23884 | C198: 144
A199: HOLDIT IPHONE X XS YELLOW | B199: A23886 | C199: 144
A200: HOLDIT IPHONE iPhone 12 12 pro Blush Pink | B200: A24017 | C200: 144
... 1070 more rows

Sheet Lager (hidden)
A1: A-nummer | B1: Beskrivelse | C1: Lager
A2: A21432 | B2: Simkort adapter 4i1 med pind | C2: 2679
A3: A21466 | B3: BeoPlay A2 Green | C3: 1
A4: A21480 | B4: BeoPlay Cable One Button | C4: 65
A5: A21514 | B5: BeoPlay Form 2i Black | C5: 15
A6: A21517 | B6: BeoPlay H5 Wireless Earphones Black | C6: 2
A7: A21518 | B7: BeoPlay H5 Wireless Earphones Dusty Rose | C7: 1
A8: A21545 | B8: Apple Pencil 1st Generation | C8: 13
A9: A21550 | B9: Jabra UC Voice 550 MS Duo | C9: 1
A10: A21551 | B10: BeoPlay A2 Natural | C10: 2
A11: A21602 | B11: Beoplay A1 Naturel | C11: 1
A12: A21608 | B12: Apple 12W USB Power Adapter
A13: A21954 | B13: Clint FREYA TrueWireless Charcoal grey | C13: 1
A14: A22037 | B14: Samsung Gear VR SM R323NBKANEE Black | C14: 22
A15: A22040 | B15: Beoplay A1 Sort | C15: 2
A16: A22056 | B16: Apple Lightning to Headphone Jack Adapter | C16: 41
A17: A22057 | B17: Apple EarPods with Lightning Connector | C17: 122
A18: A22058 | B18: Apple Lightning to SD Card Camera Reader | C18: 262
A19: A22214 | B19: Samsung microSDXC hukommelseskort 256GB | C19: 30
A20: A22225 | B20: Samsung microSDXC hukommelseskort 64GB | C20: 17
A21: A22234 | B21: Beoplay H4 Charcoal Grey
A22: A22248 | B22: OnePlus USB C Cable 1m | C22: 54
A23: A22249 | B23: OnePlus Power Adapter | C23: 30
A24: A22250 | B24: OnePlus Car Charger | C24: 344
A25: A22331 | B25: Beoplay P2 Sand Stone Bluetooth | C25: 2
A26: A22336 | B26: Samsung Wired headset Black | C26: 2
A27: A22337 | B27: Samsung Wired headset Green | C27: 7
A28: A22338 | B28: Samsung Wired headset Light Blue | C28: 19
A29: A22339 | B29: Samsung Wired headset White | C29: 10
A30: A22340 | B30: Samsung Wired headset Pink | C30: 4
A31: A22342 | B31: Samsung Galaxy Gear 360 2017 White | C31: 18
A32: A22343 | B32: Samsung Gear VR SM R324 and Controller Black | C32: 18
A33: A22398 | B33: PanzerGlass PREMIUM iPhone 6s 7 8 White | C33: 1
A34: A22420 | B34: Apple Smart Keyboard for 10inch iPad Pro Danish | C34: 56
A35: A22421 | B35: Apple Smart Cover for 10inch iPad Pro White | C35: 81
A36: A22423 | B36: Apple Leather Smart Cover for 10inch iPad Pro | C36: 91
A37: A22447 | B37: Ideal Fashion Case Iphone 7 6 6S Carrara Gold | C37: 9
A38: A22461 | B38: Ideal Fashion Case Iphone 7 6 6S Floral Romance | C38: 10
A39: A22465 | B39: Ideal Fashion Wallet Iphone 7 6 6S Black | C39: 41
A40: A22504 | B40: Apple iPhone 8 7 Silicone Case Black | C40: 86
A41: A22509 | B41: Apple iPhone 8 Plus 7 Plus Silicone Case White | C41: 49
A42: A22510 | B42: Apple iPhone 8 Plus 7 Plus Silicone Case Midnight | C42: 57
A43: A22512 | B43: Apple EARPODS WITH REMOTE AND MIC | C43: 21
A44: A22513 | B44: Apple iPhone 8 7 Leather Case Black | C44: 131
A45: A22516 | B45: Apple iPhone 8 Plus 7 Plus Leather Case Midnight | C45: 35
A46: A22535 | B46: BeoPlay E8 Black Truly Wireless Earphones | C46: 3
A47: A22579 | B47: Huawei 360 Panoramic Camera CV60 Grey | C47: 38
A48: A22580 | B48: Apple iPhone X Silicone Case Black | C48: 1
A49: A22585 | B49: Oneplus headset | C49: 197
A50: A22587 | B50: BeoPlay M3 Black Bluetooth Airplay Chromecast | C50: 16
A51: A22678 | B51: ON Powerbank 5 000 mAh | C51: 5
A52: A22679 | B52: ON Powerbank 10 000 mAh | C52: 19
A53: A22680 | B53: ON Lightning Cabel 1 5m White | C53: 30
A54: A22681 | B54: ON Micro-USB Cabel 1 5m White | C54: 79
A55: A22682 | B55: ON USB-C Cabel 1 5m White | C55: 75
A56: A22683 | B56: ON Wall Charger 2 1A White | C56: 95
A57: A22684 | B57: ON Car Charger 2 1A Black | C57: 3
A58: A22686 | B58: ON Wall Charger 2 1A Lightning 1 5m White | C58: 48
A59: A22687 | B59: ON Wall Charger 2 1A Micro USB 1 5m White | C59: 5
A60: A22688 | B60: ON Wall Charger 2 1A USB C 1 5m White | C60: 1
A61: A22689 | B61: ON Car Charger 2 1A Lightning 1 5m Black | C61: 6
A62: A22690 | B62: ON Car Charger 2 1A Micro USB 1 5m Black | C62: 234
A63: A22691 | B63: ON Car Charger 2 1A USB C 1 5m Black | C63: 11
A64: A22695 | B64: ON Lightning Cabel 3m White | C64: 23
A65: A22696 | B65: ON Micro USB Cabel 3m White | C65: 7
A66: A22697 | B66: ON USB C Cabel 3m White | C66: 93
A67: A22703 | B67: Beoplay H9i Black Over Ear | C67: 1
A68: A22733 | B68: Ideal Car Vent Mount Universal Silver | C68: 9
A69: A22770 | B69: Ideal Fashion Case Iphone X Golden Glitz | C69: 1
A70: A22778 | B70: Huawei Tripod Selfie Stick Wireless | C70: 23
A71: A22787 | B71: OnePlus 6 Karbon Protective Case | C71: 1
A72: A22804 | B72: Apple Watch Nike 3C 42mm Silver | C72: 1
A73: A22811 | B73: Dbramante Paris MacBook Pro 13 Lady Pink | C73: 2
A74: A22827 | B74: Dbramante Lynge iPhone X Black | C74: 51
A75: A22828 | B75: Dbramante Tune iPhone X Black | C75: 89
A76: A22873 | B76: Philips Hue 10W A60 E27 Bulb Color | C76: 1
A77: A22879 | B77: Linksys Velop Whw0101 Ac1300 1Pk | C77: 21
A78: A22880 | B78: Linksys Velop Whw0102 Ac2600 2Pk | C78: 71
A79: A22883 | B79: Logitech Circle 2 Indoor outdoor security camera | C79: 14
A80: A22884 | B80: Logitech Circle 2 Accessory Window Mount | C80: 23
A81: A22885 | B81: Logitech Circle 2 Accessory Rechargeable Battery | C81: 23
A82: A22888 | B82: Table Fan FT 30T | C82: 62
A83: A22898 | B83: Samsung Galaxy Watch 46mm Silver
A84: A22899 | B84: Samsung Galaxy Watch 42mm Black | C84: 17
A85: A22900 | B85: Samsung Galaxy Watch 42mm Rose Gold | C85: 10
A86: A22920 | B86: Apple Watch 3C 38mm Demo
A87: A22921 | B87: Apple Watch 3C 42mm Demo | C87: 6
A88: A22941 | B88: Dbramante 1928 Lynge iPhone Xr Black | C88: 85
A89: A22943 | B89: Dbramante 1928 Tune iPhone Xr Black | C89: 69
A90: A22965 | B90: ON IPHONE Xr TPU ULTRA THIN CLEAR | C90: 11
A91: A22967 | B91: ON IPHONE 7 8 TPU ULTRA THIN CLEAR | C91: 56
A92: A22968 | B92: ON IPHONE X Xs TPU ULTRA THIN CLEAR | C92: 32
A93: A22972 | B93: ON IPHONE X Xs HARD CASE RUBBERIZED BLACK
A94: A22977 | B94: ON Car Charger USB C PD 30W black | C94: 9
A95: A22982 | B95: Apple iPhone XS Leather Case Black
A96: A22983 | B96: Apple iPhone XS Leather Folio Black | C96: 61
A97: A22984 | B97: Apple iPhone XS Max Leather Case Black | C97: 221
A98: A22985 | B98: Apple iPhone XS Max Leather Folio Black | C98: 80
A99: A22986 | B99: Apple iPhone XS Max Silicone Case Black | C99: 351
A100: A22987 | B100: Apple iPhone XS Max Silicone Case Pink Sand | C100: 145
A101: A22988 | B101: Apple iPhone XS Silicone Case Black | C101: 30
A102: A22989 | B102: Apple iPhone XS Silicone Case Pink Sand | C102: 49
A103: A22991 | B103: Apple 44mm Black Sport Band Demo
A104: A22995 | B104: PanzerGlass OnePlus 7 Black | C104: 1
A105: A22999 | B105: Apple Watch 3C 42mm Grey w Black
A106: A23000 | B106: Apple Watch 4C 40mm Gold w Pink
A107: A23005 | B107: Apple Watch 4C 44mm Black Steel | C107: 3
A108: A23006 | B108: Apple Watch Nike 4C 44mm Grey w Black | C108: 7
A109: A23007 | B109: Apple Watch Nike 4C 44mm Grey w Sport | C109: 7
A110: A23008 | B110: Apple Watch Nike 4C 44mm Silver w White | C110: 5
A111: A23010 | B111: Apple Watch 5C 40mm Gold w Pink
A112: A23011 | B112: Apple Watch 5C 40mm Grey w Black
A113: A23012 | B113: Apple Watch 5C 40mm Silver w White
A114: A23013 | B114: Apple Watch 5C 44mm Grey w Black
A115: A23014 | B115: Apple Watch 5C 44mm Silver w White
A116: A23015 | B116: Apple Watch 5C 44mm Black Steel
A117: A23017 | B117: Apple Watch Nike 5C 44mm Grey w Black
A118: A23027 | B118: DeFunc BT Headphone GO Black
A119: A23044 | B119: ON Wireless Alu Charger Stand 10W incl Wall USB C | C119: 172
A120: A23046 | B120: Beoplay P6 Black | C120: 11
A121: A23049 | B121: Apple Pencil 2nd Generation
A122: A23062 | B122: Apple Watch 4C 40mm Demo | C122: 6
A123: A23063 | B123: Apple Watch 4C 44mm Demo | C123: 19
A124: A23069 | B124: Beoplay E8 2 Black Truly Wireless Earphones | C124: 6
A125: A23085 | B125: Samsung Galaxy Watch Active Black
A126: A23086 | B126: Samsung Galaxy Watch Active Rose Gold
A127: A23087 | B127: Samsung Galaxy Fit e | C127: 44
A128: A23088 | B128: Samsung Galaxy Buds Black | C128: 19
A129: A23117 | B129: Happy Plugs Air Pink Gold
A130: A23125 | B130: MARSHALL ACTON II BT BLACK
A131: A23126 | B131: MARSHALL ACTON II BT WHITE | C131: 1
A132: A23127 | B132: MARSHALL KILBURN II BLACK | C132: 3
A133: A23128 | B133: MARSHALL MAJOR III BLUETOOTH BLACK
A134: A23129 | B134: MARSHALL MINOR II BT BLACK | C134: 1
A135: A23130 | B135: MARSHALL STOCKWELL II BLACK | C135: 13
A136: A23134 | B136: IDEAL FASHION CASE SAFFIANO IPHONE 6 6S 7 8 PINK
A137: A23135 | B137: IDEAL FASHION CASE SAFFIANO IPHONE X XS BEIGE
A138: A23136 | B138: IDEAL FASHION CASE SAFFIANO IPHONE X XS BLACK
A139: A23151 | B139: DJI Osmo Pocket | C139: 22
A140: A23156 | B140: dBramante 1928 Madrid Watch Strap 38 40mm Night | C140: 6
A141: A23177 | B141: Beoplay H9 3G Matte Black | C141: 24
A142: A23178 | B142: Mi boxen | C142: 40
A143: A23179 | B143: STEELSERIES STRATUS DUO | C143: 151
A144: A23180 | B144: STEELSERIES SMART GRIP FOR STRATUS DUO | C144: 158
A145: A23181 | B145: DJI Osmo Action | C145: 20
A146: A23184 | B146: PanzerGlass Samsung Galaxy Note 10 Case Friendly
A147: A23186 | B147: DJI Osmo Pocket pack DEMO
A148: A23187 | B148: Samsung Galaxy Buds White | C148: 40
A149: A23193 | B149: Steelseries Stratus Duo with Grip Bundle
A150: A23196 | B150: ON iPhone 11 TPU ULTRA THIN CLEAR | C150: 174
A151: A23197 | B151: ON IPHONE iPhone 11 Pro TPU ULTRA THIN CLEAR | C151: 30
A152: A23198 | B152: ON iPhone 11 MAX Pro TPU ULTRA THIN CLEAR | C152: 26
A153: A23199 | B153: ON IPHONE iPhone 11 Premium Silicone BLACK | C153: 44
A154: A23200 | B154: ON iPhone 11 Pro Premium Silicone BLACK | C154: 1
A155: A23201 | B155: ON IPHONE 11 MAX Pro Premium Silicone BLACK | C155: 12
A156: A23202 | B156: DBRAMANTE 1928 COPENHAGEN SLIM iPhone 11 Pro BLAC | C156: 95
A157: A23203 | B157: DBRAMANTE 1928 COPENHAGEN SLIM iPhone 11 MAX Pro | C157: 51
A158: A23204 | B158: DBRAMANTE 1928 COPENHAGEN SLIM iPhone 11 BLACK | C158: 58
A159: A23205 | B159: DBRAMANTE 1928 LYNGE iPhone 11 Pro BLACK | C159: 20
A160: A23207 | B160: DBRAMANTE 1928 LYNGE iPhone 11 BLACK | C160: 5
A161: A23208 | B161: DBRAMANTE 1928 Herning iPhone 11 Pro Black | C161: 73
A162: A23210 | B162: DBRAMANTE 1928 Herning Phone 11 MAX Pro Black | C162: 2
A163: A23212 | B163: IDEAL FASHION CASE iPhone 11 Pro in FLORAL ROMANC | C163: 34
A164: A23213 | B164: IDEAL FASHION CASE iPhone 11 in CARRARA GOLD | C164: 13
A165: A23214 | B165: IDEAL FASHION CASE iPhone 11 in FLORAL ROMANCE | C165: 7
A166: A23217 | B166: PanzerGlass Apple iPhone 11 Pro | C166: 9
A167: A23218 | B167: PanzerGlass Apple iPhone 11 | C167: 4
A168: A23224 | B168: PanzerGlass Apple iPhone 11 Case Friendly Privacy
A169: A23227 | B169: Samsung Galaxy Watch Active2 40mm LTE Black
A170: A23228 | B170: Samsung Galaxy Watch Active2 40mm LTE Gold | C170: 31
A171: A23229 | B171: Samsung Galaxy Watch Active2 44mm LTE Black
A172: A23230 | B172: IFROGZ LITTLE ROCKERS COSTUME HEADPHONES UNICORN | C172: 18
A173: A23231 | B173: IFROGZ LITTLE ROCKERS COSTUME HEADPHONES PINK | C173: 51
A174: A23232 | B174: IFROGZ LITTLE ROCKERS COSTUME HEADPHONES BUNNY | C174: 113
A175: A23233 | B175: mophie Charge and Sync Cable USB C to Lightning | C175: 13
A176: A23247 | B176: Apple Watch Magnetic Charging Cable 1 m
A177: A23249 | B177: OnePlus Bullets Wireless 2
A178: A23250 | B178: Apple iPhone 11 Clear Case | C178: 33
A179: A23251 | B179: Apple iPhone 11 Silicone Case Black | C179: 40
A180: A23252 | B180: Apple iPhone 11 Pro Leather Case Black | C180: 44
A181: A23253 | B181: Apple iPhone 11 Pro Clear Case | C181: 36
A182: A23254 | B182: Apple iPhone 11 Pro Silicone Case White | C182: 53
A183: A23255 | B183: Apple iPhone 11 Pro Silicone Case Pink Sand
A184: A23256 | B184: Apple iPhone 11 Pro Silicone Case Black | C184: 20
A185: A23257 | B185: Apple iPhone 11 Pro Max Silicone Case Black | C185: 8
A186: A23258 | B186: Apple iPhone 11 Pro Max Leather Case Black | C186: 2
A187: A23259 | B187: Apple iPhone 11 Pro Max Clear Case | C187: 121
A188: A23260 | B188: Samsung Galaxy Watch Active2C Aluminium 40mm Gold | C188: 3
A189: A23261 | B189: Samsung Galaxy Watch Active2C Aluminium 44mm Blac | C189: 4
A190: A23262 | B190: Samsung Galaxy Watch3 41mm LTE Mystic Silver | C190: 31
A191: A23263 | B191: Samsung Galaxy Watch3 41mm LTE Mystic Bronze | C191: 11
A192: A23264 | B192: Samsung Galaxy Watch3 45mm LTE Mystic Black | C192: 33
A193: A23279 | B193: Defunc TRUE GO Wireless Bluetooth Earbuds Black | C193: 57
A194: A23280 | B194: Defunc TRUE GO Wireless Bluetooth Earbuds White | C194: 68
A195: A23292 | B195: IDEAL FASHION CASE 6 1 BLACK GALAXY MARBLE | C195: 3
A196: A23293 | B196: IDEAL FASHION CASE 6 1 SWEET BLOSSOM | C196: 9
A197: A23314 | B197: IDEAL MAGNETIC RING MOUNT BLACK GALAXY MARBLE | C197: 6
A198: A23315 | B198: IDEAL MAGNETIC RING MOUNT SWEET BLOSSOM | C198: 21
A199: A23318 | B199: IDEAL FASHION QI CHARGER BLACK GALAXY MARBLE | C199: 13
A200: A23320 | B200: IDEAL FASHION POWER BANK BLACK GALAXY MARBLE | C200: 10
... 1790 more rows
